Body name,Directorate,Service Area Categorisation,Supplier Name,Payment Date,Card Transaction,Net Amount,Purpose of Spend,Procurement Classification: ProClass Label
Solihull MBC,Resources,Central Services to the Public,2BM Ltd,12/10/2017,,3824.70,IT Equipment & Software,270000 - Information Communication Technology
Solihull MBC,Resources,Central Services to the Public,7BR,17/10/2017,,2100.00,Other Fees,Not Yet Classified
Solihull MBC,Children's Services & Skills,Children & Education Services,A M Price & Sons Construction Ltd,05/10/2017,,46661.63,Contractors,Not Yet Classified
Solihull MBC,Resources,Central Services to the Public,A M Price & Sons Construction Ltd,02/10/2017,,607.31,Contractors,Not Yet Classified
Solihull MBC,Adult Social Care,Adult Social Care,A Rooke,17/10/2017,,702.60,ASC - Residential Care Permanent,321000 - Social Community Care Supplies & Services - Adult
Solihull MBC,Adult Social Care,Adult Social Care,A Rooke,17/10/2017,,680.40,ASC - Residential Care Permanent,321000 - Social Community Care Supplies & Services - Adult
Solihull MBC,Adult Social Care,Adult Social Care,A Rooke,17/10/2017,,2773.96,ASC - Residential Care Permanent,321000 - Social Community Care Supplies & Services - Adult
Solihull MBC,Adult Social Care,Adult Social Care,A S C Birch,03/10/2017,,576.00,Clients Transport Costs,360000 - Public Transport
Solihull MBC,Adult Social Care,Adult Social Care,A S C Birch,03/10/2017,,122.50,Clients Transport Costs,360000 - Public Transport
Solihull MBC,Children's Services & Skills,Children & Education Services,A S C Birch,03/10/2017,,248.00,Transport-Contract Hire,360000 - Public Transport
Solihull MBC,Children's Services & Skills,Children & Education Services,A S C Birch,03/10/2017,,47.18,Transport-Contract Hire,360000 - Public Transport
Solihull MBC,Children's Services & Skills,Children & Education Services,A S C Birch,03/10/2017,,1371.20,Transport-Contract Hire,360000 - Public Transport
Solihull MBC,Children's Services & Skills,Children & Education Services,A S C Birch,03/10/2017,,1264.45,Transport-Contract Hire,360000 - Public Transport
Solihull MBC,Children's Services & Skills,Children & Education Services,A S C Birch,27/10/2017,,2264.60,Transport-Contract Hire,360000 - Public Transport
Solihull MBC,Children's Services & Skills,Children & Education Services,A1 Support Limited,18/10/2017,,3055.71,Supported Lodgings,Not Yet Classified
Solihull MBC,Children's Services & Skills,Children & Education Services,A1 Support Limited,18/10/2017,,231.60,Clients Expenses,Not Yet Classified
Solihull MBC,Children's Services & Skills,Children & Education Services,A1 Support Limited,18/10/2017,,2957.14,Supported Lodgings,Not Yet Classified
Solihull MBC,Children's Services & Skills,Children & Education Services,A1 Support Limited,18/10/2017,,231.60,Clients Expenses,Not Yet Classified
Solihull MBC,Children's Services & Skills,Children & Education Services,A1 Support Limited,25/10/2017,,394.28,Supported Lodgings,Not Yet Classified
Solihull MBC,Children's Services & Skills,Children & Education Services,A1 Support Limited,30/10/2017,,200.00,Clients Expenses,Not Yet Classified
Solihull MBC,Children's Services & Skills,Children & Education Services,A1 Support Limited,30/10/2017,,3055.71,Supported Lodgings,Not Yet Classified
Solihull MBC,Children's Services & Skills,Children & Education Services,AA Global Language Services Ltd,06/10/2017,,1002.64,Professional Fees,321100 - Social Community Care Supplies & Services - Children
Solihull MBC,Children's Services & Skills,Children & Education Services,AA Global Language Services Ltd,13/10/2017,,314.33,Professional Fees,321100 - Social Community Care Supplies & Services - Children
Solihull MBC,Children's Services & Skills,Children & Education Services,Abacus Fostering Ltd,09/10/2017,,3212.14,External Fostering,Not Yet Classified
Solihull MBC,Children's Services & Skills,Children & Education Services,Abacus Fostering Ltd,02/10/2017,,3319.21,External Fostering,Not Yet Classified
Solihull MBC,Children's Services & Skills,Children & Education Services,Abacus Fostering Ltd,09/10/2017,,6321.26,External Fostering,Not Yet Classified
Solihull MBC,Children's Services & Skills,Children & Education Services,Abacus Fostering Ltd,09/10/2017,,-3183.13,External Fostering,Not Yet Classified
Solihull MBC,Adult Social Care,Adult Social Care,Abbey Healthcare Homes Ltd,17/10/2017,,4054.16,ASC - Nursing Care Permanent,321000 - Social Community Care Supplies & Services - Adult
Solihull MBC,Children's Services & Skills,Children & Education Services,ABC Fostering Services Ltd,18/10/2017,,2604.86,External Fostering,Not Yet Classified
Solihull MBC,Children's Services & Skills,Children & Education Services,ABC Fostering Services Ltd,18/10/2017,,3292.64,External Fostering,Not Yet Classified
Solihull MBC,Children's Services & Skills,Children & Education Services,ABC Fostering Services Ltd,18/10/2017,,3126.93,External Fostering,Not Yet Classified
Solihull MBC,Children's Services & Skills,Children & Education Services,ABC Fostering Services Ltd,18/10/2017,,2958.62,External Fostering,Not Yet Classified
Solihull MBC,Children's Services & Skills,Children & Education Services,ABC Fostering Services Ltd,25/10/2017,,2958.62,External Fostering,Not Yet Classified
Solihull MBC,Children's Services & Skills,Children & Education Services,ABC Fostering Services Ltd,18/10/2017,,2958.62,External Fostering,Not Yet Classified
Solihull MBC,Children's Services & Skills,Children & Education Services,ABC Fostering Services Ltd,18/10/2017,,2748.26,External Fostering,Not Yet Classified
Solihull MBC,Children's Services & Skills,Children & Education Services,ABC Fostering Services Ltd,18/10/2017,,3186.43,External Fostering,Not Yet Classified
Solihull MBC,Children's Services & Skills,Children & Education Services,ABC Fostering Services Ltd,26/10/2017,,3026.06,External Fostering,Not Yet Classified
Solihull MBC,Children's Services & Skills,Children & Education Services,ABC Fostering Services Ltd,12/10/2017,,2863.18,External Fostering,Not Yet Classified
Solihull MBC,Children's Services & Skills,Children & Education Services,ABC Fostering Services Ltd,12/10/2017,,2863.18,External Fostering,Not Yet Classified
Solihull MBC,Children's Services & Skills,Children & Education Services,ABC Fostering Services Ltd,26/10/2017,,2863.18,External Fostering,Not Yet Classified
Solihull MBC,Children's Services & Skills,Children & Education Services,ABC Fostering Services Ltd,26/10/2017,,2659.61,External Fostering,Not Yet Classified
Solihull MBC,Children's Services & Skills,Children & Education Services,Absolute Interpreting & Translation Ltd,06/10/2017,,210.75,Professional Fees,261100 - Human Resources - Interpretation & Translation
Solihull MBC,Children's Services & Skills,Children & Education Services,Absolute Interpreting & Translation Ltd,18/10/2017,,210.75,Professional Fees,261100 - Human Resources - Interpretation & Translation
Solihull MBC,Children's Services & Skills,Children & Education Services,Absolute Interpreting & Translation Ltd,18/10/2017,,216.00,Professional Fees,261100 - Human Resources - Interpretation & Translation
Solihull MBC,Children's Services - DSG Central.,Children & Education Services,Access To Music Ltd,23/10/2017,,1683.34,Other Contracted Services,Not Yet Classified
Solihull MBC,Adult Social Care,Adult Social Care,Accora,05/10/2017,,957.00,Furniture & Equipment,Not Yet Classified
Solihull MBC,Adult Social Care,Adult Social Care,Accora,05/10/2017,,-58.00,Furniture & Equipment,Not Yet Classified
Solihull MBC,Adult Social Care,Adult Social Care,Accora,09/10/2017,,899.00,Furniture & Equipment,Not Yet Classified
Solihull MBC,Adult Social Care,Adult Social Care,Accora,02/10/2017,,-2257.00,Furniture & Equipment,Not Yet Classified
Solihull MBC,Adult Social Care,Adult Social Care,Accord Housing Association,09/10/2017,,2182.86,Other Contracted Services,321000 - Social Community Care Supplies & Services - Adult
Solihull MBC,Adult Social Care,Adult Social Care,Accord Housing Association,09/10/2017,,2182.86,Other Contracted Services,321000 - Social Community Care Supplies & Services - Adult
Solihull MBC,Adult Social Care,Adult Social Care,Accord Housing Association,09/10/2017,,2182.86,Other Contracted Services,321000 - Social Community Care Supplies & Services - Adult
Solihull MBC,Adult Social Care,Adult Social Care,Accord Housing Association,09/10/2017,,2182.86,Other Contracted Services,321000 - Social Community Care Supplies & Services - Adult
Solihull MBC,Adult Social Care,Adult Social Care,Accord Housing Association,09/10/2017,,2182.86,Other Contracted Services,321000 - Social Community Care Supplies & Services - Adult
Solihull MBC,Adult Social Care,Adult Social Care,Accord Housing Association,09/10/2017,,2182.86,Other Contracted Services,321000 - Social Community Care Supplies & Services - Adult
Solihull MBC,Adult Social Care,Adult Social Care,Accord Housing Association,19/10/2017,,2182.86,Other Contracted Services,321000 - Social Community Care Supplies & Services - Adult
Solihull MBC,Adult Social Care,Adult Social Care,Accord Housing Association,19/10/2017,,397.69,Block Contracts,321000 - Social Community Care Supplies & Services - Adult
Solihull MBC,Adult Social Care,Adult Social Care,Accord Housing Association,01/10/2017,,26699.04,ASC - Extra Care,321000 - Social Community Care Supplies & Services - Adult
Solihull MBC,Adult Social Care,Adult Social Care,Accord Housing Association,19/10/2017,,27251.09,ASC - Extra Care,321000 - Social Community Care Supplies & Services - Adult
Solihull MBC,Adult Social Care,Adult Social Care,Accord Housing Asssociation,02/10/2017,,6668.48,ASC - Residential Care Permanent,321000 - Social Community Care Supplies & Services - Adult
Solihull MBC,Managed Growth and Communities,Planning & Development Services,Acivico,09/10/2017,,2925.33,Agency Staff,Not Yet Classified
Solihull MBC,Children's Services & Skills,Children & Education Services,Acivico,09/10/2017,,555.00,Room Hire/ Premises Hire,Not Yet Classified
Solihull MBC,Children's Services & Skills,Children & Education Services,Acivico,09/10/2017,,-277.50,Room Hire/ Premises Hire,Not Yet Classified
Solihull MBC,Managed Growth and Communities,Planning & Development Services,Acivico,09/10/2017,,2854.84,Agency Staff,Not Yet Classified
Solihull MBC,Managed Growth and Communities,Planning & Development Services,Acivico,09/10/2017,,2925.00,Agency Staff,Not Yet Classified
Solihull MBC,Managed Growth and Communities,Planning & Development Services,Acivico,11/10/2017,,2326.17,Agency Staff,Not Yet Classified
Solihull MBC,Resources,Corporate & Democratic Core,Action Graphics (Bham) Ltd,25/10/2017,,692.00,Materials,"391111 - Works - Construction, Repair & Maintenance - Buildings - Repair & Maintenance"
Solihull MBC,Managed Growth and Communities,Highways & Transport Services,Action Graphics (Bham) Ltd,24/10/2017,,820.00,Furniture & Equipment,"391111 - Works - Construction, Repair & Maintenance - Buildings - Repair & Maintenance"
Solihull MBC,Public Health & Commissioning,Central Services to the Public,Active Visual Supplies Ltd,10/10/2017,,2942.00,Furniture & Equipment,171011 - Education - School Services
Solihull MBC,Managed Growth and Communities,Planning & Development Services,Adecoe Ltd,26/10/2017,,1302.81,Professional Fees,Not Yet Classified
Solihull MBC,Managed Growth and Communities,Highways & Transport Services,Advanced Maintenance Services,01/10/2017,,511.62,Other Contracted Services,Not Yet Classified
Solihull MBC,Managed Growth and Communities,Highways & Transport Services,Advanced Maintenance Services,16/10/2017,,375.26,Other Contracted Services,Not Yet Classified
Solihull MBC,Managed Growth and Communities,Highways & Transport Services,Advanced Maintenance Services,09/10/2017,,420.00,Other Contracted Services,Not Yet Classified
Solihull MBC,Children's Services & Skills,Children & Education Services,After Adoption,09/10/2017,,3240.00,Professional Fees,Not Yet Classified
Solihull MBC,Adult Social Care,Adult Social Care,Age UK Solihull,26/10/2017,,824.18,Block Contracts,321000 - Social Community Care Supplies & Services - Adult
Solihull MBC,Adult Social Care,Adult Social Care,Age UK Solihull,13/10/2017,,29505.25,Other Contracted Services,321000 - Social Community Care Supplies & Services - Adult
Solihull MBC,Adult Social Care,Adult Social Care,Age UK Solihull,13/10/2017,,20206.25,Other Contracted Services,321000 - Social Community Care Supplies & Services - Adult
Solihull MBC,Adult Social Care,Adult Social Care,Age UK Solihull,13/10/2017,,8550.00,Other Contracted Services,321000 - Social Community Care Supplies & Services - Adult
Solihull MBC,Adult Social Care,Adult Social Care,Age UK Solihull,13/10/2017,,1250.00,Other Contracted Services,321000 - Social Community Care Supplies & Services - Adult
Solihull MBC,Adult Social Care,Adult Social Care,Age UK Solihull,13/10/2017,,1250.00,Other Contracted Services,321000 - Social Community Care Supplies & Services - Adult
Solihull MBC,Adult Social Care,Adult Social Care,Age UK Solihull,13/10/2017,,12000.00,Other Contracted Services,321000 - Social Community Care Supplies & Services - Adult
Solihull MBC,Adult Social Care,Adult Social Care,Age UK Solihull,13/10/2017,,625.00,Other Contracted Services,321000 - Social Community Care Supplies & Services - Adult
Solihull MBC,Adult Social Care,Adult Social Care,Age UK Solihull,13/10/2017,,625.00,Other Contracted Services,321000 - Social Community Care Supplies & Services - Adult
Solihull MBC,Adult Social Care,Adult Social Care,Age UK Solihull,13/10/2017,,3125.00,Other Contracted Services,321000 - Social Community Care Supplies & Services - Adult
Solihull MBC,Adult Social Care,Adult Social Care,Age UK Solihull,13/10/2017,,15500.00,Other Contracted Services,321000 - Social Community Care Supplies & Services - Adult
Solihull MBC,Adult Social Care,Adult Social Care,Age UK Solihull,20/10/2017,,2736.00,Block Contracts,321000 - Social Community Care Supplies & Services - Adult
Solihull MBC,Adult Social Care,Adult Social Care,Aidapt Bathrooms Ltd,12/10/2017,,614.10,Furniture & Equipment,321000 - Social Community Care Supplies & Services - Adult
Solihull MBC,Adult Social Care,Adult Social Care,Aidapt Bathrooms Ltd,12/10/2017,,258.00,Furniture & Equipment,321000 - Social Community Care Supplies & Services - Adult
Solihull MBC,Adult Social Care,Adult Social Care,Aidapt Bathrooms Ltd,12/10/2017,,320.00,Furniture & Equipment,321000 - Social Community Care Supplies & Services - Adult
Solihull MBC,Adult Social Care,Adult Social Care,Aidapt Bathrooms Ltd,12/10/2017,,600.00,Furniture & Equipment,321000 - Social Community Care Supplies & Services - Adult
Solihull MBC,Adult Social Care,Adult Social Care,Aidapt Bathrooms Ltd,02/10/2017,,66.00,Furniture & Equipment,321000 - Social Community Care Supplies & Services - Adult
Solihull MBC,Adult Social Care,Adult Social Care,Aidapt Bathrooms Ltd,02/10/2017,,154.80,Furniture & Equipment,321000 - Social Community Care Supplies & Services - Adult
Solihull MBC,Adult Social Care,Adult Social Care,Aidapt Bathrooms Ltd,02/10/2017,,287.28,Furniture & Equipment,321000 - Social Community Care Supplies & Services - Adult
Solihull MBC,Adult Social Care,Adult Social Care,Aidapt Bathrooms Ltd,02/10/2017,,269.64,Furniture & Equipment,321000 - Social Community Care Supplies & Services - Adult
Solihull MBC,Adult Social Care,Adult Social Care,Aidapt Bathrooms Ltd,04/10/2017,,491.28,Furniture & Equipment,321000 - Social Community Care Supplies & Services - Adult
Solihull MBC,Adult Social Care,Adult Social Care,Aidapt Bathrooms Ltd,04/10/2017,,286.58,Furniture & Equipment,321000 - Social Community Care Supplies & Services - Adult
Solihull MBC,Adult Social Care,Adult Social Care,Aidapt Bathrooms Ltd,04/10/2017,,154.80,Furniture & Equipment,321000 - Social Community Care Supplies & Services - Adult
Solihull MBC,Adult Social Care,Adult Social Care,Aidapt Bathrooms Ltd,04/10/2017,,187.50,Furniture & Equipment,321000 - Social Community Care Supplies & Services - Adult
Solihull MBC,Adult Social Care,Adult Social Care,Aidapt Bathrooms Ltd,16/10/2017,,215.46,Furniture & Equipment,321000 - Social Community Care Supplies & Services - Adult
Solihull MBC,Adult Social Care,Adult Social Care,Aidapt Bathrooms Ltd,16/10/2017,,491.28,Furniture & Equipment,321000 - Social Community Care Supplies & Services - Adult
Solihull MBC,Adult Social Care,Adult Social Care,Aidapt Bathrooms Ltd,19/10/2017,,27.50,Furniture & Equipment,321000 - Social Community Care Supplies & Services - Adult
Solihull MBC,Adult Social Care,Adult Social Care,Aidapt Bathrooms Ltd,19/10/2017,,232.20,Furniture & Equipment,321000 - Social Community Care Supplies & Services - Adult
Solihull MBC,Adult Social Care,Adult Social Care,Aidapt Bathrooms Ltd,31/10/2017,,71.82,Furniture & Equipment,321000 - Social Community Care Supplies & Services - Adult
Solihull MBC,Adult Social Care,Adult Social Care,Aidapt Bathrooms Ltd,31/10/2017,,491.28,Furniture & Equipment,321000 - Social Community Care Supplies & Services - Adult
Solihull MBC,Adult Social Care,Adult Social Care,Aidapt Bathrooms Ltd,31/10/2017,,283.86,Furniture & Equipment,321000 - Social Community Care Supplies & Services - Adult
Solihull MBC,Adult Social Care,Adult Social Care,Aidapt Bathrooms Ltd,31/10/2017,,27.50,Furniture & Equipment,321000 - Social Community Care Supplies & Services - Adult
Solihull MBC,Adult Social Care,Adult Social Care,Aidapt Bathrooms Ltd,31/10/2017,,52.00,Furniture & Equipment,321000 - Social Community Care Supplies & Services - Adult
Solihull MBC,Adult Social Care,Adult Social Care,Aidapt Bathrooms Ltd,31/10/2017,,129.00,Furniture & Equipment,321000 - Social Community Care Supplies & Services - Adult
Solihull MBC,Adult Social Care,Adult Social Care,Aidapt Bathrooms Ltd,31/10/2017,,73.50,Furniture & Equipment,321000 - Social Community Care Supplies & Services - Adult
Solihull MBC,Children's Services & Skills,Children & Education Services,Aim Project,03/10/2017,,475.00,Materials,321100 - Social Community Care Supplies & Services - Children
Solihull MBC,Adult Social Care,Adult Social Care,Akari Care Ltd,17/10/2017,,1903.84,ASC - Residential Care Permanent,Not Yet Classified
Solihull MBC,Adult Social Care,Adult Social Care,Akari Care Ltd,20/10/2017,,941.43,ASC - Residential Care Permanent,Not Yet Classified
Solihull MBC,Adult Social Care,Adult Social Care,Akari Care Ltd,17/10/2017,,2181.28,ASC - Nursing Care Permanent,Not Yet Classified
Solihull MBC,Adult Social Care,Adult Social Care,Aldermore Invoice Finance - Plan It Home Care Ltd,25/10/2017,,374.50,ASC - Domiciliary Care,Not Yet Classified
Solihull MBC,Adult Social Care,Adult Social Care,Aldermore Invoice Finance - Plan It Home Care Ltd,25/10/2017,,980.00,ASC - Domiciliary Care,Not Yet Classified
Solihull MBC,Adult Social Care,Adult Social Care,Aldermore Invoice Finance - Plan It Home Care Ltd,25/10/2017,,1568.00,ASC - Home Care Support Services,Not Yet Classified
Solihull MBC,Adult Social Care,Adult Social Care,Aldermore Invoice Finance - Plan It Home Care Ltd,25/10/2017,,1064.00,ASC - Domiciliary Care,Not Yet Classified
Solihull MBC,Adult Social Care,Adult Social Care,Aldermore Invoice Finance - Plan It Home Care Ltd,25/10/2017,,1568.00,ASC - Domiciliary Care,Not Yet Classified
Solihull MBC,Adult Social Care,Adult Social Care,Aldermore Invoice Finance - Plan It Home Care Ltd,25/10/2017,,784.00,ASC - Home Care Support Services,Not Yet Classified
Solihull MBC,Adult Social Care,Adult Social Care,Aldermore Invoice Finance - Plan It Home Care Ltd,25/10/2017,,1036.00,ASC - Domiciliary Care,Not Yet Classified
Solihull MBC,Adult Social Care,Adult Social Care,Aldermore Invoice Finance - Plan It Home Care Ltd,25/10/2017,,252.00,ASC - Domiciliary Care,Not Yet Classified
Solihull MBC,Adult Social Care,Adult Social Care,Aldermore Invoice Finance - Plan It Home Care Ltd,25/10/2017,,542.50,ASC - Domiciliary Care,Not Yet Classified
Solihull MBC,Adult Social Care,Adult Social Care,Aldermore Invoice Finance - Plan It Home Care Ltd,25/10/2017,,1764.00,ASC - Domiciliary Care,Not Yet Classified
Solihull MBC,Adult Social Care,Adult Social Care,Aldermore Invoice Finance - Plan It Home Care Ltd,25/10/2017,,840.00,ASC - Domiciliary Care,Not Yet Classified
Solihull MBC,Adult Social Care,Adult Social Care,Aldermore Invoice Finance - Plan It Home Care Ltd,25/10/2017,,1568.00,ASC - Domiciliary Care,Not Yet Classified
Solihull MBC,Adult Social Care,Adult Social Care,Aldermore Invoice Finance - Plan It Home Care Ltd,25/10/2017,,504.00,ASC - Domiciliary Care,Not Yet Classified
Solihull MBC,Adult Social Care,Adult Social Care,Aldermore Invoice Finance - Plan It Home Care Ltd,25/10/2017,,1652.00,ASC - Home Care Support Services,Not Yet Classified
Solihull MBC,Adult Social Care,Adult Social Care,Aldermore Invoice Finance - Plan It Home Care Ltd,25/10/2017,,1176.00,ASC - Domiciliary Care,Not Yet Classified
Solihull MBC,Adult Social Care,Adult Social Care,Aldermore Invoice Finance - Plan It Home Care Ltd,25/10/2017,,588.00,ASC - Domiciliary Care,Not Yet Classified
Solihull MBC,Adult Social Care,Adult Social Care,Aldermore Invoice Finance - Plan It Home Care Ltd,25/10/2017,,588.00,ASC - Domiciliary Care,Not Yet Classified
Solihull MBC,Adult Social Care,Adult Social Care,Aldermore Invoice Finance - Plan It Home Care Ltd,25/10/2017,,1764.00,ASC - Domiciliary Care,Not Yet Classified
Solihull MBC,Adult Social Care,Adult Social Care,Aldermore Invoice Finance - Plan It Home Care Ltd,25/10/2017,,1764.00,ASC - Domiciliary Care,Not Yet Classified
Solihull MBC,Adult Social Care,Adult Social Care,Aldermore Invoice Finance - Plan It Home Care Ltd,25/10/2017,,539.00,ASC - Domiciliary Care,Not Yet Classified
Solihull MBC,Adult Social Care,Adult Social Care,Aldermore Invoice Finance - Plan It Home Care Ltd,25/10/2017,,784.00,ASC - Home Care Support Services,Not Yet Classified
Solihull MBC,Adult Social Care,Adult Social Care,Aldermore Invoice Finance - Plan It Home Care Ltd,25/10/2017,,661.50,ASC - Domiciliary Care,Not Yet Classified
Solihull MBC,Adult Social Care,Adult Social Care,Aldermore Invoice Finance - Plan It Home Care Ltd,25/10/2017,,1323.00,ASC - Domiciliary Care,Not Yet Classified
Solihull MBC,Adult Social Care,Adult Social Care,Aldermore Invoice Finance - Plan It Home Care Ltd,25/10/2017,,784.00,ASC - Home Care Support Services,Not Yet Classified
Solihull MBC,Adult Social Care,Adult Social Care,Aldermore Invoice Finance - Plan It Home Care Ltd,25/10/2017,,518.00,ASC - Domiciliary Care,Not Yet Classified
Solihull MBC,Adult Social Care,Adult Social Care,Aldermore Invoice Finance - Plan It Home Care Ltd,25/10/2017,,1764.00,ASC - Domiciliary Care,Not Yet Classified
Solihull MBC,Adult Social Care,Adult Social Care,Aldermore Invoice Finance - Plan It Home Care Ltd,25/10/2017,,1176.00,ASC - Domiciliary Care,Not Yet Classified
Solihull MBC,Adult Social Care,Adult Social Care,Aldermore Invoice Finance - Plan It Home Care Ltd,25/10/2017,,350.00,ASC - Domiciliary Care,Not Yet Classified
Solihull MBC,Children's Services & Skills,Children & Education Services,Alere Toxicology,25/10/2017,,311.00,Professional Fees,Not Yet Classified
Solihull MBC,Adult Social Care,Adult Social Care,Alexandra House - SJMT,18/10/2017,,1903.72,ASC - Residential Care Permanent,Not Yet Classified
Solihull MBC,Adult Social Care,Adult Social Care,Alexandra House - SJMT,18/10/2017,,2080.12,ASC - Residential Care Permanent,Not Yet Classified
Solihull MBC,Adult Social Care,Adult Social Care,Alexandra House - SJMT,18/10/2017,,1745.48,ASC - Residential Care Permanent,Not Yet Classified
Solihull MBC,Adult Social Care,Adult Social Care,Alexandra House - SJMT,18/10/2017,,2141.44,ASC - Residential Care Permanent,Not Yet Classified
Solihull MBC,Adult Social Care,Adult Social Care,Alexandra House - SJMT,18/10/2017,,2196.60,ASC - Residential Care Permanent,Not Yet Classified
Solihull MBC,Adult Social Care,Adult Social Care,Alexandra House - SJMT,18/10/2017,,2080.12,ASC - Residential Care Permanent,Not Yet Classified
Solihull MBC,Adult Social Care,Adult Social Care,Alexandra House - SJMT,18/10/2017,,994.30,ASC - Residential Care Permanent,Not Yet Classified
Solihull MBC,Adult Social Care,Adult Social Care,Alexandra House - SJMT,18/10/2017,,2196.60,ASC - Residential Care Permanent,Not Yet Classified
Solihull MBC,Adult Social Care,Adult Social Care,Alexandra House - SJMT,18/10/2017,,2080.12,ASC - Residential Care Permanent,Not Yet Classified
Solihull MBC,Adult Social Care,Adult Social Care,Alison Thorneywork,17/10/2017,,2375.72,ASC - Residential Care Permanent,321000 - Social Community Care Supplies & Services - Adult
Solihull MBC,Adult Social Care,Adult Social Care,Alison Thorneywork,17/10/2017,,2422.88,ASC - Residential Care Permanent,321000 - Social Community Care Supplies & Services - Adult
Solihull MBC,Adult Social Care,Adult Social Care,Allambie Court Nursing Home,17/10/2017,,3000.00,ASC - Nursing Care Permanent,Not Yet Classified
Solihull MBC,Managed Growth and Communities - HRA,Housing Revenue Account,Alliance Disposables,24/10/2017,Card Transaction,228.00,General Debtors,111000 - Catering - Banquet & Catering
Solihull MBC,Adult Social Care,Adult Social Care,Alophonsus Services Ltd,17/10/2017,,10804.88,ASC - Residential Care Permanent,321000 - Social Community Care Supplies & Services - Adult
Solihull MBC,Adult Social Care,Adult Social Care,Alpha Health Care Ltd,23/10/2017,,2181.28,ASC - Nursing Care Permanent,321000 - Social Community Care Supplies & Services - Adult
Solihull MBC,Adult Social Care,Adult Social Care,Alpha Health Care Ltd,23/10/2017,,1895.56,ASC - Residential Care Permanent,321000 - Social Community Care Supplies & Services - Adult
Solihull MBC,Adult Social Care,Adult Social Care,Alphabet GB Ltd,16/10/2017,,158.10,Transport-Contract Hire,Not Yet Classified
Solihull MBC,Adult Social Care,Adult Social Care,Alphabet GB Ltd,16/10/2017,,176.10,Transport-Contract Hire,Not Yet Classified
Solihull MBC,Adult Social Care,Adult Social Care,Alphabet GB Ltd,16/10/2017,,153.90,Transport-Contract Hire,Not Yet Classified
Solihull MBC,Children's Services & Skills,Children & Education Services,Alta Innovations Ltd,18/10/2017,,787.50,Professional Fees,Not Yet Classified
Solihull MBC,Adult Social Care,Adult Social Care,Alveston Leys Nursing Home,24/10/2017,,552.81,ASC - Nursing Care Permanent,Not Yet Classified
Solihull MBC,Adult Social Care,Adult Social Care,Alzheimers Society,20/10/2017,,25699.00,Other Contracted Services,321000 - Social Community Care Supplies & Services - Adult
Solihull MBC,Adult Social Care,Adult Social Care,Alzheimers Society,20/10/2017,,24000.00,Other Contracted Services,321000 - Social Community Care Supplies & Services - Adult
Solihull MBC,Adult Social Care,Adult Social Care,Alzheimers Society,20/10/2017,,9500.00,Other Contracted Services,321000 - Social Community Care Supplies & Services - Adult
Solihull MBC,Adult Social Care,Adult Social Care,Alzheimers Society,20/10/2017,,-12850.00,Other Contracted Services,321000 - Social Community Care Supplies & Services - Adult
Solihull MBC,Resources,Central Services to the Public,Amazon UK Marketplace,21/09/2017,Card Transaction,222.33,IT Equipment & Software,171114 - Education - Literature
Solihull MBC,Children's Services & Skills,Children & Education Services,Amazon UK Retail,24/10/2017,Card Transaction,209.03,Purchase Card Statement Summary,161000 - Domestic Goods - Commercial
Solihull MBC,Resources,Central Services to the Public,Amazon UK Retail Amazon.C,27/09/2017,Card Transaction,829.90,IT Equipment & Software,161000 - Domestic Goods - Commercial
Solihull MBC,Adult Social Care,Adult Social Care,Amberley Court Nursing Home,18/10/2017,,4000.00,ASC - Nursing Care Permanent,321000 - Social Community Care Supplies & Services - Adult
Solihull MBC,Resources,Central Services to the Public,AMF Consultants,18/10/2017,,300.00,Professional Fees,Not Yet Classified
Solihull MBC,Managed Growth and Communities,Environmental and Regulatory Services,Ampa Associates Ltd,03/10/2017,,1960.00,Professional Fees,Not Yet Classified
Solihull MBC,Managed Growth and Communities,Environmental and Regulatory Services,Ampa Associates Ltd,03/10/2017,,-2352.00,Professional Fees,Not Yet Classified
Solihull MBC,Adult Social Care,Adult Social Care,Andrea Burton,17/10/2017,,323.25,Officers Expenses,Not Yet Classified
Solihull MBC,Children's Services - DSG Central.,Children & Education Services,Angela Walker,16/10/2017,,1162.80,Clients Transport Costs,Not Yet Classified
Solihull MBC,Adult Social Care,Adult Social Care,Angels Healthcare Ltd,18/10/2017,,397.46,ASC - Domiciliary Care,321000 - Social Community Care Supplies & Services - Adult
Solihull MBC,Adult Social Care,Adult Social Care,Angels Healthcare Ltd,18/10/2017,,561.12,ASC - Domiciliary Care,321000 - Social Community Care Supplies & Services - Adult
Solihull MBC,Adult Social Care,Adult Social Care,Angels Healthcare Ltd,18/10/2017,,374.08,ASC - Home Care Support Services,321000 - Social Community Care Supplies & Services - Adult
Solihull MBC,Adult Social Care,Adult Social Care,Angels Healthcare Ltd,18/10/2017,,255.84,ASC - Domiciliary Care,321000 - Social Community Care Supplies & Services - Adult
Solihull MBC,Adult Social Care,Adult Social Care,Angels Healthcare Ltd,18/10/2017,,855.04,ASC - Domiciliary Care,321000 - Social Community Care Supplies & Services - Adult
Solihull MBC,Adult Social Care,Adult Social Care,Angels Healthcare Ltd,18/10/2017,,1683.36,ASC - Home Care Support Services,321000 - Social Community Care Supplies & Services - Adult
Solihull MBC,Adult Social Care,Adult Social Care,Angels Healthcare Ltd,18/10/2017,,1683.36,ASC - Home Care Support Services,321000 - Social Community Care Supplies & Services - Adult
Solihull MBC,Adult Social Care,Adult Social Care,Angels Healthcare Ltd,18/10/2017,,1496.32,ASC - Domiciliary Care,321000 - Social Community Care Supplies & Services - Adult
Solihull MBC,Adult Social Care,Adult Social Care,Angels Healthcare Ltd,18/10/2017,,1122.24,ASC - Home Care Support Services,321000 - Social Community Care Supplies & Services - Adult
Solihull MBC,Adult Social Care,Adult Social Care,Anita Stone Court,06/10/2017,,2752.00,ASC - Residential Care Permanent,Not Yet Classified
Solihull MBC,Adult Social Care,Adult Social Care,Anita Stone Court,06/10/2017,,2752.00,ASC - Nursing Care Permanent,Not Yet Classified
Solihull MBC,Adult Social Care,Adult Social Care,Anita Stone Court,06/10/2017,,2892.00,ASC - Nursing Care Permanent,Not Yet Classified
Solihull MBC,Children's Services - DSG Central.,Children & Education Services,Ann Arbor Publishers Ltd,26/10/2017,,995.00,Materials,171100 - Education - Supplies
Solihull MBC,Children's Services & Skills,Children & Education Services,Anna Carter,09/10/2017,,479.26,Professional Fees,Not Yet Classified
Solihull MBC,Children's Services & Skills,Children & Education Services,Anna Carter,09/10/2017,,900.00,Professional Fees,Not Yet Classified
Solihull MBC,Adult Social Care,Adult Social Care,Apetito Ltd,02/10/2017,,250.83,Catering Provisions,321000 - Social Community Care Supplies & Services - Adult
Solihull MBC,Adult Social Care,Adult Social Care,Apna Ghar(1995) Ltd,12/10/2017,,320.00,ASC - Day Care,321000 - Social Community Care Supplies & Services - Adult
Solihull MBC,Adult Social Care,Adult Social Care,Apna Ghar(1995) Ltd,18/10/2017,,320.00,ASC - Day Care,321000 - Social Community Care Supplies & Services - Adult
Solihull MBC,Adult Social Care,Adult Social Care,Apna Ghar(1995) Ltd,12/10/2017,,280.00,ASC - Day Care,321000 - Social Community Care Supplies & Services - Adult
Solihull MBC,Adult Social Care,Adult Social Care,Apna Ghar(1995) Ltd,12/10/2017,,280.00,ASC - Day Care,321000 - Social Community Care Supplies & Services - Adult
Solihull MBC,Adult Social Care,Adult Social Care,Apna Ghar(1995) Ltd,18/10/2017,,280.00,ASC - Day Care,321000 - Social Community Care Supplies & Services - Adult
Solihull MBC,Children's Services - DSG Central.,Children & Education Services,Appleford School,26/10/2017,,9353.00,Other Contracted Services,Not Yet Classified
Solihull MBC,Public Health & Commissioning,Central Services to the Public,Applied Satellite Technology Systems Ltd,26/10/2017,,560.55,Telephones,Not Yet Classified
Solihull MBC,Children's Services - DSG Central.,Children & Education Services,Archway Academy Ltd,06/10/2017,,7200.00,Other Contracted Services,321100 - Social Community Care Supplies & Services - Children
Solihull MBC,Children's Services - DSG Central.,Children & Education Services,Archway Academy Ltd,06/10/2017,,1800.00,Other Contracted Services,321100 - Social Community Care Supplies & Services - Children
Solihull MBC,Children's Services - DSG Central.,Children & Education Services,Archway Academy Ltd,06/10/2017,,-1800.00,Other Contracted Services,321100 - Social Community Care Supplies & Services - Children
Solihull MBC,Children's Services - DSG Central.,Children & Education Services,Archway Academy Ltd,06/10/2017,,-1800.00,Other Contracted Services,321100 - Social Community Care Supplies & Services - Children
Solihull MBC,Children's Services - DSG Central.,Children & Education Services,Archway Academy Ltd,06/10/2017,,2400.00,Other Contracted Services,321100 - Social Community Care Supplies & Services - Children
Solihull MBC,Children's Services & Skills,Children & Education Services,Arden Academy Trust,09/10/2017,,2000.00,Room Hire/ Premises Hire,Not Yet Classified
Solihull MBC,Resources,Central Services to the Public,Arden Chambers,19/10/2017,,484.00,Other Fees,Not Yet Classified
Solihull MBC,Resources,Central Services to the Public,Arden Chambers,19/10/2017,,350.00,Other Fees,Not Yet Classified
Solihull MBC,Resources,Central Services to the Public,Arden Chambers,30/10/2017,,350.00,Other Fees,Not Yet Classified
Solihull MBC,Adult Social Care,Adult Social Care,Ardenlea Court,24/10/2017,,571.43,ASC - Nursing Care Permanent,321000 - Social Community Care Supplies & Services - Adult
Solihull MBC,Adult Social Care,Adult Social Care,Ardenlea Court,24/10/2017,,3800.00,ASC - Nursing Care Permanent,321000 - Social Community Care Supplies & Services - Adult
Solihull MBC,Adult Social Care,Adult Social Care,Ardenlea Court,24/10/2017,,3800.00,ASC - Nursing Care Permanent,321000 - Social Community Care Supplies & Services - Adult
Solihull MBC,Adult Social Care,Adult Social Care,Ardenlea Court,24/10/2017,,2442.86,ASC - Nursing Care Permanent,321000 - Social Community Care Supplies & Services - Adult
Solihull MBC,Adult Social Care,Adult Social Care,Ardenlea Court,02/10/2017,,3714.29,ASC - Nursing Care Permanent,321000 - Social Community Care Supplies & Services - Adult
Solihull MBC,Adult Social Care,Adult Social Care,Ardenlea Court,19/10/2017,,3276.97,ASC - Nursing Care Permanent,321000 - Social Community Care Supplies & Services - Adult
Solihull MBC,Adult Social Care,Adult Social Care,Ardenlea Court,19/10/2017,,252.07,ASC - Nursing Care Permanent,321000 - Social Community Care Supplies & Services - Adult
Solihull MBC,Adult Social Care,Adult Social Care,Ardenlea Court,24/10/2017,,3529.04,ASC - Nursing Care Permanent,321000 - Social Community Care Supplies & Services - Adult
Solihull MBC,Adult Social Care,Adult Social Care,Ardenlea Grove Nursing Home,24/10/2017,,2158.16,ASC - Nursing Care Permanent,321000 - Social Community Care Supplies & Services - Adult
Solihull MBC,Adult Social Care,Adult Social Care,Ardenlea Grove Nursing Home,26/10/2017,,11340.00,ASC - Nursing Care Respite,321000 - Social Community Care Supplies & Services - Adult
Solihull MBC,Adult Social Care,Adult Social Care,Ardenlea Grove Nursing Home,24/10/2017,,675.00,ASC - Nursing Care Respite,321000 - Social Community Care Supplies & Services - Adult
Solihull MBC,Children's Services & Skills,Children & Education Services,Argos Retail Group,24/10/2017,Card Transaction,435.92,Purchase Card Statement Summary,169999 - Domestic Goods - Not Elsewhere Classified
Solihull MBC,Children's Services - DSG Central.,Children & Education Services,Arrow County Supplies,16/10/2017,,255.00,Cleaning,130000 - Cleaning & Janitorial
Solihull MBC,Children's Services - DSG Central.,Children & Education Services,Arrow County Supplies,16/10/2017,,281.40,Cleaning,130000 - Cleaning & Janitorial
Solihull MBC,Children's Services - DSG Central.,Children & Education Services,Arrow County Supplies,16/10/2017,,39.90,Cleaning,130000 - Cleaning & Janitorial
Solihull MBC,Children's Services - DSG Central.,Children & Education Services,Arrow County Supplies,16/10/2017,,29.34,Cleaning,130000 - Cleaning & Janitorial
Solihull MBC,Children's Services - DSG Central.,Children & Education Services,Arrow County Supplies,16/10/2017,,191.40,Cleaning,130000 - Cleaning & Janitorial
Solihull MBC,Children's Services - DSG Central.,Children & Education Services,Arrow County Supplies,16/10/2017,,194.10,Cleaning,130000 - Cleaning & Janitorial
Solihull MBC,Children's Services - DSG Central.,Children & Education Services,Arrow County Supplies,16/10/2017,,9.28,Cleaning,130000 - Cleaning & Janitorial
Solihull MBC,Children's Services - DSG Central.,Children & Education Services,Arrow County Supplies,16/10/2017,,-127.50,Cleaning,130000 - Cleaning & Janitorial
Solihull MBC,Children's Services - DSG Central.,Children & Education Services,Arrow County Supplies,16/10/2017,,-140.70,Cleaning,130000 - Cleaning & Janitorial
Solihull MBC,Children's Services - DSG Central.,Children & Education Services,Arrow County Supplies,16/10/2017,,-19.95,Cleaning,130000 - Cleaning & Janitorial
Solihull MBC,Children's Services - DSG Central.,Children & Education Services,Arrow County Supplies,16/10/2017,,-14.66,Cleaning,130000 - Cleaning & Janitorial
Solihull MBC,Children's Services - DSG Central.,Children & Education Services,Arrow County Supplies,16/10/2017,,-95.70,Cleaning,130000 - Cleaning & Janitorial
Solihull MBC,Children's Services - DSG Central.,Children & Education Services,Arrow County Supplies,16/10/2017,,-101.70,Cleaning,130000 - Cleaning & Janitorial
Solihull MBC,Children's Services - DSG Central.,Children & Education Services,Arrow County Supplies,03/10/2017,,44.72,Cleaning,130000 - Cleaning & Janitorial
Solihull MBC,Children's Services - DSG Central.,Children & Education Services,Arrow County Supplies,03/10/2017,,16.40,Cleaning,130000 - Cleaning & Janitorial
Solihull MBC,Children's Services - DSG Central.,Children & Education Services,Arrow County Supplies,03/10/2017,,16.40,Cleaning,130000 - Cleaning & Janitorial
Solihull MBC,Children's Services - DSG Central.,Children & Education Services,Arrow County Supplies,03/10/2017,,10.50,Cleaning,130000 - Cleaning & Janitorial
Solihull MBC,Children's Services - DSG Central.,Children & Education Services,Arrow County Supplies,03/10/2017,,21.00,Cleaning,130000 - Cleaning & Janitorial
Solihull MBC,Children's Services - DSG Central.,Children & Education Services,Arrow County Supplies,03/10/2017,,179.82,Cleaning,130000 - Cleaning & Janitorial
Solihull MBC,Children's Services - DSG Central.,Children & Education Services,Arrow County Supplies,03/10/2017,,46.00,Cleaning,130000 - Cleaning & Janitorial
Solihull MBC,Children's Services - DSG Central.,Children & Education Services,Arrow County Supplies,03/10/2017,,170.00,Cleaning,130000 - Cleaning & Janitorial
Solihull MBC,Children's Services - DSG Central.,Children & Education Services,Arrow County Supplies,03/10/2017,,10.12,Cleaning,130000 - Cleaning & Janitorial
Solihull MBC,Children's Services - DSG Central.,Children & Education Services,Arrow County Supplies,03/10/2017,,12.60,Cleaning,130000 - Cleaning & Janitorial
Solihull MBC,Children's Services - DSG Central.,Children & Education Services,Arrow County Supplies,03/10/2017,,46.90,Cleaning,130000 - Cleaning & Janitorial
Solihull MBC,Children's Services - DSG Central.,Children & Education Services,Arrow County Supplies,03/10/2017,,89.16,Cleaning,130000 - Cleaning & Janitorial
Solihull MBC,Children's Services - DSG Central.,Children & Education Services,Arrow County Supplies,03/10/2017,,17.80,Cleaning,130000 - Cleaning & Janitorial
Solihull MBC,Children's Services - DSG Central.,Children & Education Services,Arrow County Supplies,03/10/2017,,91.80,Cleaning,130000 - Cleaning & Janitorial
Solihull MBC,Children's Services - DSG Central.,Children & Education Services,Arrow County Supplies,03/10/2017,,21.00,Cleaning,130000 - Cleaning & Janitorial
Solihull MBC,Children's Services - DSG Central.,Children & Education Services,Arrow County Supplies,03/10/2017,,21.00,Cleaning,130000 - Cleaning & Janitorial
Solihull MBC,Children's Services - DSG Central.,Children & Education Services,Arrow County Supplies,03/10/2017,,265.80,Cleaning,130000 - Cleaning & Janitorial
Solihull MBC,Children's Services - DSG Central.,Children & Education Services,Arrow County Supplies,03/10/2017,,55.60,Cleaning,130000 - Cleaning & Janitorial
Solihull MBC,Children's Services - DSG Central.,Children & Education Services,Arrow County Supplies,03/10/2017,,11.04,Cleaning,130000 - Cleaning & Janitorial
Solihull MBC,Children's Services - DSG Central.,Children & Education Services,Arrow County Supplies,03/10/2017,,31.52,Cleaning,130000 - Cleaning & Janitorial
Solihull MBC,Children's Services - DSG Central.,Children & Education Services,Arrow County Supplies,03/10/2017,,33.48,Cleaning,130000 - Cleaning & Janitorial
Solihull MBC,Children's Services - DSG Central.,Children & Education Services,Arrow County Supplies,03/10/2017,,34.20,Cleaning,130000 - Cleaning & Janitorial
Solihull MBC,Children's Services - DSG Central.,Children & Education Services,Arrow County Supplies,03/10/2017,,11.16,Cleaning,130000 - Cleaning & Janitorial
Solihull MBC,Children's Services - DSG Central.,Children & Education Services,Arrow County Supplies,03/10/2017,,21.40,Cleaning,130000 - Cleaning & Janitorial
Solihull MBC,Children's Services - DSG Central.,Children & Education Services,Arrow County Supplies,03/10/2017,,11.98,Cleaning,130000 - Cleaning & Janitorial
Solihull MBC,Children's Services - DSG Central.,Children & Education Services,Arrow County Supplies,03/10/2017,,3.84,Cleaning,130000 - Cleaning & Janitorial
Solihull MBC,Children's Services - DSG Central.,Children & Education Services,Arrow County Supplies,06/10/2017,,564.80,Cleaning,130000 - Cleaning & Janitorial
Solihull MBC,Children's Services - DSG Central.,Children & Education Services,Arrow County Supplies,06/10/2017,,115.20,Cleaning,130000 - Cleaning & Janitorial
Solihull MBC,Children's Services - DSG Central.,Children & Education Services,Arrow County Supplies,06/10/2017,,164.00,Cleaning,130000 - Cleaning & Janitorial
Solihull MBC,Children's Services - DSG Central.,Children & Education Services,Arrow County Supplies,06/10/2017,,16.40,Cleaning,130000 - Cleaning & Janitorial
Solihull MBC,Children's Services - DSG Central.,Children & Education Services,Arrow County Supplies,06/10/2017,,49.20,Cleaning,130000 - Cleaning & Janitorial
Solihull MBC,Children's Services - DSG Central.,Children & Education Services,Arrow County Supplies,06/10/2017,,127.50,Cleaning,130000 - Cleaning & Janitorial
Solihull MBC,Children's Services - DSG Central.,Children & Education Services,Arrow County Supplies,06/10/2017,,179.80,Cleaning,130000 - Cleaning & Janitorial
Solihull MBC,Children's Services - DSG Central.,Children & Education Services,Arrow County Supplies,06/10/2017,,272.00,Cleaning,130000 - Cleaning & Janitorial
Solihull MBC,Children's Services - DSG Central.,Children & Education Services,Arrow County Supplies,06/10/2017,,42.90,Cleaning,130000 - Cleaning & Janitorial
Solihull MBC,Children's Services - DSG Central.,Children & Education Services,Arrow County Supplies,06/10/2017,,255.30,Cleaning,130000 - Cleaning & Janitorial
Solihull MBC,Children's Services - DSG Central.,Children & Education Services,Arrow County Supplies,06/10/2017,,98.40,Cleaning,130000 - Cleaning & Janitorial
Solihull MBC,Children's Services - DSG Central.,Children & Education Services,Arrow County Supplies,06/10/2017,,49.92,Cleaning,130000 - Cleaning & Janitorial
Solihull MBC,Children's Services - DSG Central.,Children & Education Services,Arrow County Supplies,10/10/2017,,49.20,Cleaning,130000 - Cleaning & Janitorial
Solihull MBC,Children's Services - DSG Central.,Children & Education Services,Arrow County Supplies,10/10/2017,,99.84,Cleaning,130000 - Cleaning & Janitorial
Solihull MBC,Children's Services - DSG Central.,Children & Education Services,Arrow County Supplies,10/10/2017,,138.24,Cleaning,130000 - Cleaning & Janitorial
Solihull MBC,Children's Services - DSG Central.,Children & Education Services,Arrow County Supplies,10/10/2017,,115.20,Cleaning,130000 - Cleaning & Janitorial
Solihull MBC,Children's Services - DSG Central.,Children & Education Services,Arrow County Supplies,10/10/2017,,71.15,Cleaning,130000 - Cleaning & Janitorial
Solihull MBC,Children's Services - DSG Central.,Children & Education Services,Arrow County Supplies,10/10/2017,,103.74,Cleaning,130000 - Cleaning & Janitorial
Solihull MBC,Children's Services - DSG Central.,Children & Education Services,Arrow County Supplies,10/10/2017,,10.40,Cleaning,130000 - Cleaning & Janitorial
Solihull MBC,Children's Services - DSG Central.,Children & Education Services,Arrow County Supplies,10/10/2017,,265.80,Cleaning,130000 - Cleaning & Janitorial
Solihull MBC,Children's Services - DSG Central.,Children & Education Services,Arrow County Supplies,10/10/2017,,124.80,Cleaning,130000 - Cleaning & Janitorial
Solihull MBC,Children's Services - DSG Central.,Children & Education Services,Arrow County Supplies,17/10/2017,,16.40,Cleaning,130000 - Cleaning & Janitorial
Solihull MBC,Children's Services - DSG Central.,Children & Education Services,Arrow County Supplies,17/10/2017,,31.29,Cleaning,130000 - Cleaning & Janitorial
Solihull MBC,Children's Services - DSG Central.,Children & Education Services,Arrow County Supplies,17/10/2017,,159.50,Cleaning,130000 - Cleaning & Janitorial
Solihull MBC,Children's Services - DSG Central.,Children & Education Services,Arrow County Supplies,17/10/2017,,49.92,Cleaning,130000 - Cleaning & Janitorial
Solihull MBC,Public Health & Commissioning,Adult Social Care,Art Of Motion CIC,10/10/2017,,1520.00,Other Contracted Services,Not Yet Classified
Solihull MBC,Adult Social Care,Adult Social Care,Arthur Brett Catering Ltd,04/10/2017,,-274.40,Catering Provisions,110000 - Catering
Solihull MBC,Adult Social Care,Adult Social Care,Arthur Brett Catering Ltd,04/10/2017,,286.91,Catering Provisions,110000 - Catering
Solihull MBC,Public Health & Commissioning,Adult Social Care,Asda Pharmacy,13/10/2017,,185.16,Other Contracted Services,Not Yet Classified
Solihull MBC,Public Health & Commissioning,Adult Social Care,Asda Pharmacy,13/10/2017,,438.55,Other Contracted Services,Not Yet Classified
Solihull MBC,Public Health & Commissioning,Adult Social Care,Asda Pharmacy,13/10/2017,,65.44,Other Contracted Services,Not Yet Classified
Solihull MBC,Children's Services & Skills,Children & Education Services,Asda Stores 5881,24/10/2017,Card Transaction,300.00,Purchase Card Statement Summary,161000 - Domestic Goods - Commercial
Solihull MBC,Adult Social Care,Adult Social Care,Ashdale Care Homes Ltd,23/10/2017,,2880.00,ASC - Residential Care Permanent,321000 - Social Community Care Supplies & Services - Adult
Solihull MBC,Adult Social Care,Adult Social Care,Ashram Housing Association Ltd,19/10/2017,,2723.29,Block Contracts,Not Yet Classified
Solihull MBC,Adult Social Care,Cultural & Related Services,Askews Library Services Ltd,05/10/2017,,1439.40,Materials,170000 - Education
Solihull MBC,Adult Social Care,Cultural & Related Services,Askews Library Services Ltd,13/10/2017,,688.92,Materials,170000 - Education
Solihull MBC,Adult Social Care,Cultural & Related Services,Askews Library Services Ltd,31/10/2017,,4583.30,Materials,170000 - Education
Solihull MBC,Adult Social Care,Cultural & Related Services,Askews Library Services Ltd,31/10/2017,,1850.99,Materials,170000 - Education
Solihull MBC,Adult Social Care,Adult Social Care,Aspects Care Ltd BD,19/10/2017,,1562.16,ASC - Direct Payments,Not Yet Classified
Solihull MBC,Adult Social Care,Adult Social Care,Aspects Care Ltd CN,19/10/2017,,2634.60,ASC - Direct Payments,Not Yet Classified
Solihull MBC,Adult Social Care,Adult Social Care,Aspects Care Ltd DM,19/10/2017,,2300.80,ASC - Direct Payments,Not Yet Classified
Solihull MBC,Adult Social Care,Adult Social Care,Aspects Care Ltd HS,19/10/2017,,4433.56,ASC - Direct Payments,Not Yet Classified
Solihull MBC,Adult Social Care,Adult Social Care,Aspects Care Ltd ND,19/10/2017,,2582.00,ASC - Direct Payments,Not Yet Classified
Solihull MBC,Adult Social Care,Adult Social Care,Assisted Living Solutions - Inclusion Care,24/10/2017,,769.60,ASC - Supported Living Care Costs,Not Yet Classified
Solihull MBC,Adult Social Care,Adult Social Care,Assisted Living Solutions - Inclusion Care,24/10/2017,,769.60,ASC - Supported Living Care Costs,Not Yet Classified
Solihull MBC,Adult Social Care,Adult Social Care,Assisted Living Solutions - Inclusion Care,24/10/2017,,769.60,ASC - Supported Living Care Costs,Not Yet Classified
Solihull MBC,Children's Services & Skills,Children & Education Services,Aston Childrens Care,26/10/2017,,16828.35,Other Contracted Services,Not Yet Classified
Solihull MBC,Managed Growth and Communities,Highways & Transport Services,Atkins,25/10/2017,,-8268.00,Agency Staff,150000 - Consultancy
Solihull MBC,Resources,Central Services to the Public,Atkins,02/10/2017,,1830.24,Repair & Maintn Of Buildings,150000 - Consultancy
Solihull MBC,Managed Growth and Communities,Highways & Transport Services,Atkins,04/10/2017,,34035.27,Agency Staff,150000 - Consultancy
Solihull MBC,Managed Growth and Communities,Highways & Transport Services,Atkins,25/10/2017,,7212.91,Agency Staff,150000 - Consultancy
Solihull MBC,Managed Growth and Communities,Highways & Transport Services,Atkins,25/10/2017,,8268.00,Agency Staff,150000 - Consultancy
Solihull MBC,Managed Growth and Communities,Highways & Transport Services,Atkins,26/10/2017,,1998.17,Agency Staff,150000 - Consultancy
Solihull MBC,Managed Growth and Communities,Highways & Transport Services,Atkins,25/10/2017,,8268.00,Agency Staff,150000 - Consultancy
Solihull MBC,Managed Growth and Communities,Highways & Transport Services,Atkins,25/10/2017,,8371.35,Agency Staff,150000 - Consultancy
Solihull MBC,Managed Growth and Communities,Highways & Transport Services,Atkins Ltd,03/10/2017,,14913.85,Consultants,150000 - Consultancy
Solihull MBC,Managed Growth and Communities,Highways & Transport Services,Audible & Visual Security Ltd,13/10/2017,,510.00,Other Contracted Services,192200 - Facilities & Management Services - Security
Solihull MBC,Resources,Other Housing Services,Auriga Services Ltd,11/10/2017,,989.60,Clients Expenses,Not Yet Classified
Solihull MBC,Resources,Other Housing Services,Auriga Services Ltd,11/10/2017,,-494.80,Clients Expenses,Not Yet Classified
Solihull MBC,Adult Social Care,Adult Social Care,Autism West Midlands,11/10/2017,,5874.24,ASC - Residential Care Permanent,321000 - Social Community Care Supplies & Services - Adult
Solihull MBC,Adult Social Care,Adult Social Care,Autism West Midlands,11/10/2017,,528.84,ASC - Home Care Support Services,321000 - Social Community Care Supplies & Services - Adult
Solihull MBC,Adult Social Care,Adult Social Care,Autism West Midlands,11/10/2017,,293.80,ASC - Home Care Support Services,321000 - Social Community Care Supplies & Services - Adult
Solihull MBC,Adult Social Care,Adult Social Care,Autism West Midlands,11/10/2017,,6266.04,ASC - Residential Care Permanent,321000 - Social Community Care Supplies & Services - Adult
Solihull MBC,Adult Social Care,Adult Social Care,Autism West Midlands,11/10/2017,,9816.80,ASC - Residential Care Permanent,321000 - Social Community Care Supplies & Services - Adult
Solihull MBC,Adult Social Care,Adult Social Care,Autism West Midlands,11/10/2017,,6337.36,ASC - Residential Care Permanent,321000 - Social Community Care Supplies & Services - Adult
Solihull MBC,Adult Social Care,Adult Social Care,Autism West Midlands,11/10/2017,,2875.32,ASC - Domiciliary Care,321000 - Social Community Care Supplies & Services - Adult
Solihull MBC,Adult Social Care,Adult Social Care,Autism West Midlands,11/10/2017,,4409.04,ASC - Residential Care Permanent,321000 - Social Community Care Supplies & Services - Adult
Solihull MBC,Managed Growth and Communities,Environmental and Regulatory Services,Automotive Leasing (Orders),18/10/2017,,850.70,Transport-Contract Hire,360000 - Public Transport
Solihull MBC,Managed Growth and Communities,Highways & Transport Services,Automotive Leasing (Orders),18/10/2017,,454.00,Transport-Contract Hire,360000 - Public Transport
Solihull MBC,Managed Growth and Communities,Environmental and Regulatory Services,Automotive Leasing (Orders),18/10/2017,,-464.02,Transport-Contract Hire,360000 - Public Transport
Solihull MBC,Managed Growth and Communities,Environmental and Regulatory Services,Automotive Leasing (Orders),26/10/2017,,386.68,Transport-Contract Hire,360000 - Public Transport
Solihull MBC,Managed Growth and Communities,Highways & Transport Services,Automotive Leasing (Orders),26/10/2017,,635.60,Transport-Contract Hire,360000 - Public Transport
Solihull MBC,Adult Social Care,Adult Social Care,Automotive Leasing (Orders),30/10/2017,,324.26,Furniture & Equipment,360000 - Public Transport
Solihull MBC,Adult Social Care,Adult Social Care,Automotive Leasing (Orders),30/10/2017,,341.28,Furniture & Equipment,360000 - Public Transport
Solihull MBC,Adult Social Care,Adult Social Care,Automotive Leasing (Orders),30/10/2017,,341.28,Furniture & Equipment,360000 - Public Transport
Solihull MBC,Adult Social Care,Adult Social Care,Automotive Leasing (Orders),30/10/2017,,445.24,Furniture & Equipment,360000 - Public Transport
Solihull MBC,Adult Social Care,Adult Social Care,Automotive Leasing (Orders),30/10/2017,,648.52,Furniture & Equipment,360000 - Public Transport
Solihull MBC,Adult Social Care,Adult Social Care,Automotive Leasing (Orders),30/10/2017,,-324.26,Furniture & Equipment,360000 - Public Transport
Solihull MBC,Adult Social Care,Adult Social Care,Automotive Leasing (Orders),27/10/2017,,445.24,Furniture & Equipment,360000 - Public Transport
Solihull MBC,Adult Social Care,Adult Social Care,Automotive Leasing (Orders),27/10/2017,,324.26,Furniture & Equipment,360000 - Public Transport
Solihull MBC,Resources,Adult Social Care,Automotive Leasing (Orders),19/10/2017,,211.54,Transport-Contract Hire,360000 - Public Transport
Solihull MBC,Adult Social Care,Adult Social Care,Automotive Leasing (Orders),27/10/2017,,324.26,Furniture & Equipment,360000 - Public Transport
Solihull MBC,Adult Social Care,Adult Social Care,Automotive Leasing (Orders),27/10/2017,,341.28,Furniture & Equipment,360000 - Public Transport
Solihull MBC,Adult Social Care,Adult Social Care,Automotive Leasing (Orders),27/10/2017,,341.28,Furniture & Equipment,360000 - Public Transport
Solihull MBC,Adult Social Care,Adult Social Care,Auxilio Care Ltd,10/10/2017,,4464.00,ASC - Supported Living Care Costs,Not Yet Classified
Solihull MBC,Adult Social Care,Adult Social Care,Auxilio Care Ltd,10/10/2017,,5194.00,ASC - Supported Living Care Costs,Not Yet Classified
Solihull MBC,Adult Social Care,Adult Social Care,Auxilio Care Ltd,10/10/2017,,4764.48,ASC - Supported Living Care Costs,Not Yet Classified
Solihull MBC,Adult Social Care,Adult Social Care,Auxilio Care Ltd,10/10/2017,,3738.00,ASC - Supported Living Care Costs,Not Yet Classified
Solihull MBC,Adult Social Care,Adult Social Care,Auxilio Care Ltd,10/10/2017,,9506.00,ASC - Supported Living Care Costs,Not Yet Classified
Solihull MBC,Adult Social Care,Adult Social Care,Auxilio Care Ltd,10/10/2017,,7154.00,ASC - Supported Living Care Costs,Not Yet Classified
Solihull MBC,Adult Social Care,Adult Social Care,Avery Health Care,17/10/2017,,4400.00,ASC - Nursing Care Permanent,Not Yet Classified
Solihull MBC,Adult Social Care,Adult Social Care,Avery Health Care,17/10/2017,,4000.00,ASC - Residential Care Permanent,Not Yet Classified
Solihull MBC,Adult Social Care,Adult Social Care,Avery Health Care,11/10/2017,,4000.00,ASC - Residential Care Permanent,Not Yet Classified
Solihull MBC,Adult Social Care,Adult Social Care,Avery Health Care,17/10/2017,,4000.00,ASC - Residential Care Permanent,Not Yet Classified
Solihull MBC,Managed Growth and Communities,Environmental and Regulatory Services,Avery Weigh-Tronix,18/10/2017,,600.00,Furniture & Equipment,Not Yet Classified
Solihull MBC,Resources - Non Monitored,Central Services to the Public,Avignon Management Ltd,10/10/2017,,-11666.67,Professional Fees,Not Yet Classified
Solihull MBC,Adult Social Care,Adult Social Care,B&M Investments Ltd (Reference:Tm0318),17/10/2017,,2400.00,ASC - Nursing Care Permanent,Not Yet Classified
Solihull MBC,Managed Growth and Communities,Highways & Transport Services,Balfour Beatty Living Places Ltd,27/10/2017,,66143.53,Other Contracted Services,"391400 - Works - Construction, Repair & Maintenance"
Solihull MBC,Managed Growth and Communities,Highways & Transport Services,Balfour Beatty Living Places Ltd,27/10/2017,,101834.49,Other Contracted Services,"391400 - Works - Construction, Repair & Maintenance"
Solihull MBC,Managed Growth and Communities,Highways & Transport Services,Balfour Beatty Living Places Ltd,27/10/2017,,1582.13,Other Contracted Services,"391400 - Works - Construction, Repair & Maintenance"
Solihull MBC,Managed Growth and Communities,Highways & Transport Services,Balfour Beatty Living Places Ltd,27/10/2017,,548.47,Other Contracted Services,"391400 - Works - Construction, Repair & Maintenance"
Solihull MBC,Managed Growth and Communities,Highways & Transport Services,Balfour Beatty Living Places Ltd,27/10/2017,,126.46,Contractors,"391400 - Works - Construction, Repair & Maintenance"
Solihull MBC,Managed Growth and Communities,Highways & Transport Services,Balfour Beatty Living Places Ltd,27/10/2017,,259.50,Other Contracted Services,"391400 - Works - Construction, Repair & Maintenance"
Solihull MBC,Managed Growth and Communities,Highways & Transport Services,Balfour Beatty Living Places Ltd,27/10/2017,,116.06,Other Contracted Services,"391400 - Works - Construction, Repair & Maintenance"
Solihull MBC,Managed Growth and Communities,Highways & Transport Services,Balfour Beatty Living Places Ltd,27/10/2017,,116251.22,Other Contracted Services,"391400 - Works - Construction, Repair & Maintenance"
Solihull MBC,Managed Growth and Communities,Highways & Transport Services,Balfour Beatty Living Places Ltd,27/10/2017,,160111.03,Other Contracted Services,"391400 - Works - Construction, Repair & Maintenance"
Solihull MBC,Managed Growth and Communities,Highways & Transport Services,Balfour Beatty Living Places Ltd,27/10/2017,,26038.15,Contractors,"391400 - Works - Construction, Repair & Maintenance"
Solihull MBC,Managed Growth and Communities,Highways & Transport Services,Balfour Beatty Living Places Ltd,27/10/2017,,31877.48,Contractors,"391400 - Works - Construction, Repair & Maintenance"
Solihull MBC,Managed Growth and Communities,Highways & Transport Services,Balfour Beatty Living Places Ltd,27/10/2017,,47622.35,Contractors,"391400 - Works - Construction, Repair & Maintenance"
Solihull MBC,Managed Growth and Communities,Highways & Transport Services,Balfour Beatty Living Places Ltd,27/10/2017,,58637.03,Contractors,"391400 - Works - Construction, Repair & Maintenance"
Solihull MBC,Managed Growth and Communities,Highways & Transport Services,Balfour Beatty Living Places Ltd,27/10/2017,,43532.74,Contractors,"391400 - Works - Construction, Repair & Maintenance"
Solihull MBC,Managed Growth and Communities,Highways & Transport Services,Balfour Beatty Living Places Ltd,27/10/2017,,49108.22,Contractors,"391400 - Works - Construction, Repair & Maintenance"
Solihull MBC,Managed Growth and Communities,Highways & Transport Services,Balfour Beatty Living Places Ltd,27/10/2017,,102378.91,Contractors,"391400 - Works - Construction, Repair & Maintenance"
Solihull MBC,Managed Growth and Communities,Highways & Transport Services,Balfour Beatty Living Places Ltd,27/10/2017,,106903.62,Contractors,"391400 - Works - Construction, Repair & Maintenance"
Solihull MBC,Managed Growth and Communities,Highways & Transport Services,Balfour Beatty Living Places Ltd,27/10/2017,,36013.27,Contractors,"391400 - Works - Construction, Repair & Maintenance"
Solihull MBC,Managed Growth and Communities,Highways & Transport Services,Balfour Beatty Living Places Ltd,27/10/2017,,18066.14,Other Contracted Services,"391400 - Works - Construction, Repair & Maintenance"
Solihull MBC,Managed Growth and Communities,Highways & Transport Services,Balfour Beatty Living Places Ltd,27/10/2017,,39.86,Other Contracted Services,"391400 - Works - Construction, Repair & Maintenance"
Solihull MBC,Managed Growth and Communities,Highways & Transport Services,Balfour Beatty Living Places Ltd,27/10/2017,,133394.03,Other Contracted Services,"391400 - Works - Construction, Repair & Maintenance"
Solihull MBC,Managed Growth and Communities,Highways & Transport Services,Balfour Beatty Living Places Ltd,27/10/2017,,52754.87,Contractors,"391400 - Works - Construction, Repair & Maintenance"
Solihull MBC,Managed Growth and Communities,Highways & Transport Services,Balfour Beatty Living Places Ltd,27/10/2017,,43630.72,Contractors,"391400 - Works - Construction, Repair & Maintenance"
Solihull MBC,Managed Growth and Communities,Highways & Transport Services,Balfour Beatty Living Places Ltd,27/10/2017,,54258.24,Contractors,"391400 - Works - Construction, Repair & Maintenance"
Solihull MBC,Managed Growth and Communities,Highways & Transport Services,Balfour Beatty Living Places Ltd,27/10/2017,,17489.98,Contractors,"391400 - Works - Construction, Repair & Maintenance"
Solihull MBC,Managed Growth and Communities,Highways & Transport Services,Balfour Beatty Living Places Ltd,27/10/2017,,564.22,Other Contracted Services,"391400 - Works - Construction, Repair & Maintenance"
Solihull MBC,Managed Growth and Communities,Highways & Transport Services,Balfour Beatty Living Places Ltd,27/10/2017,,18975.90,Other Contracted Services,"391400 - Works - Construction, Repair & Maintenance"
Solihull MBC,Managed Growth and Communities,Highways & Transport Services,Balfour Beatty Living Places Ltd,27/10/2017,,284.55,Other Contracted Services,"391400 - Works - Construction, Repair & Maintenance"
Solihull MBC,Managed Growth and Communities,Highways & Transport Services,Balfour Beatty Living Places Ltd,27/10/2017,,86.56,Other Contracted Services,"391400 - Works - Construction, Repair & Maintenance"
Solihull MBC,Managed Growth and Communities,Highways & Transport Services,Balfour Beatty Living Places Ltd,27/10/2017,,374.40,Other Contracted Services,"391400 - Works - Construction, Repair & Maintenance"
Solihull MBC,Managed Growth and Communities,Highways & Transport Services,Balfour Beatty Living Places Ltd,27/10/2017,,17328.85,Contractors,"391400 - Works - Construction, Repair & Maintenance"
Solihull MBC,Managed Growth and Communities,Highways & Transport Services,Balfour Beatty Living Places Ltd,27/10/2017,,145.23,Other Contracted Services,"391400 - Works - Construction, Repair & Maintenance"
Solihull MBC,Managed Growth and Communities,Highways & Transport Services,Balfour Beatty Living Places Ltd,27/10/2017,,182.18,Contractors,"391400 - Works - Construction, Repair & Maintenance"
Solihull MBC,Managed Growth and Communities,Highways & Transport Services,Balfour Beatty Living Places Ltd,27/10/2017,,3411.42,Contractors,"391400 - Works - Construction, Repair & Maintenance"
Solihull MBC,Managed Growth and Communities,Highways & Transport Services,Balfour Beatty Living Places Ltd,27/10/2017,,15891.87,Other Contracted Services,"391400 - Works - Construction, Repair & Maintenance"
Solihull MBC,Managed Growth and Communities,Highways & Transport Services,Balfour Beatty Living Places Ltd,27/10/2017,,1292.43,Other Contracted Services,"391400 - Works - Construction, Repair & Maintenance"
Solihull MBC,Managed Growth and Communities,Highways & Transport Services,Balfour Beatty Living Places Ltd,27/10/2017,,4.96,Other Contracted Services,"391400 - Works - Construction, Repair & Maintenance"
Solihull MBC,Managed Growth and Communities,Highways & Transport Services,Balfour Beatty Living Places Ltd,27/10/2017,,7.44,Other Contracted Services,"391400 - Works - Construction, Repair & Maintenance"
Solihull MBC,Managed Growth and Communities,Highways & Transport Services,Balfour Beatty Living Places Ltd,27/10/2017,,3.72,Other Contracted Services,"391400 - Works - Construction, Repair & Maintenance"
Solihull MBC,Managed Growth and Communities,Highways & Transport Services,Balfour Beatty Living Places Ltd,27/10/2017,,32610.01,Other Contracted Services,"391400 - Works - Construction, Repair & Maintenance"
Solihull MBC,Managed Growth and Communities,Highways & Transport Services,Balfour Beatty Living Places Ltd,27/10/2017,,3.72,Other Contracted Services,"391400 - Works - Construction, Repair & Maintenance"
Solihull MBC,Managed Growth and Communities,Highways & Transport Services,Balfour Beatty Living Places Ltd,27/10/2017,,44462.80,Contractors,"391400 - Works - Construction, Repair & Maintenance"
Solihull MBC,Managed Growth and Communities,Highways & Transport Services,Balfour Beatty Living Places Ltd,27/10/2017,,6.20,Other Contracted Services,"391400 - Works - Construction, Repair & Maintenance"
Solihull MBC,Managed Growth and Communities,Highways & Transport Services,Balfour Beatty Living Places Ltd,27/10/2017,,34.99,Contractors,"391400 - Works - Construction, Repair & Maintenance"
Solihull MBC,Managed Growth and Communities,Highways & Transport Services,Balfour Beatty Living Places Ltd,27/10/2017,,4.34,Other Contracted Services,"391400 - Works - Construction, Repair & Maintenance"
Solihull MBC,Managed Growth and Communities,Highways & Transport Services,Balfour Beatty Living Places Ltd,27/10/2017,,9.30,Other Contracted Services,"391400 - Works - Construction, Repair & Maintenance"
Solihull MBC,Managed Growth and Communities,Highways & Transport Services,Balfour Beatty Living Places Ltd,27/10/2017,,3.72,Contractors,"391400 - Works - Construction, Repair & Maintenance"
Solihull MBC,Managed Growth and Communities,Highways & Transport Services,Balfour Beatty Living Places Ltd,27/10/2017,,4.96,Other Contracted Services,"391400 - Works - Construction, Repair & Maintenance"
Solihull MBC,Managed Growth and Communities,Highways & Transport Services,Balfour Beatty Living Places Ltd,27/10/2017,,33.79,Contractors,"391400 - Works - Construction, Repair & Maintenance"
Solihull MBC,Managed Growth and Communities,Highways & Transport Services,Balfour Beatty Living Places Ltd,27/10/2017,,717.87,Other Contracted Services,"391400 - Works - Construction, Repair & Maintenance"
Solihull MBC,Managed Growth and Communities,Highways & Transport Services,Balfour Beatty Living Places Ltd,27/10/2017,,14730.26,Other Contracted Services,"391400 - Works - Construction, Repair & Maintenance"
Solihull MBC,Managed Growth and Communities,Highways & Transport Services,Balfour Beatty Living Places Ltd,27/10/2017,,9879.00,Other Contracted Services,"391400 - Works - Construction, Repair & Maintenance"
Solihull MBC,Managed Growth and Communities,Highways & Transport Services,Balfour Beatty Living Places Ltd,27/10/2017,,33.79,Contractors,"391400 - Works - Construction, Repair & Maintenance"
Solihull MBC,Managed Growth and Communities,Highways & Transport Services,Balfour Beatty Living Places Ltd,27/10/2017,,6.20,Other Contracted Services,"391400 - Works - Construction, Repair & Maintenance"
Solihull MBC,Managed Growth and Communities,Highways & Transport Services,Balfour Beatty Living Places Ltd,27/10/2017,,190.38,Other Contracted Services,"391400 - Works - Construction, Repair & Maintenance"
Solihull MBC,Managed Growth and Communities,Highways & Transport Services,Balfour Beatty Living Places Ltd,27/10/2017,,34.99,Contractors,"391400 - Works - Construction, Repair & Maintenance"
Solihull MBC,Managed Growth and Communities,Highways & Transport Services,Balfour Beatty Living Places Ltd,27/10/2017,,211.69,Other Contracted Services,"391400 - Works - Construction, Repair & Maintenance"
Solihull MBC,Managed Growth and Communities,Highways & Transport Services,Balfour Beatty Living Places Ltd,27/10/2017,,31733.35,Other Contracted Services,"391400 - Works - Construction, Repair & Maintenance"
Solihull MBC,Managed Growth and Communities,Highways & Transport Services,Balfour Beatty Living Places Ltd,27/10/2017,,35206.53,Other Contracted Services,"391400 - Works - Construction, Repair & Maintenance"
Solihull MBC,Managed Growth and Communities,Highways & Transport Services,Balfour Beatty Living Places Ltd,27/10/2017,,214.04,Other Contracted Services,"391400 - Works - Construction, Repair & Maintenance"
Solihull MBC,Managed Growth and Communities,Highways & Transport Services,Balfour Beatty Living Places Ltd,27/10/2017,,149.32,Other Contracted Services,"391400 - Works - Construction, Repair & Maintenance"
Solihull MBC,Managed Growth and Communities,Highways & Transport Services,Balfour Beatty Living Places Ltd,27/10/2017,,90.93,Other Contracted Services,"391400 - Works - Construction, Repair & Maintenance"
Solihull MBC,Managed Growth and Communities,Highways & Transport Services,Balfour Beatty Living Places Ltd,27/10/2017,,7.06,Other Contracted Services,"391400 - Works - Construction, Repair & Maintenance"
Solihull MBC,Managed Growth and Communities,Highways & Transport Services,Balfour Beatty Living Places Ltd,27/10/2017,,60.62,Other Contracted Services,"391400 - Works - Construction, Repair & Maintenance"
Solihull MBC,Managed Growth and Communities,Highways & Transport Services,Balfour Beatty Living Places Ltd,27/10/2017,,723.42,Other Contracted Services,"391400 - Works - Construction, Repair & Maintenance"
Solihull MBC,Managed Growth and Communities,Highways & Transport Services,Balfour Beatty Living Places Ltd,27/10/2017,,181.86,Other Contracted Services,"391400 - Works - Construction, Repair & Maintenance"
Solihull MBC,Managed Growth and Communities,Highways & Transport Services,Balfour Beatty Living Places Ltd,27/10/2017,,437.29,Other Contracted Services,"391400 - Works - Construction, Repair & Maintenance"
Solihull MBC,Managed Growth and Communities,Highways & Transport Services,Balfour Beatty Living Places Ltd,27/10/2017,,50.94,Other Contracted Services,"391400 - Works - Construction, Repair & Maintenance"
Solihull MBC,Managed Growth and Communities,Highways & Transport Services,Balfour Beatty Living Places Ltd,27/10/2017,,18.28,Other Contracted Services,"391400 - Works - Construction, Repair & Maintenance"
Solihull MBC,Managed Growth and Communities,Highways & Transport Services,Balfour Beatty Living Places Ltd,27/10/2017,,724.12,Other Contracted Services,"391400 - Works - Construction, Repair & Maintenance"
Solihull MBC,Managed Growth and Communities,Highways & Transport Services,Balfour Beatty Living Places Ltd,27/10/2017,,181.86,Other Contracted Services,"391400 - Works - Construction, Repair & Maintenance"
Solihull MBC,Managed Growth and Communities,Highways & Transport Services,Balfour Beatty Living Places Ltd,27/10/2017,,253.14,Other Contracted Services,"391400 - Works - Construction, Repair & Maintenance"
Solihull MBC,Managed Growth and Communities,Highways & Transport Services,Balfour Beatty Living Places Ltd,27/10/2017,,354.94,Other Contracted Services,"391400 - Works - Construction, Repair & Maintenance"
Solihull MBC,Managed Growth and Communities,Highways & Transport Services,Balfour Beatty Living Places Ltd,27/10/2017,,71.89,Other Contracted Services,"391400 - Works - Construction, Repair & Maintenance"
Solihull MBC,Managed Growth and Communities,Highways & Transport Services,Balfour Beatty Living Places Ltd,27/10/2017,,71.89,Other Contracted Services,"391400 - Works - Construction, Repair & Maintenance"
Solihull MBC,Managed Growth and Communities,Highways & Transport Services,Balfour Beatty Living Places Ltd,27/10/2017,,6165.39,Other Contracted Services,"391400 - Works - Construction, Repair & Maintenance"
Solihull MBC,Managed Growth and Communities,Highways & Transport Services,Balfour Beatty Living Places Ltd,27/10/2017,,81.61,Other Contracted Services,"391400 - Works - Construction, Repair & Maintenance"
Solihull MBC,Managed Growth and Communities,Highways & Transport Services,Balfour Beatty Living Places Ltd,27/10/2017,,249.64,Other Contracted Services,"391400 - Works - Construction, Repair & Maintenance"
Solihull MBC,Managed Growth and Communities,Highways & Transport Services,Balfour Beatty Living Places Ltd,27/10/2017,,425.60,Other Contracted Services,"391400 - Works - Construction, Repair & Maintenance"
Solihull MBC,Managed Growth and Communities,Highways & Transport Services,Balfour Beatty Living Places Ltd,27/10/2017,,213.10,Other Contracted Services,"391400 - Works - Construction, Repair & Maintenance"
Solihull MBC,Managed Growth and Communities,Highways & Transport Services,Balfour Beatty Living Places Ltd,27/10/2017,,275.28,Other Contracted Services,"391400 - Works - Construction, Repair & Maintenance"
Solihull MBC,Managed Growth and Communities,Highways & Transport Services,Balfour Beatty Living Places Ltd,27/10/2017,,3498.93,Contractors,"391400 - Works - Construction, Repair & Maintenance"
Solihull MBC,Managed Growth and Communities,Highways & Transport Services,Balfour Beatty Living Places Ltd,27/10/2017,,937.79,Contractors,"391400 - Works - Construction, Repair & Maintenance"
Solihull MBC,Managed Growth and Communities,Highways & Transport Services,Balfour Beatty Living Places Ltd,27/10/2017,,1000.77,Contractors,"391400 - Works - Construction, Repair & Maintenance"
Solihull MBC,Managed Growth and Communities,Highways & Transport Services,Balfour Beatty Living Places Ltd,27/10/2017,,322.48,Contractors,"391400 - Works - Construction, Repair & Maintenance"
Solihull MBC,Managed Growth and Communities,Highways & Transport Services,Balfour Beatty Living Places Ltd,27/10/2017,,200.52,Contractors,"391400 - Works - Construction, Repair & Maintenance"
Solihull MBC,Managed Growth and Communities,Highways & Transport Services,Balfour Beatty Living Places Ltd,27/10/2017,,280.80,Other Contracted Services,"391400 - Works - Construction, Repair & Maintenance"
Solihull MBC,Managed Growth and Communities,Highways & Transport Services,Balfour Beatty Living Places Ltd,27/10/2017,,610.58,Other Contracted Services,"391400 - Works - Construction, Repair & Maintenance"
Solihull MBC,Managed Growth and Communities,Highways & Transport Services,Balfour Beatty Living Places Ltd,27/10/2017,,10.73,Other Contracted Services,"391400 - Works - Construction, Repair & Maintenance"
Solihull MBC,Managed Growth and Communities,Highways & Transport Services,Balfour Beatty Living Places Ltd,27/10/2017,,168.87,Other Contracted Services,"391400 - Works - Construction, Repair & Maintenance"
Solihull MBC,Managed Growth and Communities,Highways & Transport Services,Balfour Beatty Living Places Ltd,27/10/2017,,46.60,Other Contracted Services,"391400 - Works - Construction, Repair & Maintenance"
Solihull MBC,Managed Growth and Communities,Highways & Transport Services,Balfour Beatty Living Places Ltd,27/10/2017,,221.45,Other Contracted Services,"391400 - Works - Construction, Repair & Maintenance"
Solihull MBC,Managed Growth and Communities,Highways & Transport Services,Balfour Beatty Living Places Ltd,27/10/2017,,221.45,Other Contracted Services,"391400 - Works - Construction, Repair & Maintenance"
Solihull MBC,Managed Growth and Communities,Highways & Transport Services,Balfour Beatty Living Places Ltd,27/10/2017,,221.45,Other Contracted Services,"391400 - Works - Construction, Repair & Maintenance"
Solihull MBC,Managed Growth and Communities,Highways & Transport Services,Balfour Beatty Living Places Ltd,27/10/2017,,71.89,Other Contracted Services,"391400 - Works - Construction, Repair & Maintenance"
Solihull MBC,Managed Growth and Communities,Highways & Transport Services,Balfour Beatty Living Places Ltd,27/10/2017,,146.48,Other Contracted Services,"391400 - Works - Construction, Repair & Maintenance"
Solihull MBC,Managed Growth and Communities,Highways & Transport Services,Balfour Beatty Living Places Ltd,27/10/2017,,4.34,Other Contracted Services,"391400 - Works - Construction, Repair & Maintenance"
Solihull MBC,Managed Growth and Communities,Highways & Transport Services,Balfour Beatty Living Places Ltd,27/10/2017,,956.93,Other Contracted Services,"391400 - Works - Construction, Repair & Maintenance"
Solihull MBC,Managed Growth and Communities,Highways & Transport Services,Balfour Beatty Living Places Ltd,27/10/2017,,253.14,Other Contracted Services,"391400 - Works - Construction, Repair & Maintenance"
Solihull MBC,Managed Growth and Communities,Highways & Transport Services,Balfour Beatty Living Places Ltd,27/10/2017,,14.07,Other Contracted Services,"391400 - Works - Construction, Repair & Maintenance"
Solihull MBC,Managed Growth and Communities,Highways & Transport Services,Balfour Beatty Living Places Ltd,27/10/2017,,24.54,Other Contracted Services,"391400 - Works - Construction, Repair & Maintenance"
Solihull MBC,Managed Growth and Communities,Highways & Transport Services,Balfour Beatty Living Places Ltd,27/10/2017,,3.10,Other Contracted Services,"391400 - Works - Construction, Repair & Maintenance"
Solihull MBC,Managed Growth and Communities,Highways & Transport Services,Balfour Beatty Living Places Ltd,27/10/2017,,50.94,Other Contracted Services,"391400 - Works - Construction, Repair & Maintenance"
Solihull MBC,Managed Growth and Communities,Highways & Transport Services,Balfour Beatty Living Places Ltd,27/10/2017,,348.86,Other Contracted Services,"391400 - Works - Construction, Repair & Maintenance"
Solihull MBC,Managed Growth and Communities,Highways & Transport Services,Balfour Beatty Living Places Ltd,27/10/2017,,26.46,Other Contracted Services,"391400 - Works - Construction, Repair & Maintenance"
Solihull MBC,Managed Growth and Communities,Highways & Transport Services,Balfour Beatty Living Places Ltd,27/10/2017,,122.70,Other Contracted Services,"391400 - Works - Construction, Repair & Maintenance"
Solihull MBC,Managed Growth and Communities,Highways & Transport Services,Balfour Beatty Living Places Ltd,27/10/2017,,122.70,Other Contracted Services,"391400 - Works - Construction, Repair & Maintenance"
Solihull MBC,Managed Growth and Communities,Highways & Transport Services,Balfour Beatty Living Places Ltd,27/10/2017,,49.08,Other Contracted Services,"391400 - Works - Construction, Repair & Maintenance"
Solihull MBC,Managed Growth and Communities,Highways & Transport Services,Balfour Beatty Living Places Ltd,27/10/2017,,64.92,Other Contracted Services,"391400 - Works - Construction, Repair & Maintenance"
Solihull MBC,Managed Growth and Communities,Highways & Transport Services,Balfour Beatty Living Places Ltd,27/10/2017,,56.29,Other Contracted Services,"391400 - Works - Construction, Repair & Maintenance"
Solihull MBC,Managed Growth and Communities,Highways & Transport Services,Balfour Beatty Living Places Ltd,27/10/2017,,3858.65,Other Contracted Services,"391400 - Works - Construction, Repair & Maintenance"
Solihull MBC,Managed Growth and Communities,Highways & Transport Services,Balfour Beatty Living Places Ltd,27/10/2017,,31.26,Other Contracted Services,"391400 - Works - Construction, Repair & Maintenance"
Solihull MBC,Managed Growth and Communities,Highways & Transport Services,Balfour Beatty Living Places Ltd,27/10/2017,,146.48,Other Contracted Services,"391400 - Works - Construction, Repair & Maintenance"
Solihull MBC,Managed Growth and Communities,Highways & Transport Services,Balfour Beatty Living Places Ltd,27/10/2017,,36.38,Other Contracted Services,"391400 - Works - Construction, Repair & Maintenance"
Solihull MBC,Managed Growth and Communities,Highways & Transport Services,Balfour Beatty Living Places Ltd,27/10/2017,,81.80,Other Contracted Services,"391400 - Works - Construction, Repair & Maintenance"
Solihull MBC,Managed Growth and Communities,Highways & Transport Services,Balfour Beatty Living Places Ltd,27/10/2017,,184.05,Other Contracted Services,"391400 - Works - Construction, Repair & Maintenance"
Solihull MBC,Managed Growth and Communities,Highways & Transport Services,Balfour Beatty Living Places Ltd,27/10/2017,,122.70,Other Contracted Services,"391400 - Works - Construction, Repair & Maintenance"
Solihull MBC,Managed Growth and Communities,Highways & Transport Services,Balfour Beatty Living Places Ltd,27/10/2017,,10.59,Other Contracted Services,"391400 - Works - Construction, Repair & Maintenance"
Solihull MBC,Managed Growth and Communities,Highways & Transport Services,Balfour Beatty Living Places Ltd,27/10/2017,,46.60,Other Contracted Services,"391400 - Works - Construction, Repair & Maintenance"
Solihull MBC,Managed Growth and Communities,Highways & Transport Services,Balfour Beatty Living Places Ltd,27/10/2017,,212.17,Other Contracted Services,"391400 - Works - Construction, Repair & Maintenance"
Solihull MBC,Managed Growth and Communities,Highways & Transport Services,Balfour Beatty Living Places Ltd,27/10/2017,,109.12,Other Contracted Services,"391400 - Works - Construction, Repair & Maintenance"
Solihull MBC,Managed Growth and Communities,Highways & Transport Services,Balfour Beatty Living Places Ltd,27/10/2017,,45.47,Other Contracted Services,"391400 - Works - Construction, Repair & Maintenance"
Solihull MBC,Managed Growth and Communities,Highways & Transport Services,Balfour Beatty Living Places Ltd,27/10/2017,,173.12,Other Contracted Services,"391400 - Works - Construction, Repair & Maintenance"
Solihull MBC,Managed Growth and Communities,Highways & Transport Services,Balfour Beatty Living Places Ltd,27/10/2017,,1215.97,Other Contracted Services,"391400 - Works - Construction, Repair & Maintenance"
Solihull MBC,Managed Growth and Communities,Highways & Transport Services,Balfour Beatty Living Places Ltd,27/10/2017,,60.62,Other Contracted Services,"391400 - Works - Construction, Repair & Maintenance"
Solihull MBC,Managed Growth and Communities,Highways & Transport Services,Balfour Beatty Living Places Ltd,27/10/2017,,19.59,Other Contracted Services,"391400 - Works - Construction, Repair & Maintenance"
Solihull MBC,Managed Growth and Communities,Highways & Transport Services,Balfour Beatty Living Places Ltd,27/10/2017,,71.89,Other Contracted Services,"391400 - Works - Construction, Repair & Maintenance"
Solihull MBC,Managed Growth and Communities,Highways & Transport Services,Balfour Beatty Living Places Ltd,27/10/2017,,71.89,Other Contracted Services,"391400 - Works - Construction, Repair & Maintenance"
Solihull MBC,Managed Growth and Communities,Highways & Transport Services,Balfour Beatty Living Places Ltd,27/10/2017,,56.29,Other Contracted Services,"391400 - Works - Construction, Repair & Maintenance"
Solihull MBC,Managed Growth and Communities,Highways & Transport Services,Balfour Beatty Living Places Ltd,27/10/2017,,118.49,Other Contracted Services,"391400 - Works - Construction, Repair & Maintenance"
Solihull MBC,Managed Growth and Communities,Highways & Transport Services,Balfour Beatty Living Places Ltd,27/10/2017,,148.95,Other Contracted Services,"391400 - Works - Construction, Repair & Maintenance"
Solihull MBC,Managed Growth and Communities,Highways & Transport Services,Balfour Beatty Living Places Ltd,27/10/2017,,46.60,Other Contracted Services,"391400 - Works - Construction, Repair & Maintenance"
Solihull MBC,Managed Growth and Communities,Highways & Transport Services,Balfour Beatty Living Places Ltd,27/10/2017,,143.78,Other Contracted Services,"391400 - Works - Construction, Repair & Maintenance"
Solihull MBC,Managed Growth and Communities,Highways & Transport Services,Balfour Beatty Living Places Ltd,27/10/2017,,25.08,Other Contracted Services,"391400 - Works - Construction, Repair & Maintenance"
Solihull MBC,Managed Growth and Communities,Highways & Transport Services,Balfour Beatty Living Places Ltd,27/10/2017,,40.06,Other Contracted Services,"391400 - Works - Construction, Repair & Maintenance"
Solihull MBC,Managed Growth and Communities,Highways & Transport Services,Balfour Beatty Living Places Ltd,27/10/2017,,47.84,Other Contracted Services,"391400 - Works - Construction, Repair & Maintenance"
Solihull MBC,Managed Growth and Communities,Highways & Transport Services,Balfour Beatty Living Places Ltd,27/10/2017,,139.80,Other Contracted Services,"391400 - Works - Construction, Repair & Maintenance"
Solihull MBC,Managed Growth and Communities,Highways & Transport Services,Balfour Beatty Living Places Ltd,27/10/2017,,3.53,Other Contracted Services,"391400 - Works - Construction, Repair & Maintenance"
Solihull MBC,Managed Growth and Communities,Highways & Transport Services,Balfour Beatty Living Places Ltd,27/10/2017,,121.24,Other Contracted Services,"391400 - Works - Construction, Repair & Maintenance"
Solihull MBC,Managed Growth and Communities,Highways & Transport Services,Balfour Beatty Living Places Ltd,27/10/2017,,71.89,Other Contracted Services,"391400 - Works - Construction, Repair & Maintenance"
Solihull MBC,Managed Growth and Communities,Highways & Transport Services,Balfour Beatty Living Places Ltd,27/10/2017,,1.00,Other Contracted Services,"391400 - Works - Construction, Repair & Maintenance"
Solihull MBC,Managed Growth and Communities,Highways & Transport Services,Balfour Beatty Living Places Ltd,27/10/2017,,130.87,Other Contracted Services,"391400 - Works - Construction, Repair & Maintenance"
Solihull MBC,Managed Growth and Communities,Highways & Transport Services,Balfour Beatty Living Places Ltd,27/10/2017,,154.32,Other Contracted Services,"391400 - Works - Construction, Repair & Maintenance"
Solihull MBC,Managed Growth and Communities,Highways & Transport Services,Balfour Beatty Living Places Ltd,27/10/2017,,81.80,Other Contracted Services,"391400 - Works - Construction, Repair & Maintenance"
Solihull MBC,Managed Growth and Communities,Highways & Transport Services,Balfour Beatty Living Places Ltd,27/10/2017,,121.18,Other Contracted Services,"391400 - Works - Construction, Repair & Maintenance"
Solihull MBC,Managed Growth and Communities,Highways & Transport Services,Balfour Beatty Living Places Ltd,27/10/2017,,240.50,Other Contracted Services,"391400 - Works - Construction, Repair & Maintenance"
Solihull MBC,Managed Growth and Communities,Highways & Transport Services,Balfour Beatty Living Places Ltd,27/10/2017,,18.28,Other Contracted Services,"391400 - Works - Construction, Repair & Maintenance"
Solihull MBC,Managed Growth and Communities,Highways & Transport Services,Balfour Beatty Living Places Ltd,27/10/2017,,9.14,Other Contracted Services,"391400 - Works - Construction, Repair & Maintenance"
Solihull MBC,Managed Growth and Communities,Highways & Transport Services,Balfour Beatty Living Places Ltd,27/10/2017,,260.28,Other Contracted Services,"391400 - Works - Construction, Repair & Maintenance"
Solihull MBC,Managed Growth and Communities,Highways & Transport Services,Balfour Beatty Living Places Ltd,27/10/2017,,71.89,Other Contracted Services,"391400 - Works - Construction, Repair & Maintenance"
Solihull MBC,Managed Growth and Communities,Highways & Transport Services,Balfour Beatty Living Places Ltd,27/10/2017,,151.55,Other Contracted Services,"391400 - Works - Construction, Repair & Maintenance"
Solihull MBC,Managed Growth and Communities,Highways & Transport Services,Balfour Beatty Living Places Ltd,27/10/2017,,87.32,Other Contracted Services,"391400 - Works - Construction, Repair & Maintenance"
Solihull MBC,Managed Growth and Communities,Highways & Transport Services,Balfour Beatty Living Places Ltd,27/10/2017,,95.19,Other Contracted Services,"391400 - Works - Construction, Repair & Maintenance"
Solihull MBC,Managed Growth and Communities,Highways & Transport Services,Balfour Beatty Living Places Ltd,27/10/2017,,212.17,Other Contracted Services,"391400 - Works - Construction, Repair & Maintenance"
Solihull MBC,Managed Growth and Communities,Highways & Transport Services,Balfour Beatty Living Places Ltd,27/10/2017,,242.48,Other Contracted Services,"391400 - Works - Construction, Repair & Maintenance"
Solihull MBC,Managed Growth and Communities,Highways & Transport Services,Balfour Beatty Living Places Ltd,27/10/2017,,257.64,Other Contracted Services,"391400 - Works - Construction, Repair & Maintenance"
Solihull MBC,Managed Growth and Communities,Highways & Transport Services,Balfour Beatty Living Places Ltd,27/10/2017,,60.62,Other Contracted Services,"391400 - Works - Construction, Repair & Maintenance"
Solihull MBC,Managed Growth and Communities,Highways & Transport Services,Balfour Beatty Living Places Ltd,27/10/2017,,42.21,Other Contracted Services,"391400 - Works - Construction, Repair & Maintenance"
Solihull MBC,Managed Growth and Communities,Highways & Transport Services,Balfour Beatty Living Places Ltd,27/10/2017,,42.21,Other Contracted Services,"391400 - Works - Construction, Repair & Maintenance"
Solihull MBC,Managed Growth and Communities,Highways & Transport Services,Balfour Beatty Living Places Ltd,27/10/2017,,295.35,Other Contracted Services,"391400 - Works - Construction, Repair & Maintenance"
Solihull MBC,Managed Growth and Communities,Highways & Transport Services,Balfour Beatty Living Places Ltd,27/10/2017,,242.48,Other Contracted Services,"391400 - Works - Construction, Repair & Maintenance"
Solihull MBC,Managed Growth and Communities,Highways & Transport Services,Balfour Beatty Living Places Ltd,27/10/2017,,253.14,Other Contracted Services,"391400 - Works - Construction, Repair & Maintenance"
Solihull MBC,Managed Growth and Communities,Highways & Transport Services,Balfour Beatty Living Places Ltd,27/10/2017,,97.02,Other Contracted Services,"391400 - Works - Construction, Repair & Maintenance"
Solihull MBC,Managed Growth and Communities,Highways & Transport Services,Balfour Beatty Living Places Ltd,27/10/2017,,213.81,Contractors,"391400 - Works - Construction, Repair & Maintenance"
Solihull MBC,Managed Growth and Communities,Highways & Transport Services,Balfour Beatty Living Places Ltd,27/10/2017,,1.00,Other Contracted Services,"391400 - Works - Construction, Repair & Maintenance"
Solihull MBC,Managed Growth and Communities,Highways & Transport Services,Balfour Beatty Living Places Ltd,27/10/2017,,40.84,Other Contracted Services,"391400 - Works - Construction, Repair & Maintenance"
Solihull MBC,Managed Growth and Communities,Highways & Transport Services,Balfour Beatty Living Places Ltd,27/10/2017,,46.60,Other Contracted Services,"391400 - Works - Construction, Repair & Maintenance"
Solihull MBC,Managed Growth and Communities,Highways & Transport Services,Balfour Beatty Living Places Ltd,27/10/2017,,27.90,Other Contracted Services,"391400 - Works - Construction, Repair & Maintenance"
Solihull MBC,Managed Growth and Communities,Highways & Transport Services,Balfour Beatty Living Places Ltd,27/10/2017,,23.30,Other Contracted Services,"391400 - Works - Construction, Repair & Maintenance"
Solihull MBC,Managed Growth and Communities,Highways & Transport Services,Balfour Beatty Living Places Ltd,27/10/2017,,172.33,Other Contracted Services,"391400 - Works - Construction, Repair & Maintenance"
Solihull MBC,Managed Growth and Communities,Highways & Transport Services,Balfour Beatty Living Places Ltd,27/10/2017,,249.76,Other Contracted Services,"391400 - Works - Construction, Repair & Maintenance"
Solihull MBC,Managed Growth and Communities,Highways & Transport Services,Balfour Beatty Living Places Ltd,27/10/2017,,249.76,Other Contracted Services,"391400 - Works - Construction, Repair & Maintenance"
Solihull MBC,Managed Growth and Communities,Highways & Transport Services,Balfour Beatty Living Places Ltd,27/10/2017,,172.33,Other Contracted Services,"391400 - Works - Construction, Repair & Maintenance"
Solihull MBC,Managed Growth and Communities,Highways & Transport Services,Balfour Beatty Living Places Ltd,27/10/2017,,23.30,Other Contracted Services,"391400 - Works - Construction, Repair & Maintenance"
Solihull MBC,Managed Growth and Communities,Highways & Transport Services,Balfour Beatty Living Places Ltd,27/10/2017,,46.60,Other Contracted Services,"391400 - Works - Construction, Repair & Maintenance"
Solihull MBC,Managed Growth and Communities,Highways & Transport Services,Balfour Beatty Living Places Ltd,27/10/2017,,232.05,Other Contracted Services,"391400 - Works - Construction, Repair & Maintenance"
Solihull MBC,Managed Growth and Communities,Highways & Transport Services,Balfour Beatty Living Places Ltd,27/10/2017,,181.86,Other Contracted Services,"391400 - Works - Construction, Repair & Maintenance"
Solihull MBC,Managed Growth and Communities,Highways & Transport Services,Balfour Beatty Living Places Ltd,27/10/2017,,181.86,Other Contracted Services,"391400 - Works - Construction, Repair & Maintenance"
Solihull MBC,Managed Growth and Communities,Highways & Transport Services,Balfour Beatty Living Places Ltd,27/10/2017,,181.86,Other Contracted Services,"391400 - Works - Construction, Repair & Maintenance"
Solihull MBC,Managed Growth and Communities,Highways & Transport Services,Balfour Beatty Living Places Ltd,27/10/2017,,71.89,Other Contracted Services,"391400 - Works - Construction, Repair & Maintenance"
Solihull MBC,Managed Growth and Communities,Highways & Transport Services,Balfour Beatty Living Places Ltd,27/10/2017,,147.57,Other Contracted Services,"391400 - Works - Construction, Repair & Maintenance"
Solihull MBC,Managed Growth and Communities,Highways & Transport Services,Balfour Beatty Living Places Ltd,27/10/2017,,1.00,Other Contracted Services,"391400 - Works - Construction, Repair & Maintenance"
Solihull MBC,Managed Growth and Communities,Highways & Transport Services,Balfour Beatty Living Places Ltd,27/10/2017,,253.14,Other Contracted Services,"391400 - Works - Construction, Repair & Maintenance"
Solihull MBC,Managed Growth and Communities,Highways & Transport Services,Balfour Beatty Living Places Ltd,27/10/2017,,297.28,Other Contracted Services,"391400 - Works - Construction, Repair & Maintenance"
Solihull MBC,Managed Growth and Communities,Highways & Transport Services,Balfour Beatty Living Places Ltd,27/10/2017,,107.02,Other Contracted Services,"391400 - Works - Construction, Repair & Maintenance"
Solihull MBC,Managed Growth and Communities,Highways & Transport Services,Balfour Beatty Living Places Ltd,27/10/2017,,71.89,Other Contracted Services,"391400 - Works - Construction, Repair & Maintenance"
Solihull MBC,Managed Growth and Communities,Highways & Transport Services,Balfour Beatty Living Places Ltd,27/10/2017,,143.78,Other Contracted Services,"391400 - Works - Construction, Repair & Maintenance"
Solihull MBC,Managed Growth and Communities,Highways & Transport Services,Balfour Beatty Living Places Ltd,27/10/2017,,1.00,Other Contracted Services,"391400 - Works - Construction, Repair & Maintenance"
Solihull MBC,Managed Growth and Communities,Highways & Transport Services,Balfour Beatty Living Places Ltd,27/10/2017,,365.23,Other Contracted Services,"391400 - Works - Construction, Repair & Maintenance"
Solihull MBC,Managed Growth and Communities,Highways & Transport Services,Balfour Beatty Living Places Ltd,27/10/2017,,82.86,Other Contracted Services,"391400 - Works - Construction, Repair & Maintenance"
Solihull MBC,Managed Growth and Communities,Highways & Transport Services,Balfour Beatty Living Places Ltd,27/10/2017,,60.30,Other Contracted Services,"391400 - Works - Construction, Repair & Maintenance"
Solihull MBC,Managed Growth and Communities,Highways & Transport Services,Balfour Beatty Living Places Ltd,27/10/2017,,46.60,Other Contracted Services,"391400 - Works - Construction, Repair & Maintenance"
Solihull MBC,Managed Growth and Communities,Highways & Transport Services,Balfour Beatty Living Places Ltd,27/10/2017,,167.08,Other Contracted Services,"391400 - Works - Construction, Repair & Maintenance"
Solihull MBC,Managed Growth and Communities,Highways & Transport Services,Balfour Beatty Living Places Ltd,27/10/2017,,20.92,Other Contracted Services,"391400 - Works - Construction, Repair & Maintenance"
Solihull MBC,Managed Growth and Communities,Highways & Transport Services,Balfour Beatty Living Places Ltd,27/10/2017,,71.89,Other Contracted Services,"391400 - Works - Construction, Repair & Maintenance"
Solihull MBC,Managed Growth and Communities,Highways & Transport Services,Balfour Beatty Living Places Ltd,27/10/2017,,221.45,Other Contracted Services,"391400 - Works - Construction, Repair & Maintenance"
Solihull MBC,Managed Growth and Communities,Highways & Transport Services,Balfour Beatty Living Places Ltd,27/10/2017,,1.00,Other Contracted Services,"391400 - Works - Construction, Repair & Maintenance"
Solihull MBC,Managed Growth and Communities,Highways & Transport Services,Balfour Beatty Living Places Ltd,27/10/2017,,71.89,Other Contracted Services,"391400 - Works - Construction, Repair & Maintenance"
Solihull MBC,Managed Growth and Communities,Highways & Transport Services,Balfour Beatty Living Places Ltd,27/10/2017,,147.57,Other Contracted Services,"391400 - Works - Construction, Repair & Maintenance"
Solihull MBC,Managed Growth and Communities,Highways & Transport Services,Balfour Beatty Living Places Ltd,27/10/2017,,46.60,Other Contracted Services,"391400 - Works - Construction, Repair & Maintenance"
Solihull MBC,Managed Growth and Communities,Highways & Transport Services,Balfour Beatty Living Places Ltd,27/10/2017,,71.89,Other Contracted Services,"391400 - Works - Construction, Repair & Maintenance"
Solihull MBC,Managed Growth and Communities,Highways & Transport Services,Balfour Beatty Living Places Ltd,27/10/2017,,287.56,Other Contracted Services,"391400 - Works - Construction, Repair & Maintenance"
Solihull MBC,Managed Growth and Communities,Highways & Transport Services,Balfour Beatty Living Places Ltd,27/10/2017,,112.58,Other Contracted Services,"391400 - Works - Construction, Repair & Maintenance"
Solihull MBC,Managed Growth and Communities,Highways & Transport Services,Balfour Beatty Living Places Ltd,27/10/2017,,1.00,Other Contracted Services,"391400 - Works - Construction, Repair & Maintenance"
Solihull MBC,Managed Growth and Communities,Highways & Transport Services,Balfour Beatty Living Places Ltd,27/10/2017,,71.89,Other Contracted Services,"391400 - Works - Construction, Repair & Maintenance"
Solihull MBC,Managed Growth and Communities,Highways & Transport Services,Balfour Beatty Living Places Ltd,27/10/2017,,154.26,Other Contracted Services,"391400 - Works - Construction, Repair & Maintenance"
Solihull MBC,Managed Growth and Communities,Highways & Transport Services,Balfour Beatty Living Places Ltd,27/10/2017,,80.68,Other Contracted Services,"391400 - Works - Construction, Repair & Maintenance"
Solihull MBC,Managed Growth and Communities,Highways & Transport Services,Balfour Beatty Living Places Ltd,27/10/2017,,294.48,Other Contracted Services,"391400 - Works - Construction, Repair & Maintenance"
Solihull MBC,Managed Growth and Communities,Highways & Transport Services,Balfour Beatty Living Places Ltd,27/10/2017,,71.89,Other Contracted Services,"391400 - Works - Construction, Repair & Maintenance"
Solihull MBC,Managed Growth and Communities,Highways & Transport Services,Balfour Beatty Living Places Ltd,27/10/2017,,318.84,Other Contracted Services,"391400 - Works - Construction, Repair & Maintenance"
Solihull MBC,Managed Growth and Communities,Highways & Transport Services,Balfour Beatty Living Places Ltd,27/10/2017,,71.89,Other Contracted Services,"391400 - Works - Construction, Repair & Maintenance"
Solihull MBC,Managed Growth and Communities,Highways & Transport Services,Balfour Beatty Living Places Ltd,27/10/2017,,287.64,Other Contracted Services,"391400 - Works - Construction, Repair & Maintenance"
Solihull MBC,Managed Growth and Communities,Highways & Transport Services,Balfour Beatty Living Places Ltd,27/10/2017,,46.60,Other Contracted Services,"391400 - Works - Construction, Repair & Maintenance"
Solihull MBC,Managed Growth and Communities,Highways & Transport Services,Balfour Beatty Living Places Ltd,27/10/2017,,342.99,Other Contracted Services,"391400 - Works - Construction, Repair & Maintenance"
Solihull MBC,Managed Growth and Communities,Highways & Transport Services,Balfour Beatty Living Places Ltd,27/10/2017,,56.29,Other Contracted Services,"391400 - Works - Construction, Repair & Maintenance"
Solihull MBC,Managed Growth and Communities,Highways & Transport Services,Balfour Beatty Living Places Ltd,27/10/2017,,56.29,Other Contracted Services,"391400 - Works - Construction, Repair & Maintenance"
Solihull MBC,Managed Growth and Communities,Highways & Transport Services,Balfour Beatty Living Places Ltd,27/10/2017,,224.57,Other Contracted Services,"391400 - Works - Construction, Repair & Maintenance"
Solihull MBC,Managed Growth and Communities,Highways & Transport Services,Balfour Beatty Living Places Ltd,27/10/2017,,27.90,Other Contracted Services,"391400 - Works - Construction, Repair & Maintenance"
Solihull MBC,Managed Growth and Communities,Highways & Transport Services,Balfour Beatty Living Places Ltd,27/10/2017,,436.80,Other Contracted Services,"391400 - Works - Construction, Repair & Maintenance"
Solihull MBC,Managed Growth and Communities,Highways & Transport Services,Balfour Beatty Living Places Ltd,27/10/2017,,57.91,Other Contracted Services,"391400 - Works - Construction, Repair & Maintenance"
Solihull MBC,Managed Growth and Communities,Highways & Transport Services,Balfour Beatty Living Places Ltd,27/10/2017,,65.57,Other Contracted Services,"391400 - Works - Construction, Repair & Maintenance"
Solihull MBC,Managed Growth and Communities,Highways & Transport Services,Balfour Beatty Living Places Ltd,27/10/2017,,20.03,Other Contracted Services,"391400 - Works - Construction, Repair & Maintenance"
Solihull MBC,Managed Growth and Communities,Highways & Transport Services,Balfour Beatty Living Places Ltd,27/10/2017,,155.29,Other Contracted Services,"391400 - Works - Construction, Repair & Maintenance"
Solihull MBC,Managed Growth and Communities,Highways & Transport Services,Balfour Beatty Living Places Ltd,27/10/2017,,143.78,Other Contracted Services,"391400 - Works - Construction, Repair & Maintenance"
Solihull MBC,Managed Growth and Communities,Highways & Transport Services,Balfour Beatty Living Places Ltd,27/10/2017,,50.94,Other Contracted Services,"391400 - Works - Construction, Repair & Maintenance"
Solihull MBC,Managed Growth and Communities,Highways & Transport Services,Balfour Beatty Living Places Ltd,27/10/2017,,26.25,Contractors,"391400 - Works - Construction, Repair & Maintenance"
Solihull MBC,Managed Growth and Communities,Highways & Transport Services,Balfour Beatty Living Places Ltd,27/10/2017,,35.00,Contractors,"391400 - Works - Construction, Repair & Maintenance"
Solihull MBC,Managed Growth and Communities,Highways & Transport Services,Balfour Beatty Living Places Ltd,27/10/2017,,121.28,Other Contracted Services,"391400 - Works - Construction, Repair & Maintenance"
Solihull MBC,Managed Growth and Communities,Highways & Transport Services,Balfour Beatty Living Places Ltd,27/10/2017,,91.33,Other Contracted Services,"391400 - Works - Construction, Repair & Maintenance"
Solihull MBC,Managed Growth and Communities,Highways & Transport Services,Balfour Beatty Living Places Ltd,27/10/2017,,77.49,Other Contracted Services,"391400 - Works - Construction, Repair & Maintenance"
Solihull MBC,Managed Growth and Communities,Highways & Transport Services,Balfour Beatty Living Places Ltd,27/10/2017,,172.33,Other Contracted Services,"391400 - Works - Construction, Repair & Maintenance"
Solihull MBC,Managed Growth and Communities,Highways & Transport Services,Balfour Beatty Living Places Ltd,27/10/2017,,154.36,Other Contracted Services,"391400 - Works - Construction, Repair & Maintenance"
Solihull MBC,Managed Growth and Communities,Highways & Transport Services,Balfour Beatty Living Places Ltd,27/10/2017,,122.70,Other Contracted Services,"391400 - Works - Construction, Repair & Maintenance"
Solihull MBC,Managed Growth and Communities,Highways & Transport Services,Balfour Beatty Living Places Ltd,27/10/2017,,34.42,Other Contracted Services,"391400 - Works - Construction, Repair & Maintenance"
Solihull MBC,Managed Growth and Communities,Highways & Transport Services,Balfour Beatty Living Places Ltd,27/10/2017,,107.02,Other Contracted Services,"391400 - Works - Construction, Repair & Maintenance"
Solihull MBC,Managed Growth and Communities,Highways & Transport Services,Balfour Beatty Living Places Ltd,27/10/2017,,1.00,Other Contracted Services,"391400 - Works - Construction, Repair & Maintenance"
Solihull MBC,Managed Growth and Communities,Highways & Transport Services,Balfour Beatty Living Places Ltd,27/10/2017,,152.23,Other Contracted Services,"391400 - Works - Construction, Repair & Maintenance"
Solihull MBC,Managed Growth and Communities,Highways & Transport Services,Balfour Beatty Living Places Ltd,27/10/2017,,202.06,Other Contracted Services,"391400 - Works - Construction, Repair & Maintenance"
Solihull MBC,Managed Growth and Communities,Highways & Transport Services,Balfour Beatty Living Places Ltd,27/10/2017,,71.89,Other Contracted Services,"391400 - Works - Construction, Repair & Maintenance"
Solihull MBC,Managed Growth and Communities,Highways & Transport Services,Balfour Beatty Living Places Ltd,27/10/2017,,15.89,Other Contracted Services,"391400 - Works - Construction, Repair & Maintenance"
Solihull MBC,Managed Growth and Communities,Highways & Transport Services,Balfour Beatty Living Places Ltd,27/10/2017,,34.42,Other Contracted Services,"391400 - Works - Construction, Repair & Maintenance"
Solihull MBC,Managed Growth and Communities,Highways & Transport Services,Balfour Beatty Living Places Ltd,27/10/2017,,1.00,Other Contracted Services,"391400 - Works - Construction, Repair & Maintenance"
Solihull MBC,Managed Growth and Communities,Highways & Transport Services,Balfour Beatty Living Places Ltd,27/10/2017,,33.52,Other Contracted Services,"391400 - Works - Construction, Repair & Maintenance"
Solihull MBC,Managed Growth and Communities,Highways & Transport Services,Balfour Beatty Living Places Ltd,27/10/2017,,38.75,Other Contracted Services,"391400 - Works - Construction, Repair & Maintenance"
Solihull MBC,Managed Growth and Communities,Highways & Transport Services,Balfour Beatty Living Places Ltd,27/10/2017,,168.87,Other Contracted Services,"391400 - Works - Construction, Repair & Maintenance"
Solihull MBC,Managed Growth and Communities,Highways & Transport Services,Balfour Beatty Living Places Ltd,27/10/2017,,107.02,Other Contracted Services,"391400 - Works - Construction, Repair & Maintenance"
Solihull MBC,Managed Growth and Communities,Highways & Transport Services,Balfour Beatty Living Places Ltd,27/10/2017,,10.96,Other Contracted Services,"391400 - Works - Construction, Repair & Maintenance"
Solihull MBC,Managed Growth and Communities,Highways & Transport Services,Balfour Beatty Living Places Ltd,27/10/2017,,172.86,Other Contracted Services,"391400 - Works - Construction, Repair & Maintenance"
Solihull MBC,Managed Growth and Communities,Highways & Transport Services,Balfour Beatty Living Places Ltd,27/10/2017,,71.89,Other Contracted Services,"391400 - Works - Construction, Repair & Maintenance"
Solihull MBC,Managed Growth and Communities,Highways & Transport Services,Balfour Beatty Living Places Ltd,27/10/2017,,10.96,Other Contracted Services,"391400 - Works - Construction, Repair & Maintenance"
Solihull MBC,Managed Growth and Communities,Highways & Transport Services,Balfour Beatty Living Places Ltd,27/10/2017,,63.29,Other Contracted Services,"391400 - Works - Construction, Repair & Maintenance"
Solihull MBC,Managed Growth and Communities,Highways & Transport Services,Balfour Beatty Living Places Ltd,27/10/2017,,1.00,Other Contracted Services,"391400 - Works - Construction, Repair & Maintenance"
Solihull MBC,Managed Growth and Communities,Highways & Transport Services,Balfour Beatty Living Places Ltd,27/10/2017,,25.08,Other Contracted Services,"391400 - Works - Construction, Repair & Maintenance"
Solihull MBC,Managed Growth and Communities,Highways & Transport Services,Balfour Beatty Living Places Ltd,27/10/2017,,-6086.87,Other Contracted Services,"391400 - Works - Construction, Repair & Maintenance"
Solihull MBC,Managed Growth and Communities,Highways & Transport Services,Balfour Beatty Living Places Ltd,27/10/2017,,9.96,Other Contracted Services,"391400 - Works - Construction, Repair & Maintenance"
Solihull MBC,Managed Growth and Communities,Highways & Transport Services,Balfour Beatty Living Places Ltd,27/10/2017,,88.14,Other Contracted Services,"391400 - Works - Construction, Repair & Maintenance"
Solihull MBC,Managed Growth and Communities,Highways & Transport Services,Balfour Beatty Living Places Ltd,27/10/2017,,7768.66,Other Contracted Services,"391400 - Works - Construction, Repair & Maintenance"
Solihull MBC,Managed Growth and Communities,Highways & Transport Services,Balfour Beatty Living Places Ltd,27/10/2017,,9623.61,Other Contracted Services,"391400 - Works - Construction, Repair & Maintenance"
Solihull MBC,Managed Growth and Communities,Highways & Transport Services,Balfour Beatty Living Places Ltd,27/10/2017,,528.48,Other Contracted Services,"391400 - Works - Construction, Repair & Maintenance"
Solihull MBC,Managed Growth and Communities,Highways & Transport Services,Balfour Beatty Living Places Ltd,27/10/2017,,10157.31,Other Contracted Services,"391400 - Works - Construction, Repair & Maintenance"
Solihull MBC,Managed Growth and Communities,Highways & Transport Services,Balfour Beatty Living Places Ltd,27/10/2017,,130.02,Other Contracted Services,"391400 - Works - Construction, Repair & Maintenance"
Solihull MBC,Managed Growth and Communities,Highways & Transport Services,Balfour Beatty Living Places Ltd,27/10/2017,,7242.19,Other Contracted Services,"391400 - Works - Construction, Repair & Maintenance"
Solihull MBC,Managed Growth and Communities,Highways & Transport Services,Balfour Beatty Living Places Ltd,27/10/2017,,469.76,Other Contracted Services,"391400 - Works - Construction, Repair & Maintenance"
Solihull MBC,Managed Growth and Communities,Highways & Transport Services,Balfour Beatty Living Places Ltd,27/10/2017,,1729.86,Other Contracted Services,"391400 - Works - Construction, Repair & Maintenance"
Solihull MBC,Managed Growth and Communities,Highways & Transport Services,Balfour Beatty Living Places Ltd,27/10/2017,,105.02,Other Contracted Services,"391400 - Works - Construction, Repair & Maintenance"
Solihull MBC,Managed Growth and Communities,Highways & Transport Services,Balfour Beatty Living Places Ltd,27/10/2017,,113.98,Other Contracted Services,"391400 - Works - Construction, Repair & Maintenance"
Solihull MBC,Managed Growth and Communities,Highways & Transport Services,Balfour Beatty Living Places Ltd,27/10/2017,,265600.52,Contractors,"391400 - Works - Construction, Repair & Maintenance"
Solihull MBC,Managed Growth and Communities,Highways & Transport Services,Balfour Beatty Living Places Ltd,27/10/2017,,607.80,Other Contracted Services,"391400 - Works - Construction, Repair & Maintenance"
Solihull MBC,Managed Growth and Communities,Highways & Transport Services,Balfour Beatty Living Places Ltd,27/10/2017,,58.08,Other Contracted Services,"391400 - Works - Construction, Repair & Maintenance"
Solihull MBC,Managed Growth and Communities,Highways & Transport Services,Balfour Beatty Living Places Ltd,27/10/2017,,127774.32,Contractors,"391400 - Works - Construction, Repair & Maintenance"
Solihull MBC,Managed Growth and Communities,Highways & Transport Services,Balfour Beatty Living Places Ltd,27/10/2017,,1549.89,Other Contracted Services,"391400 - Works - Construction, Repair & Maintenance"
Solihull MBC,Managed Growth and Communities,Highways & Transport Services,Balfour Beatty Living Places Ltd,27/10/2017,,4694.53,Contractors,"391400 - Works - Construction, Repair & Maintenance"
Solihull MBC,Managed Growth and Communities,Highways & Transport Services,Balfour Beatty Living Places Ltd,27/10/2017,,4102.00,Contractors,"391400 - Works - Construction, Repair & Maintenance"
Solihull MBC,Managed Growth and Communities,Highways & Transport Services,Balfour Beatty Living Places Ltd,27/10/2017,,9428.72,Other Contracted Services,"391400 - Works - Construction, Repair & Maintenance"
Solihull MBC,Managed Growth and Communities,Highways & Transport Services,Balfour Beatty Living Places Ltd,27/10/2017,,66155.12,Contractors,"391400 - Works - Construction, Repair & Maintenance"
Solihull MBC,Managed Growth and Communities,Highways & Transport Services,Balfour Beatty Living Places Ltd,27/10/2017,,296.91,Other Contracted Services,"391400 - Works - Construction, Repair & Maintenance"
Solihull MBC,Managed Growth and Communities,Highways & Transport Services,Balfour Beatty Living Places Ltd,27/10/2017,,1074.62,Other Contracted Services,"391400 - Works - Construction, Repair & Maintenance"
Solihull MBC,Managed Growth and Communities,Highways & Transport Services,Balfour Beatty Living Places Ltd,27/10/2017,,-7680.52,Other Contracted Services,"391400 - Works - Construction, Repair & Maintenance"
Solihull MBC,Managed Growth and Communities,Highways & Transport Services,Balfour Beatty Living Places Ltd,27/10/2017,,-9525.51,Other Contracted Services,"391400 - Works - Construction, Repair & Maintenance"
Solihull MBC,Managed Growth and Communities,Environmental and Regulatory Services,Bannocks Solihull,10/10/2017,,349.00,Materials,120000 - Cemetery & Crematorium 
Solihull MBC,Managed Growth and Communities,Environmental and Regulatory Services,Bannocks Solihull,10/10/2017,,349.00,Materials,120000 - Cemetery & Crematorium 
Solihull MBC,Children's Services & Skills,Children & Education Services,Banya,02/10/2017,,1695.96,External Fostering,Not Yet Classified
Solihull MBC,Children's Services & Skills,Children & Education Services,Banya,02/10/2017,,3565.00,External Fostering,Not Yet Classified
Solihull MBC,Children's Services & Skills,Children & Education Services,Banya,26/10/2017,,3450.00,External Fostering,Not Yet Classified
Solihull MBC,Adult Social Care,Adult Social Care,Barchester Healthcare Homes Ltd,18/10/2017,,5120.00,ASC - Residential Care Permanent,321000 - Social Community Care Supplies & Services - Adult
Solihull MBC,Adult Social Care,Adult Social Care,Barchester Healthcare Homes Ltd,18/10/2017,,3640.00,ASC - Residential Care Permanent,321000 - Social Community Care Supplies & Services - Adult
Solihull MBC,Adult Social Care,Adult Social Care,Barchester Healthcare Homes Ltd,18/10/2017,,4400.00,ASC - Residential Care Permanent,321000 - Social Community Care Supplies & Services - Adult
Solihull MBC,Adult Social Care,Adult Social Care,Barchester Healthcare Homes Ltd,18/10/2017,,4157.56,ASC - Residential Care Permanent,321000 - Social Community Care Supplies & Services - Adult
Solihull MBC,Adult Social Care,Adult Social Care,Barchester Healthcare Homes Ltd,17/10/2017,,5753.88,ASC - Residential Care Permanent,321000 - Social Community Care Supplies & Services - Adult
Solihull MBC,Managed Growth and Communities,Environmental and Regulatory Services,Barclays,10/10/2017,,176.91,Other Fees,Not Yet Classified
Solihull MBC,Managed Growth and Communities,Environmental and Regulatory Services,Barclays,10/10/2017,,50.00,Other Fees,Not Yet Classified
Solihull MBC,Adult Social Care,Cultural & Related Services,Barclays,10/10/2017,,25.00,Other Fees,Not Yet Classified
Solihull MBC,Resources,Central Services to the Public,Barclays,10/10/2017,,5148.90,Other Fees,Not Yet Classified
Solihull MBC,Resources,Central Services to the Public,Barclays,10/10/2017,,54.83,Other Fees,Not Yet Classified
Solihull MBC,Resources,Central Services to the Public,Barclays,10/10/2017,,39.07,Debit Card Charges,Not Yet Classified
Solihull MBC,Adult Social Care,Cultural & Related Services,Barclays,10/10/2017,,405.94,Other Fees,Not Yet Classified
Solihull MBC,Adult Social Care,Cultural & Related Services,Barclays,10/10/2017,,156.70,Other Fees,Not Yet Classified
Solihull MBC,Adult Social Care,Cultural & Related Services,Barclays,10/10/2017,,365.31,Other Fees,Not Yet Classified
Solihull MBC,Adult Social Care,Cultural & Related Services,Barclays,10/10/2017,,0.88,Other Fees,Not Yet Classified
Solihull MBC,Adult Social Care,Cultural & Related Services,Barclays,10/10/2017,,30.00,Other Fees,Not Yet Classified
Solihull MBC,Adult Social Care,Cultural & Related Services,Barclays,10/10/2017,,184.56,Other Fees,Not Yet Classified
Solihull MBC,Adult Social Care,Cultural & Related Services,Barclays,10/10/2017,,50.00,Other Fees,Not Yet Classified
Solihull MBC,Resources,Cultural & Related Services,Barclays,10/10/2017,,116.35,IT Equipment & Software,Not Yet Classified
Solihull MBC,Resources,Cultural & Related Services,Barclays,10/10/2017,,0.06,IT Equipment & Software,Not Yet Classified
Solihull MBC,Resources,Cultural & Related Services,Barclays,10/10/2017,,25.00,IT Equipment & Software,Not Yet Classified
Solihull MBC,Children's Services & Skills,Children & Education Services,Barnardos,25/10/2017,,3697.07,External Fostering,Not Yet Classified
Solihull MBC,Children's Services & Skills,Children & Education Services,Barnardos,09/10/2017,,3338.57,External Fostering,Not Yet Classified
Solihull MBC,Children's Services & Skills,Children & Education Services,Barnardos Midlands,02/10/2017,,3294.86,External Fostering,321100 - Social Community Care Supplies & Services - Children
Solihull MBC,Children's Services & Skills,Children & Education Services,Barnardos Midlands,09/10/2017,,2713.28,External Fostering,321100 - Social Community Care Supplies & Services - Children
Solihull MBC,Children's Services & Skills,Children & Education Services,Barnardos Midlands,18/10/2017,,2867.57,External Fostering,321100 - Social Community Care Supplies & Services - Children
Solihull MBC,Children's Services & Skills,Children & Education Services,Barnardos Midlands,06/10/2017,,3188.57,External Fostering,321100 - Social Community Care Supplies & Services - Children
Solihull MBC,Adult Social Care,Adult Social Care,BCOP-NH3,02/10/2017,,2959.80,ASC - Nursing Care Permanent,Not Yet Classified
Solihull MBC,Adult Social Care,Adult Social Care,Beechcroft Residential Home,11/10/2017,,1592.84,ASC - Residential Care Permanent,321000 - Social Community Care Supplies & Services - Adult
Solihull MBC,Adult Social Care,Adult Social Care,Beechcroft Residential Home,17/10/2017,,1592.84,ASC - Residential Care Permanent,321000 - Social Community Care Supplies & Services - Adult
Solihull MBC,Adult Social Care,Adult Social Care,Ben Motors And Allied Trades Ben Fund,02/10/2017,,3820.00,ASC - Nursing Care Permanent,Not Yet Classified
Solihull MBC,Adult Social Care,Adult Social Care,Ben Motors And Allied Trades Ben Fund,18/10/2017,,3820.00,ASC - Nursing Care Permanent,Not Yet Classified
Solihull MBC,Children's Services & Skills,Children & Education Services,Bennion & McCann Consultancy Ltd,30/10/2017,,440.00,Professional Fees,Not Yet Classified
Solihull MBC,Children's Services & Skills,Children & Education Services,Bentley Federation Childcare Services,26/10/2017,,140.00,Clients Expenses,Not Yet Classified
Solihull MBC,Children's Services & Skills,Children & Education Services,Bentley Federation Childcare Services,26/10/2017,,140.00,Clients Expenses,Not Yet Classified
Solihull MBC,Children's Services & Skills,Children & Education Services,Berben Installations Ltd,09/10/2017,,47662.00,Contractors,"391111 - Works - Construction, Repair & Maintenance - Buildings - Repair & Maintenance"
Solihull MBC,Children's Services & Skills,Children & Education Services,Berben Installations Ltd,17/10/2017,,22428.00,Contractors,"391111 - Works - Construction, Repair & Maintenance - Buildings - Repair & Maintenance"
Solihull MBC,Adult Social Care,Adult Social Care,Bernadette Moylan,24/10/2017,,1441.16,ASC - Supported Living Care Costs,Not Yet Classified
Solihull MBC,Adult Social Care,Adult Social Care,BES Rehab Ltd,18/10/2017,,325.00,Furniture & Equipment,Not Yet Classified
Solihull MBC,Adult Social Care,Adult Social Care,BES Rehab Ltd,18/10/2017,,10.00,Furniture & Equipment,Not Yet Classified
Solihull MBC,Resources,Central Services to the Public,Beyond Systems Ltd,30/10/2017,,2700.00,Hardware,Not Yet Classified
Solihull MBC,Adult Social Care,Adult Social Care,Bionicare,17/10/2017,,4768.00,ASC - Domiciliary Care,321000 - Social Community Care Supplies & Services - Adult
Solihull MBC,Managed Growth and Communities,Environmental and Regulatory Services,Birmingham And Solihull Midweek Conservation Group,05/10/2017,,440.00,Maintenance Of Grounds,"391111 - Works - Construction, Repair & Maintenance - Buildings - Repair & Maintenance"
Solihull MBC,Public Health & Commissioning,Children & Education Services,Birmingham And Solihull Women's Aid,03/10/2017,,45500.00,Other Contracted Services,321000 - Social Community Care Supplies & Services - Adult
Solihull MBC,Public Health & Commissioning,Children & Education Services,Birmingham And Solihull Women's Aid,03/10/2017,,45890.75,Other Contracted Services,321000 - Social Community Care Supplies & Services - Adult
Solihull MBC,Managed Growth and Communities,Planning & Development Services,Birmingham Chamber Of Commerce And Industry,06/10/2017,,495.00,Professional Fees,171011 - Education - School Services
Solihull MBC,Resources,Corporate & Democratic Core,Birmingham City Council,02/10/2017,,12712.00,Other Contracted Services,Not Yet Classified
Solihull MBC,Children's Services - DSG Central.,Children & Education Services,Birmingham City Council,23/10/2017,,4350.00,General Office Expenses,Not Yet Classified
Solihull MBC,Resources,Central Services to the Public,Birmingham City Council,03/10/2017,,5292.16,Postage & Courier Services,Not Yet Classified
Solihull MBC,Adult Social Care,Adult Social Care,Birmingham City Council,18/10/2017,,4727.60,ASC - Residential Care Permanent,Not Yet Classified
Solihull MBC,Children's Services - DSG Central.,Children & Education Services,Birmingham City Council,30/10/2017,,-868.16,Other Contracted Services,Not Yet Classified
Solihull MBC,Children's Services - DSG Central.,Children & Education Services,Birmingham City Council,30/10/2017,,-5064.66,Other Contracted Services,Not Yet Classified
Solihull MBC,Children's Services - DSG Central.,Children & Education Services,Birmingham City Council,30/10/2017,,-868.16,Other Contracted Services,Not Yet Classified
Solihull MBC,Children's Services - DSG Central.,Children & Education Services,Birmingham City Council,30/10/2017,,-5064.66,Other Contracted Services,Not Yet Classified
Solihull MBC,Resources - Non Monitored,Central Services to the Public,Birmingham City Council,11/10/2017,,592.58,General Creditors,Not Yet Classified
Solihull MBC,Managed Growth and Communities,Planning & Development Services,Birmingham City Council,30/10/2017,,5365.71,Grant & Subscription (SCITT),Not Yet Classified
Solihull MBC,Managed Growth and Communities,Planning & Development Services,Birmingham City Council,30/10/2017,,1323.15,Grant & Subscription (SCITT),Not Yet Classified
Solihull MBC,Resources - Non Monitored,Central Services to the Public,Birmingham City Council,19/10/2017,,4453660.00,Parish Precepts,Not Yet Classified
Solihull MBC,Resources,Planning & Development Services,Birmingham City Council,19/10/2017,,13718.22,General Creditors,Not Yet Classified
Solihull MBC,Managed Growth and Communities,Environmental and Regulatory Services,Birmingham Dogs Home,31/10/2017,,725.00,Other Fees,Not Yet Classified
Solihull MBC,Adult Social Care,Adult Social Care,Birmingham Focus,18/10/2017,,2200.00,ASC - Day Care,321000 - Social Community Care Supplies & Services - Adult
Solihull MBC,Adult Social Care,Adult Social Care,Birmingham Focus,18/10/2017,,2200.00,ASC - Day Care,321000 - Social Community Care Supplies & Services - Adult
Solihull MBC,Adult Social Care,Adult Social Care,Birmingham Multi Care,26/10/2017,,1382.81,ASC - Residential Care Respite,Not Yet Classified
Solihull MBC,Children's Services - DSG Central.,Children & Education Services,Birmingham Tutors,05/10/2017,,312.00,Professional Fees,Not Yet Classified
Solihull MBC,Children's Services - DSG Central.,Children & Education Services,Birmingham Tutors,19/10/2017,,468.00,Professional Fees,Not Yet Classified
Solihull MBC,Adult Social Care,Adult Social Care,Bitteswell Employment Alliance Ltd,26/10/2017,,429.20,Furniture & Equipment,Not Yet Classified
Solihull MBC,Adult Social Care,Adult Social Care,BJCC,09/10/2017,,2588.84,ASC - Residential Care Permanent,Not Yet Classified
Solihull MBC,Adult Social Care,Adult Social Care,BJCC,23/10/2017,,2588.84,ASC - Residential Care Permanent,Not Yet Classified
Solihull MBC,Children's Services - DSG Central.,Children & Education Services,Blackwater Academy,26/10/2017,,15840.00,Other Contracted Services,Not Yet Classified
Solihull MBC,Children's Services - DSG Central.,Children & Education Services,Blackwater Academy,19/10/2017,,9900.00,Other Contracted Services,Not Yet Classified
Solihull MBC,Adult Social Care,Cultural & Related Services,Blissetts,16/10/2017,,2226.04,Materials,Not Yet Classified
Solihull MBC,Adult Social Care,Cultural & Related Services,Blissetts,16/10/2017,,-1113.02,Materials,Not Yet Classified
Solihull MBC,Resources,Children & Education Services,Blue Arrow Limited,06/10/2017,,336.50,Agency Staff,Not Yet Classified
Solihull MBC,Resources,Children & Education Services,Blue Arrow Limited,06/10/2017,,336.50,Agency Staff,Not Yet Classified
Solihull MBC,Resources,Children & Education Services,Blue Arrow Limited,06/10/2017,,336.50,Agency Staff,Not Yet Classified
Solihull MBC,Resources,Children & Education Services,Blue Arrow Limited,06/10/2017,,336.50,Agency Staff,Not Yet Classified
Solihull MBC,Resources,Children & Education Services,Blue Arrow Limited,19/10/2017,,336.50,Agency Staff,Not Yet Classified
Solihull MBC,Resources,Children & Education Services,Blue Arrow Limited,19/10/2017,,159.79,Agency Staff,Not Yet Classified
Solihull MBC,Resources,Children & Education Services,Blue Arrow Limited,19/10/2017,,407.17,Agency Staff,Not Yet Classified
Solihull MBC,Resources,Children & Education Services,Blue Arrow Limited,19/10/2017,,336.50,Agency Staff,Not Yet Classified
Solihull MBC,Resources,Children & Education Services,Blue Arrow Limited,30/10/2017,,336.50,Agency Staff,Not Yet Classified
Solihull MBC,Resources,Children & Education Services,Blue Arrow Limited,30/10/2017,,286.03,Agency Staff,Not Yet Classified
Solihull MBC,Resources,Children & Education Services,Blue Arrow Limited,30/10/2017,,380.58,Agency Staff,Not Yet Classified
Solihull MBC,Resources,Children & Education Services,Blue Arrow Limited,30/10/2017,,220.32,Agency Staff,Not Yet Classified
Solihull MBC,Managed Growth and Communities,Planning & Development Services,Blue Orchid,06/10/2017,,29396.79,Professional Fees,150000 - Consultancy
Solihull MBC,Adult Social Care,Adult Social Care,Bondcare (Bromford) Ltd,18/10/2017,,4271.43,ASC - Nursing Care Permanent,321000 - Social Community Care Supplies & Services - Adult
Solihull MBC,Resources,Central Services to the Public,Bonds Worldwide Express Ltd,06/10/2017,,267.50,Postage & Courier Services,Not Yet Classified
Solihull MBC,Resources,Other Housing Services,Borshch Electric,10/10/2017,,270.83,Clients Expenses,110000 - Catering
Solihull MBC,Resources,Other Housing Services,Borshch Electric,10/10/2017,,266.66,Clients Expenses,110000 - Catering
Solihull MBC,Resources,Other Housing Services,Borshch Electric,10/10/2017,,270.83,Clients Expenses,110000 - Catering
Solihull MBC,Resources,Other Housing Services,Borshch Electric,10/10/2017,,491.66,Clients Expenses,110000 - Catering
Solihull MBC,Resources,Other Housing Services,Borshch Electric,10/10/2017,,266.66,Clients Expenses,110000 - Catering
Solihull MBC,Resources,Other Housing Services,Borshch Electric,10/10/2017,,266.66,Clients Expenses,110000 - Catering
Solihull MBC,Resources,Other Housing Services,Borshch Electric,10/10/2017,,266.66,Clients Expenses,110000 - Catering
Solihull MBC,Resources,Other Housing Services,Borshch Electric,30/10/2017,,291.66,Clients Expenses,110000 - Catering
Solihull MBC,Resources,Other Housing Services,Borshch Electric,10/10/2017,,266.66,Clients Expenses,110000 - Catering
Solihull MBC,Resources,Other Housing Services,Borshch Electric,26/10/2017,,341.67,Clients Expenses,110000 - Catering
Solihull MBC,Resources,Other Housing Services,Borshch Electric,26/10/2017,,433.33,Clients Expenses,110000 - Catering
Solihull MBC,Resources,Other Housing Services,Borshch Electric,27/10/2017,,270.83,Clients Expenses,110000 - Catering
Solihull MBC,Resources,Central Services to the Public,Bournemouth University,25/10/2017,,305.00,Training,Not Yet Classified
Solihull MBC,Resources,Central Services to the Public,Bournemouth University,25/10/2017,,305.00,Training,Not Yet Classified
Solihull MBC,Resources,Central Services to the Public,Bournemouth University,25/10/2017,,205.00,Training,Not Yet Classified
Solihull MBC,Resources,Central Services to the Public,Bournemouth University,25/10/2017,,205.00,Training,Not Yet Classified
Solihull MBC,Resources,Central Services to the Public,Bournemouth University,25/10/2017,,305.00,Training,Not Yet Classified
Solihull MBC,Resources,Central Services to the Public,Bournemouth University,25/10/2017,,305.00,Training,Not Yet Classified
Solihull MBC,Resources,Central Services to the Public,Bournemouth University,25/10/2017,,205.00,Training,Not Yet Classified
Solihull MBC,Resources,Central Services to the Public,Bournemouth University,25/10/2017,,205.00,Training,Not Yet Classified
Solihull MBC,Resources,Central Services to the Public,Bournemouth University,25/10/2017,,305.00,Training,Not Yet Classified
Solihull MBC,Resources,Central Services to the Public,Bournemouth University,25/10/2017,,305.00,Training,Not Yet Classified
Solihull MBC,Resources,Central Services to the Public,Bournemouth University,25/10/2017,,200.00,Training,Not Yet Classified
Solihull MBC,Resources,Central Services to the Public,Bournemouth University,25/10/2017,,200.00,Training,Not Yet Classified
Solihull MBC,Resources,Central Services to the Public,Bournemouth University,25/10/2017,,200.00,Training,Not Yet Classified
Solihull MBC,Resources,Central Services to the Public,Bournemouth University,25/10/2017,,200.00,Training,Not Yet Classified
Solihull MBC,Resources,Central Services to the Public,Bournemouth University,25/10/2017,,200.00,Training,Not Yet Classified
Solihull MBC,Resources,Central Services to the Public,Bournemouth University,25/10/2017,,200.00,Training,Not Yet Classified
Solihull MBC,Resources,Central Services to the Public,Bournemouth University,25/10/2017,,205.00,Training,Not Yet Classified
Solihull MBC,Resources,Central Services to the Public,Bournemouth University,25/10/2017,,205.00,Training,Not Yet Classified
Solihull MBC,Resources,Central Services to the Public,Bournemouth University,25/10/2017,,305.00,Training,Not Yet Classified
Solihull MBC,Resources,Central Services to the Public,Bournemouth University,25/10/2017,,305.00,Training,Not Yet Classified
Solihull MBC,Resources,Central Services to the Public,Bournemouth University,06/10/2017,,625.00,Training,Not Yet Classified
Solihull MBC,Adult Social Care,Adult Social Care,Bowood Care Homes Limited (Adept Group),17/10/2017,,1976.00,ASC - Residential Care Permanent,Not Yet Classified
Solihull MBC,Adult Social Care,Adult Social Care,Bracebridge Court (Runwood Homes),27/10/2017,,1285.71,ASC - Residential Care Permanent,Not Yet Classified
Solihull MBC,Resources,Children & Education Services,Brake Bros Foodservice Ltd,19/10/2017,,78.19,Catering Provisions,110000 - Catering
Solihull MBC,Resources,Children & Education Services,Brake Bros Foodservice Ltd,19/10/2017,,36.57,Catering Provisions,110000 - Catering
Solihull MBC,Resources,Children & Education Services,Brake Bros Foodservice Ltd,19/10/2017,,218.61,Catering Provisions,110000 - Catering
Solihull MBC,Resources,Children & Education Services,Brake Bros Foodservice Ltd,19/10/2017,,129.45,Catering Provisions,110000 - Catering
Solihull MBC,Resources,Children & Education Services,Brake Bros Foodservice Ltd,19/10/2017,,117.41,Catering Provisions,110000 - Catering
Solihull MBC,Resources,Children & Education Services,Brake Bros Foodservice Ltd,19/10/2017,,27.11,Catering Provisions,110000 - Catering
Solihull MBC,Resources,Children & Education Services,Brake Bros Foodservice Ltd,19/10/2017,,54.92,Catering Provisions,110000 - Catering
Solihull MBC,Resources,Children & Education Services,Brake Bros Foodservice Ltd,19/10/2017,,99.73,Catering Provisions,110000 - Catering
Solihull MBC,Resources,Children & Education Services,Brake Bros Foodservice Ltd,19/10/2017,,181.56,Catering Provisions,110000 - Catering
Solihull MBC,Resources,Children & Education Services,Brake Bros Foodservice Ltd,19/10/2017,,14.41,Catering Provisions,110000 - Catering
Solihull MBC,Resources,Children & Education Services,Brake Bros Foodservice Ltd,19/10/2017,,224.19,Catering Provisions,110000 - Catering
Solihull MBC,Resources,Children & Education Services,Brake Bros Foodservice Ltd,19/10/2017,,6.31,Catering Provisions,110000 - Catering
Solihull MBC,Resources,Children & Education Services,Brake Bros Foodservice Ltd,19/10/2017,,157.82,Catering Provisions,110000 - Catering
Solihull MBC,Resources,Children & Education Services,Brake Bros Foodservice Ltd,19/10/2017,,70.55,Catering Provisions,110000 - Catering
Solihull MBC,Resources,Children & Education Services,Brake Bros Foodservice Ltd,19/10/2017,,55.20,Catering Provisions,110000 - Catering
Solihull MBC,Resources,Children & Education Services,Brake Bros Foodservice Ltd,19/10/2017,,270.52,Catering Provisions,110000 - Catering
Solihull MBC,Resources,Children & Education Services,Brake Bros Foodservice Ltd,19/10/2017,,112.65,Catering Provisions,110000 - Catering
Solihull MBC,Resources,Children & Education Services,Brake Bros Foodservice Ltd,19/10/2017,,144.00,Catering Provisions,110000 - Catering
Solihull MBC,Resources,Children & Education Services,Brake Bros Foodservice Ltd,19/10/2017,,246.25,Catering Provisions,110000 - Catering
Solihull MBC,Resources,Children & Education Services,Brake Bros Foodservice Ltd,19/10/2017,,92.00,Catering Provisions,110000 - Catering
Solihull MBC,Resources,Children & Education Services,Brake Bros Foodservice Ltd,19/10/2017,,33.56,Catering Provisions,110000 - Catering
Solihull MBC,Resources,Children & Education Services,Brake Bros Foodservice Ltd,19/10/2017,,100.23,Catering Provisions,110000 - Catering
Solihull MBC,Resources,Children & Education Services,Brake Bros Foodservice Ltd,19/10/2017,,114.23,Catering Provisions,110000 - Catering
Solihull MBC,Resources,Children & Education Services,Brake Bros Foodservice Ltd,19/10/2017,,252.72,Catering Provisions,110000 - Catering
Solihull MBC,Resources,Children & Education Services,Brake Bros Foodservice Ltd,19/10/2017,,164.47,Catering Provisions,110000 - Catering
Solihull MBC,Resources,Children & Education Services,Brake Bros Foodservice Ltd,19/10/2017,,255.57,Catering Provisions,110000 - Catering
Solihull MBC,Resources,Children & Education Services,Brake Bros Foodservice Ltd,19/10/2017,,106.69,Catering Provisions,110000 - Catering
Solihull MBC,Resources,Children & Education Services,Brake Bros Foodservice Ltd,19/10/2017,,22.51,Catering Provisions,110000 - Catering
Solihull MBC,Resources,Children & Education Services,Brake Bros Foodservice Ltd,06/10/2017,,397.02,Catering Provisions,110000 - Catering
Solihull MBC,Resources,Children & Education Services,Brake Bros Foodservice Ltd,06/10/2017,,262.74,Catering Provisions,110000 - Catering
Solihull MBC,Resources,Children & Education Services,Brake Bros Foodservice Ltd,06/10/2017,,235.74,Catering Provisions,110000 - Catering
Solihull MBC,Resources,Children & Education Services,Brake Bros Foodservice Ltd,06/10/2017,,268.18,Catering Provisions,110000 - Catering
Solihull MBC,Resources,Children & Education Services,Brake Bros Foodservice Ltd,06/10/2017,,80.89,Catering Provisions,110000 - Catering
Solihull MBC,Resources,Children & Education Services,Brake Bros Foodservice Ltd,06/10/2017,,83.16,Catering Provisions,110000 - Catering
Solihull MBC,Resources,Children & Education Services,Brake Bros Foodservice Ltd,06/10/2017,,68.50,Catering Provisions,110000 - Catering
Solihull MBC,Resources,Children & Education Services,Brake Bros Foodservice Ltd,06/10/2017,,410.87,Catering Provisions,110000 - Catering
Solihull MBC,Resources,Children & Education Services,Brake Bros Foodservice Ltd,06/10/2017,,293.53,Catering Provisions,110000 - Catering
Solihull MBC,Resources,Children & Education Services,Brake Bros Foodservice Ltd,06/10/2017,,139.38,Catering Provisions,110000 - Catering
Solihull MBC,Resources,Children & Education Services,Brake Bros Foodservice Ltd,06/10/2017,,2.51,Catering Provisions,110000 - Catering
Solihull MBC,Resources,Children & Education Services,Brake Bros Foodservice Ltd,06/10/2017,,307.20,Catering Provisions,110000 - Catering
Solihull MBC,Resources,Children & Education Services,Brake Bros Foodservice Ltd,06/10/2017,,283.70,Catering Provisions,110000 - Catering
Solihull MBC,Resources,Children & Education Services,Brake Bros Foodservice Ltd,06/10/2017,,309.43,Catering Provisions,110000 - Catering
Solihull MBC,Resources,Children & Education Services,Brake Bros Foodservice Ltd,06/10/2017,,403.80,Catering Provisions,110000 - Catering
Solihull MBC,Resources,Children & Education Services,Brake Bros Foodservice Ltd,06/10/2017,,85.17,Catering Provisions,110000 - Catering
Solihull MBC,Resources,Children & Education Services,Brake Bros Foodservice Ltd,06/10/2017,,249.60,Catering Provisions,110000 - Catering
Solihull MBC,Resources,Children & Education Services,Brake Bros Foodservice Ltd,06/10/2017,,240.68,Catering Provisions,110000 - Catering
Solihull MBC,Resources,Children & Education Services,Brake Bros Foodservice Ltd,06/10/2017,,216.31,Catering Provisions,110000 - Catering
Solihull MBC,Resources,Children & Education Services,Brake Bros Foodservice Ltd,06/10/2017,,234.94,Catering Provisions,110000 - Catering
Solihull MBC,Resources,Children & Education Services,Brake Bros Foodservice Ltd,06/10/2017,,227.01,Catering Provisions,110000 - Catering
Solihull MBC,Resources,Children & Education Services,Brake Bros Foodservice Ltd,06/10/2017,,265.87,Catering Provisions,110000 - Catering
Solihull MBC,Resources,Children & Education Services,Brake Bros Foodservice Ltd,06/10/2017,,370.79,Catering Provisions,110000 - Catering
Solihull MBC,Resources,Children & Education Services,Brake Bros Foodservice Ltd,06/10/2017,,159.88,Catering Provisions,110000 - Catering
Solihull MBC,Resources,Children & Education Services,Brake Bros Foodservice Ltd,06/10/2017,,355.78,Catering Provisions,110000 - Catering
Solihull MBC,Resources,Children & Education Services,Brake Bros Foodservice Ltd,06/10/2017,,85.96,Catering Provisions,110000 - Catering
Solihull MBC,Resources,Children & Education Services,Brake Bros Foodservice Ltd,06/10/2017,,209.77,Catering Provisions,110000 - Catering
Solihull MBC,Resources,Children & Education Services,Brake Bros Foodservice Ltd,06/10/2017,,380.95,Catering Provisions,110000 - Catering
Solihull MBC,Resources,Children & Education Services,Brake Bros Foodservice Ltd,06/10/2017,,692.26,Catering Provisions,110000 - Catering
Solihull MBC,Resources,Children & Education Services,Brake Bros Foodservice Ltd,06/10/2017,,364.47,Catering Provisions,110000 - Catering
Solihull MBC,Resources,Children & Education Services,Brake Bros Foodservice Ltd,06/10/2017,,513.85,Catering Provisions,110000 - Catering
Solihull MBC,Resources,Children & Education Services,Brake Bros Foodservice Ltd,06/10/2017,,205.26,Catering Provisions,110000 - Catering
Solihull MBC,Resources,Children & Education Services,Brake Bros Foodservice Ltd,06/10/2017,,225.83,Catering Provisions,110000 - Catering
Solihull MBC,Resources,Children & Education Services,Brake Bros Foodservice Ltd,06/10/2017,,119.88,Catering Provisions,110000 - Catering
Solihull MBC,Resources,Children & Education Services,Brake Bros Foodservice Ltd,06/10/2017,,97.19,Catering Provisions,110000 - Catering
Solihull MBC,Resources,Children & Education Services,Brake Bros Foodservice Ltd,06/10/2017,,95.14,Catering Provisions,110000 - Catering
Solihull MBC,Resources,Children & Education Services,Brake Bros Foodservice Ltd,06/10/2017,,242.24,Catering Provisions,110000 - Catering
Solihull MBC,Resources,Children & Education Services,Brake Bros Foodservice Ltd,06/10/2017,,190.35,Catering Provisions,110000 - Catering
Solihull MBC,Resources,Children & Education Services,Brake Bros Foodservice Ltd,06/10/2017,,351.56,Catering Provisions,110000 - Catering
Solihull MBC,Resources,Children & Education Services,Brake Bros Foodservice Ltd,06/10/2017,,354.35,Catering Provisions,110000 - Catering
Solihull MBC,Resources,Children & Education Services,Brake Bros Foodservice Ltd,06/10/2017,,232.35,Catering Provisions,110000 - Catering
Solihull MBC,Resources,Children & Education Services,Brake Bros Foodservice Ltd,06/10/2017,,232.06,Catering Provisions,110000 - Catering
Solihull MBC,Resources,Children & Education Services,Brake Bros Foodservice Ltd,06/10/2017,,363.67,Catering Provisions,110000 - Catering
Solihull MBC,Resources,Children & Education Services,Brake Bros Foodservice Ltd,06/10/2017,,394.34,Catering Provisions,110000 - Catering
Solihull MBC,Resources,Children & Education Services,Brake Bros Foodservice Ltd,06/10/2017,,7.38,Catering Provisions,110000 - Catering
Solihull MBC,Resources,Children & Education Services,Brake Bros Foodservice Ltd,06/10/2017,,315.56,Catering Provisions,110000 - Catering
Solihull MBC,Resources,Children & Education Services,Brake Bros Foodservice Ltd,06/10/2017,,304.41,Catering Provisions,110000 - Catering
Solihull MBC,Resources,Children & Education Services,Brake Bros Foodservice Ltd,06/10/2017,,232.02,Catering Provisions,110000 - Catering
Solihull MBC,Resources,Children & Education Services,Brake Bros Foodservice Ltd,06/10/2017,,259.11,Catering Provisions,110000 - Catering
Solihull MBC,Resources,Children & Education Services,Brake Bros Foodservice Ltd,06/10/2017,,250.94,Catering Provisions,110000 - Catering
Solihull MBC,Resources,Children & Education Services,Brake Bros Foodservice Ltd,06/10/2017,,444.60,Catering Provisions,110000 - Catering
Solihull MBC,Resources,Children & Education Services,Brake Bros Foodservice Ltd,06/10/2017,,266.77,Catering Provisions,110000 - Catering
Solihull MBC,Resources,Children & Education Services,Brake Bros Foodservice Ltd,06/10/2017,,258.34,Catering Provisions,110000 - Catering
Solihull MBC,Resources,Children & Education Services,Brake Bros Foodservice Ltd,06/10/2017,,270.00,Catering Provisions,110000 - Catering
Solihull MBC,Resources,Children & Education Services,Brake Bros Foodservice Ltd,06/10/2017,,461.07,Catering Provisions,110000 - Catering
Solihull MBC,Resources,Children & Education Services,Brake Bros Foodservice Ltd,06/10/2017,,560.42,Catering Provisions,110000 - Catering
Solihull MBC,Resources,Children & Education Services,Brake Bros Foodservice Ltd,06/10/2017,,232.86,Catering Provisions,110000 - Catering
Solihull MBC,Resources,Children & Education Services,Brake Bros Foodservice Ltd,06/10/2017,,395.04,Catering Provisions,110000 - Catering
Solihull MBC,Resources,Children & Education Services,Brake Bros Foodservice Ltd,06/10/2017,,279.29,Catering Provisions,110000 - Catering
Solihull MBC,Resources,Children & Education Services,Brake Bros Foodservice Ltd,06/10/2017,,374.89,Catering Provisions,110000 - Catering
Solihull MBC,Resources,Children & Education Services,Brake Bros Foodservice Ltd,06/10/2017,,245.45,Catering Provisions,110000 - Catering
Solihull MBC,Resources,Children & Education Services,Brake Bros Foodservice Ltd,06/10/2017,,453.19,Catering Provisions,110000 - Catering
Solihull MBC,Resources,Children & Education Services,Brake Bros Foodservice Ltd,06/10/2017,,597.34,Catering Provisions,110000 - Catering
Solihull MBC,Resources,Children & Education Services,Brake Bros Foodservice Ltd,06/10/2017,,356.10,Catering Provisions,110000 - Catering
Solihull MBC,Resources,Children & Education Services,Brake Bros Foodservice Ltd,06/10/2017,,187.34,Catering Provisions,110000 - Catering
Solihull MBC,Resources,Children & Education Services,Brake Bros Foodservice Ltd,06/10/2017,,379.93,Catering Provisions,110000 - Catering
Solihull MBC,Resources,Adult Social Care,Brake Bros Foodservice Ltd,06/10/2017,,130.41,Catering Provisions,110000 - Catering
Solihull MBC,Resources,Children & Education Services,Brake Bros Foodservice Ltd,06/10/2017,,332.86,Catering Provisions,110000 - Catering
Solihull MBC,Resources,Children & Education Services,Brake Bros Foodservice Ltd,06/10/2017,,222.30,Catering Provisions,110000 - Catering
Solihull MBC,Resources,Children & Education Services,Brake Bros Foodservice Ltd,06/10/2017,,196.92,Catering Provisions,110000 - Catering
Solihull MBC,Resources,Children & Education Services,Brake Bros Foodservice Ltd,06/10/2017,,21.45,Catering Provisions,110000 - Catering
Solihull MBC,Resources,Children & Education Services,Brake Bros Foodservice Ltd,06/10/2017,,227.77,Catering Provisions,110000 - Catering
Solihull MBC,Resources,Cultural & Related Services,Brake Bros Foodservice Ltd,06/10/2017,,75.41,Catering Provisions,110000 - Catering
Solihull MBC,Resources,Children & Education Services,Brake Bros Foodservice Ltd,06/10/2017,,289.36,Catering Provisions,110000 - Catering
Solihull MBC,Resources,Children & Education Services,Brake Bros Foodservice Ltd,06/10/2017,,5.54,Catering Provisions,110000 - Catering
Solihull MBC,Resources,Children & Education Services,Brake Bros Foodservice Ltd,06/10/2017,,351.30,Catering Provisions,110000 - Catering
Solihull MBC,Resources,Children & Education Services,Brake Bros Foodservice Ltd,06/10/2017,,173.92,Catering Provisions,110000 - Catering
Solihull MBC,Resources,Children & Education Services,Brake Bros Foodservice Ltd,06/10/2017,,256.87,Catering Provisions,110000 - Catering
Solihull MBC,Resources,Children & Education Services,Brake Bros Foodservice Ltd,06/10/2017,,86.48,Catering Provisions,110000 - Catering
Solihull MBC,Resources,Children & Education Services,Brake Bros Foodservice Ltd,06/10/2017,,339.28,Catering Provisions,110000 - Catering
Solihull MBC,Resources,Children & Education Services,Brake Bros Foodservice Ltd,06/10/2017,,408.03,Catering Provisions,110000 - Catering
Solihull MBC,Resources,Children & Education Services,Brake Bros Foodservice Ltd,06/10/2017,,154.06,Catering Provisions,110000 - Catering
Solihull MBC,Resources,Children & Education Services,Brake Bros Foodservice Ltd,06/10/2017,,388.78,Catering Provisions,110000 - Catering
Solihull MBC,Resources,Children & Education Services,Brake Bros Foodservice Ltd,06/10/2017,,184.53,Catering Provisions,110000 - Catering
Solihull MBC,Resources,Children & Education Services,Brake Bros Foodservice Ltd,06/10/2017,,232.52,Catering Provisions,110000 - Catering
Solihull MBC,Resources,Children & Education Services,Brake Bros Foodservice Ltd,06/10/2017,,258.45,Catering Provisions,110000 - Catering
Solihull MBC,Resources,Children & Education Services,Brake Bros Foodservice Ltd,06/10/2017,,287.96,Catering Provisions,110000 - Catering
Solihull MBC,Resources,Children & Education Services,Brake Bros Foodservice Ltd,06/10/2017,,442.54,Catering Provisions,110000 - Catering
Solihull MBC,Resources,Children & Education Services,Brake Bros Foodservice Ltd,06/10/2017,,592.18,Catering Provisions,110000 - Catering
Solihull MBC,Resources,Children & Education Services,Brake Bros Foodservice Ltd,06/10/2017,,387.61,Catering Provisions,110000 - Catering
Solihull MBC,Resources,Children & Education Services,Brake Bros Foodservice Ltd,06/10/2017,,456.35,Catering Provisions,110000 - Catering
Solihull MBC,Resources,Children & Education Services,Brake Bros Foodservice Ltd,06/10/2017,,293.92,Catering Provisions,110000 - Catering
Solihull MBC,Resources,Children & Education Services,Brake Bros Foodservice Ltd,06/10/2017,,16.80,Catering Provisions,110000 - Catering
Solihull MBC,Resources,Children & Education Services,Brake Bros Foodservice Ltd,06/10/2017,,345.58,Catering Provisions,110000 - Catering
Solihull MBC,Resources,Children & Education Services,Brake Bros Foodservice Ltd,06/10/2017,,262.30,Catering Provisions,110000 - Catering
Solihull MBC,Resources,Children & Education Services,Brake Bros Foodservice Ltd,06/10/2017,,240.48,Catering Provisions,110000 - Catering
Solihull MBC,Resources,Children & Education Services,Brake Bros Foodservice Ltd,06/10/2017,,324.71,Catering Provisions,110000 - Catering
Solihull MBC,Resources,Children & Education Services,Brake Bros Foodservice Ltd,06/10/2017,,366.00,Catering Provisions,110000 - Catering
Solihull MBC,Resources,Children & Education Services,Brake Bros Foodservice Ltd,06/10/2017,,178.07,Catering Provisions,110000 - Catering
Solihull MBC,Resources,Children & Education Services,Brake Bros Foodservice Ltd,06/10/2017,,343.71,Catering Provisions,110000 - Catering
Solihull MBC,Resources,Children & Education Services,Brake Bros Foodservice Ltd,06/10/2017,,232.40,Catering Provisions,110000 - Catering
Solihull MBC,Resources,Children & Education Services,Brake Bros Foodservice Ltd,06/10/2017,,206.19,Catering Provisions,110000 - Catering
Solihull MBC,Resources,Children & Education Services,Brake Bros Foodservice Ltd,06/10/2017,,255.77,Catering Provisions,110000 - Catering
Solihull MBC,Resources,Children & Education Services,Brake Bros Foodservice Ltd,06/10/2017,,297.14,Catering Provisions,110000 - Catering
Solihull MBC,Resources,Children & Education Services,Brake Bros Foodservice Ltd,06/10/2017,,229.01,Catering Provisions,110000 - Catering
Solihull MBC,Resources,Children & Education Services,Brake Bros Foodservice Ltd,06/10/2017,,239.66,Catering Provisions,110000 - Catering
Solihull MBC,Resources,Children & Education Services,Brake Bros Foodservice Ltd,06/10/2017,,341.89,Catering Provisions,110000 - Catering
Solihull MBC,Resources,Children & Education Services,Brake Bros Foodservice Ltd,06/10/2017,,570.88,Catering Provisions,110000 - Catering
Solihull MBC,Resources,Children & Education Services,Brake Bros Foodservice Ltd,06/10/2017,,158.92,Catering Provisions,110000 - Catering
Solihull MBC,Resources,Children & Education Services,Brake Bros Foodservice Ltd,06/10/2017,,239.14,Catering Provisions,110000 - Catering
Solihull MBC,Resources,Children & Education Services,Brake Bros Foodservice Ltd,06/10/2017,,294.15,Catering Provisions,110000 - Catering
Solihull MBC,Resources,Children & Education Services,Brake Bros Foodservice Ltd,06/10/2017,,215.25,Catering Provisions,110000 - Catering
Solihull MBC,Resources,Children & Education Services,Brake Bros Foodservice Ltd,06/10/2017,,317.94,Catering Provisions,110000 - Catering
Solihull MBC,Resources,Children & Education Services,Brake Bros Foodservice Ltd,06/10/2017,,434.62,Catering Provisions,110000 - Catering
Solihull MBC,Resources,Children & Education Services,Brake Bros Foodservice Ltd,06/10/2017,,274.10,Catering Provisions,110000 - Catering
Solihull MBC,Resources,Children & Education Services,Brake Bros Foodservice Ltd,06/10/2017,,145.52,Catering Provisions,110000 - Catering
Solihull MBC,Resources,Children & Education Services,Brake Bros Foodservice Ltd,06/10/2017,,214.27,Catering Provisions,110000 - Catering
Solihull MBC,Resources,Children & Education Services,Brake Bros Foodservice Ltd,06/10/2017,,39.48,Catering Provisions,110000 - Catering
Solihull MBC,Resources,Children & Education Services,Brake Bros Foodservice Ltd,06/10/2017,,290.63,Catering Provisions,110000 - Catering
Solihull MBC,Resources,Children & Education Services,Brake Bros Foodservice Ltd,06/10/2017,,166.44,Catering Provisions,110000 - Catering
Solihull MBC,Resources,Children & Education Services,Brake Bros Foodservice Ltd,06/10/2017,,114.04,Catering Provisions,110000 - Catering
Solihull MBC,Resources,Children & Education Services,Brake Bros Foodservice Ltd,06/10/2017,,563.72,Catering Provisions,110000 - Catering
Solihull MBC,Resources,Children & Education Services,Brake Bros Foodservice Ltd,06/10/2017,,171.44,Catering Provisions,110000 - Catering
Solihull MBC,Resources,Children & Education Services,Brake Bros Foodservice Ltd,06/10/2017,,204.23,Catering Provisions,110000 - Catering
Solihull MBC,Resources,Children & Education Services,Brake Bros Foodservice Ltd,06/10/2017,,232.37,Catering Provisions,110000 - Catering
Solihull MBC,Resources,Children & Education Services,Brake Bros Foodservice Ltd,06/10/2017,,94.06,Catering Provisions,110000 - Catering
Solihull MBC,Resources,Children & Education Services,Brake Bros Foodservice Ltd,06/10/2017,,199.69,Catering Provisions,110000 - Catering
Solihull MBC,Resources,Children & Education Services,Brake Bros Foodservice Ltd,06/10/2017,,267.89,Catering Provisions,110000 - Catering
Solihull MBC,Resources,Children & Education Services,Brake Bros Foodservice Ltd,12/10/2017,,287.80,Catering Provisions,110000 - Catering
Solihull MBC,Resources,Children & Education Services,Brake Bros Foodservice Ltd,12/10/2017,,139.18,Catering Provisions,110000 - Catering
Solihull MBC,Resources,Children & Education Services,Brake Bros Foodservice Ltd,12/10/2017,,186.46,Catering Provisions,110000 - Catering
Solihull MBC,Resources,Children & Education Services,Brake Bros Foodservice Ltd,12/10/2017,,201.70,Catering Provisions,110000 - Catering
Solihull MBC,Resources,Children & Education Services,Brake Bros Foodservice Ltd,12/10/2017,,9.39,Catering Provisions,110000 - Catering
Solihull MBC,Resources,Children & Education Services,Brake Bros Foodservice Ltd,12/10/2017,,78.84,Catering Provisions,110000 - Catering
Solihull MBC,Resources,Children & Education Services,Brake Bros Foodservice Ltd,12/10/2017,,43.35,Catering Provisions,110000 - Catering
Solihull MBC,Resources,Children & Education Services,Brake Bros Foodservice Ltd,12/10/2017,,111.31,Catering Provisions,110000 - Catering
Solihull MBC,Resources,Children & Education Services,Brake Bros Foodservice Ltd,12/10/2017,,301.95,Catering Provisions,110000 - Catering
Solihull MBC,Resources,Children & Education Services,Brake Bros Foodservice Ltd,12/10/2017,,251.18,Catering Provisions,110000 - Catering
Solihull MBC,Resources,Children & Education Services,Brake Bros Foodservice Ltd,12/10/2017,,229.85,Catering Provisions,110000 - Catering
Solihull MBC,Resources,Children & Education Services,Brake Bros Foodservice Ltd,12/10/2017,,184.99,Catering Provisions,110000 - Catering
Solihull MBC,Resources,Children & Education Services,Brake Bros Foodservice Ltd,12/10/2017,,450.02,Catering Provisions,110000 - Catering
Solihull MBC,Resources,Children & Education Services,Brake Bros Foodservice Ltd,12/10/2017,,72.57,Catering Provisions,110000 - Catering
Solihull MBC,Resources,Children & Education Services,Brake Bros Foodservice Ltd,12/10/2017,,208.03,Catering Provisions,110000 - Catering
Solihull MBC,Resources,Children & Education Services,Brake Bros Foodservice Ltd,12/10/2017,,156.96,Catering Provisions,110000 - Catering
Solihull MBC,Resources,Children & Education Services,Brake Bros Foodservice Ltd,12/10/2017,,212.94,Catering Provisions,110000 - Catering
Solihull MBC,Resources,Children & Education Services,Brake Bros Foodservice Ltd,12/10/2017,,150.41,Catering Provisions,110000 - Catering
Solihull MBC,Resources,Children & Education Services,Brake Bros Foodservice Ltd,12/10/2017,,217.72,Catering Provisions,110000 - Catering
Solihull MBC,Resources,Children & Education Services,Brake Bros Foodservice Ltd,12/10/2017,,334.81,Catering Provisions,110000 - Catering
Solihull MBC,Resources,Children & Education Services,Brake Bros Foodservice Ltd,12/10/2017,,454.74,Catering Provisions,110000 - Catering
Solihull MBC,Resources,Children & Education Services,Brake Bros Foodservice Ltd,12/10/2017,,341.33,Catering Provisions,110000 - Catering
Solihull MBC,Resources,Children & Education Services,Brake Bros Foodservice Ltd,12/10/2017,,261.19,Catering Provisions,110000 - Catering
Solihull MBC,Resources,Children & Education Services,Brake Bros Foodservice Ltd,12/10/2017,,62.98,Catering Provisions,110000 - Catering
Solihull MBC,Resources,Children & Education Services,Brake Bros Foodservice Ltd,12/10/2017,,159.29,Catering Provisions,110000 - Catering
Solihull MBC,Resources,Children & Education Services,Brake Bros Foodservice Ltd,12/10/2017,,373.92,Catering Provisions,110000 - Catering
Solihull MBC,Resources,Children & Education Services,Brake Bros Foodservice Ltd,12/10/2017,,698.08,Catering Provisions,110000 - Catering
Solihull MBC,Resources,Children & Education Services,Brake Bros Foodservice Ltd,12/10/2017,,344.76,Catering Provisions,110000 - Catering
Solihull MBC,Resources,Children & Education Services,Brake Bros Foodservice Ltd,12/10/2017,,291.07,Catering Provisions,110000 - Catering
Solihull MBC,Resources,Children & Education Services,Brake Bros Foodservice Ltd,12/10/2017,,186.86,Catering Provisions,110000 - Catering
Solihull MBC,Resources,Children & Education Services,Brake Bros Foodservice Ltd,12/10/2017,,406.05,Catering Provisions,110000 - Catering
Solihull MBC,Resources,Children & Education Services,Brake Bros Foodservice Ltd,12/10/2017,,251.54,Catering Provisions,110000 - Catering
Solihull MBC,Resources,Children & Education Services,Brake Bros Foodservice Ltd,12/10/2017,,161.33,Catering Provisions,110000 - Catering
Solihull MBC,Resources,Children & Education Services,Brake Bros Foodservice Ltd,12/10/2017,,183.75,Catering Provisions,110000 - Catering
Solihull MBC,Resources,Children & Education Services,Brake Bros Foodservice Ltd,12/10/2017,,138.85,Catering Provisions,110000 - Catering
Solihull MBC,Resources,Children & Education Services,Brake Bros Foodservice Ltd,12/10/2017,,156.54,Catering Provisions,110000 - Catering
Solihull MBC,Resources,Children & Education Services,Brake Bros Foodservice Ltd,12/10/2017,,242.62,Catering Provisions,110000 - Catering
Solihull MBC,Resources,Children & Education Services,Brake Bros Foodservice Ltd,12/10/2017,,318.99,Catering Provisions,110000 - Catering
Solihull MBC,Resources,Children & Education Services,Brake Bros Foodservice Ltd,12/10/2017,,231.40,Catering Provisions,110000 - Catering
Solihull MBC,Resources,Children & Education Services,Brake Bros Foodservice Ltd,12/10/2017,,333.73,Catering Provisions,110000 - Catering
Solihull MBC,Resources,Children & Education Services,Brake Bros Foodservice Ltd,12/10/2017,,60.50,Catering Provisions,110000 - Catering
Solihull MBC,Resources,Children & Education Services,Brake Bros Foodservice Ltd,12/10/2017,,207.31,Catering Provisions,110000 - Catering
Solihull MBC,Resources,Children & Education Services,Brake Bros Foodservice Ltd,12/10/2017,,362.71,Catering Provisions,110000 - Catering
Solihull MBC,Resources,Children & Education Services,Brake Bros Foodservice Ltd,12/10/2017,,402.08,Catering Provisions,110000 - Catering
Solihull MBC,Resources,Children & Education Services,Brake Bros Foodservice Ltd,12/10/2017,,209.61,Catering Provisions,110000 - Catering
Solihull MBC,Resources,Children & Education Services,Brake Bros Foodservice Ltd,12/10/2017,,301.84,Catering Provisions,110000 - Catering
Solihull MBC,Resources,Children & Education Services,Brake Bros Foodservice Ltd,12/10/2017,,132.20,Catering Provisions,110000 - Catering
Solihull MBC,Resources,Children & Education Services,Brake Bros Foodservice Ltd,12/10/2017,,283.91,Catering Provisions,110000 - Catering
Solihull MBC,Resources,Children & Education Services,Brake Bros Foodservice Ltd,12/10/2017,,332.24,Catering Provisions,110000 - Catering
Solihull MBC,Resources,Children & Education Services,Brake Bros Foodservice Ltd,12/10/2017,,328.60,Catering Provisions,110000 - Catering
Solihull MBC,Resources,Children & Education Services,Brake Bros Foodservice Ltd,12/10/2017,,316.25,Catering Provisions,110000 - Catering
Solihull MBC,Resources,Children & Education Services,Brake Bros Foodservice Ltd,12/10/2017,,206.14,Catering Provisions,110000 - Catering
Solihull MBC,Resources,Children & Education Services,Brake Bros Foodservice Ltd,12/10/2017,,240.39,Catering Provisions,110000 - Catering
Solihull MBC,Resources,Children & Education Services,Brake Bros Foodservice Ltd,12/10/2017,,498.01,Catering Provisions,110000 - Catering
Solihull MBC,Resources,Children & Education Services,Brake Bros Foodservice Ltd,12/10/2017,,203.47,Catering Provisions,110000 - Catering
Solihull MBC,Resources,Children & Education Services,Brake Bros Foodservice Ltd,12/10/2017,,46.86,Catering Provisions,110000 - Catering
Solihull MBC,Resources,Children & Education Services,Brake Bros Foodservice Ltd,12/10/2017,,383.06,Catering Provisions,110000 - Catering
Solihull MBC,Resources,Children & Education Services,Brake Bros Foodservice Ltd,12/10/2017,,270.57,Catering Provisions,110000 - Catering
Solihull MBC,Resources,Children & Education Services,Brake Bros Foodservice Ltd,12/10/2017,,370.98,Catering Provisions,110000 - Catering
Solihull MBC,Resources,Children & Education Services,Brake Bros Foodservice Ltd,12/10/2017,,254.46,Catering Provisions,110000 - Catering
Solihull MBC,Resources,Children & Education Services,Brake Bros Foodservice Ltd,12/10/2017,,429.53,Catering Provisions,110000 - Catering
Solihull MBC,Resources,Children & Education Services,Brake Bros Foodservice Ltd,12/10/2017,,588.92,Catering Provisions,110000 - Catering
Solihull MBC,Resources,Children & Education Services,Brake Bros Foodservice Ltd,12/10/2017,,296.61,Catering Provisions,110000 - Catering
Solihull MBC,Resources,Children & Education Services,Brake Bros Foodservice Ltd,12/10/2017,,233.20,Catering Provisions,110000 - Catering
Solihull MBC,Resources,Children & Education Services,Brake Bros Foodservice Ltd,12/10/2017,,462.68,Catering Provisions,110000 - Catering
Solihull MBC,Resources,Children & Education Services,Brake Bros Foodservice Ltd,12/10/2017,,45.08,Catering Provisions,110000 - Catering
Solihull MBC,Resources,Adult Social Care,Brake Bros Foodservice Ltd,12/10/2017,,143.52,Catering Provisions,110000 - Catering
Solihull MBC,Resources,Children & Education Services,Brake Bros Foodservice Ltd,12/10/2017,,242.87,Catering Provisions,110000 - Catering
Solihull MBC,Resources,Children & Education Services,Brake Bros Foodservice Ltd,12/10/2017,,312.17,Catering Provisions,110000 - Catering
Solihull MBC,Resources,Children & Education Services,Brake Bros Foodservice Ltd,12/10/2017,,315.22,Catering Provisions,110000 - Catering
Solihull MBC,Resources,Children & Education Services,Brake Bros Foodservice Ltd,12/10/2017,,282.89,Catering Provisions,110000 - Catering
Solihull MBC,Resources,Cultural & Related Services,Brake Bros Foodservice Ltd,12/10/2017,,138.04,Catering Provisions,110000 - Catering
Solihull MBC,Resources,Children & Education Services,Brake Bros Foodservice Ltd,12/10/2017,,29.24,Catering Provisions,110000 - Catering
Solihull MBC,Resources,Children & Education Services,Brake Bros Foodservice Ltd,12/10/2017,,410.94,Catering Provisions,110000 - Catering
Solihull MBC,Resources,Children & Education Services,Brake Bros Foodservice Ltd,12/10/2017,,258.24,Catering Provisions,110000 - Catering
Solihull MBC,Resources,Children & Education Services,Brake Bros Foodservice Ltd,12/10/2017,,163.60,Catering Provisions,110000 - Catering
Solihull MBC,Resources,Children & Education Services,Brake Bros Foodservice Ltd,12/10/2017,,83.88,Catering Provisions,110000 - Catering
Solihull MBC,Resources,Children & Education Services,Brake Bros Foodservice Ltd,12/10/2017,,335.94,Catering Provisions,110000 - Catering
Solihull MBC,Resources,Children & Education Services,Brake Bros Foodservice Ltd,12/10/2017,,335.44,Catering Provisions,110000 - Catering
Solihull MBC,Resources,Children & Education Services,Brake Bros Foodservice Ltd,12/10/2017,,320.92,Catering Provisions,110000 - Catering
Solihull MBC,Resources,Children & Education Services,Brake Bros Foodservice Ltd,12/10/2017,,206.57,Catering Provisions,110000 - Catering
Solihull MBC,Resources,Children & Education Services,Brake Bros Foodservice Ltd,12/10/2017,,265.34,Catering Provisions,110000 - Catering
Solihull MBC,Resources,Children & Education Services,Brake Bros Foodservice Ltd,12/10/2017,,242.12,Catering Provisions,110000 - Catering
Solihull MBC,Resources,Children & Education Services,Brake Bros Foodservice Ltd,12/10/2017,,69.37,Catering Provisions,110000 - Catering
Solihull MBC,Resources,Children & Education Services,Brake Bros Foodservice Ltd,12/10/2017,,475.01,Catering Provisions,110000 - Catering
Solihull MBC,Resources,Children & Education Services,Brake Bros Foodservice Ltd,12/10/2017,,423.99,Catering Provisions,110000 - Catering
Solihull MBC,Resources,Children & Education Services,Brake Bros Foodservice Ltd,12/10/2017,,644.40,Catering Provisions,110000 - Catering
Solihull MBC,Resources,Children & Education Services,Brake Bros Foodservice Ltd,12/10/2017,,14.01,Catering Provisions,110000 - Catering
Solihull MBC,Resources,Children & Education Services,Brake Bros Foodservice Ltd,12/10/2017,,649.08,Catering Provisions,110000 - Catering
Solihull MBC,Resources,Children & Education Services,Brake Bros Foodservice Ltd,12/10/2017,,589.21,Catering Provisions,110000 - Catering
Solihull MBC,Resources,Children & Education Services,Brake Bros Foodservice Ltd,12/10/2017,,539.39,Catering Provisions,110000 - Catering
Solihull MBC,Resources,Children & Education Services,Brake Bros Foodservice Ltd,12/10/2017,,315.41,Catering Provisions,110000 - Catering
Solihull MBC,Resources,Children & Education Services,Brake Bros Foodservice Ltd,12/10/2017,,407.42,Catering Provisions,110000 - Catering
Solihull MBC,Resources,Children & Education Services,Brake Bros Foodservice Ltd,12/10/2017,,244.08,Catering Provisions,110000 - Catering
Solihull MBC,Resources,Children & Education Services,Brake Bros Foodservice Ltd,12/10/2017,,305.32,Catering Provisions,110000 - Catering
Solihull MBC,Resources,Children & Education Services,Brake Bros Foodservice Ltd,12/10/2017,,353.97,Catering Provisions,110000 - Catering
Solihull MBC,Resources,Children & Education Services,Brake Bros Foodservice Ltd,12/10/2017,,356.84,Catering Provisions,110000 - Catering
Solihull MBC,Resources,Children & Education Services,Brake Bros Foodservice Ltd,12/10/2017,,142.23,Catering Provisions,110000 - Catering
Solihull MBC,Resources,Children & Education Services,Brake Bros Foodservice Ltd,12/10/2017,,345.07,Catering Provisions,110000 - Catering
Solihull MBC,Resources,Children & Education Services,Brake Bros Foodservice Ltd,12/10/2017,,216.54,Catering Provisions,110000 - Catering
Solihull MBC,Resources,Children & Education Services,Brake Bros Foodservice Ltd,12/10/2017,,181.37,Catering Provisions,110000 - Catering
Solihull MBC,Resources,Children & Education Services,Brake Bros Foodservice Ltd,12/10/2017,,182.37,Catering Provisions,110000 - Catering
Solihull MBC,Resources,Children & Education Services,Brake Bros Foodservice Ltd,12/10/2017,,294.79,Catering Provisions,110000 - Catering
Solihull MBC,Resources,Children & Education Services,Brake Bros Foodservice Ltd,12/10/2017,,146.36,Catering Provisions,110000 - Catering
Solihull MBC,Resources,Children & Education Services,Brake Bros Foodservice Ltd,12/10/2017,,243.60,Catering Provisions,110000 - Catering
Solihull MBC,Resources,Children & Education Services,Brake Bros Foodservice Ltd,12/10/2017,,389.33,Catering Provisions,110000 - Catering
Solihull MBC,Resources,Children & Education Services,Brake Bros Foodservice Ltd,12/10/2017,,564.94,Catering Provisions,110000 - Catering
Solihull MBC,Resources,Children & Education Services,Brake Bros Foodservice Ltd,12/10/2017,,165.05,Catering Provisions,110000 - Catering
Solihull MBC,Resources,Children & Education Services,Brake Bros Foodservice Ltd,12/10/2017,,251.18,Catering Provisions,110000 - Catering
Solihull MBC,Resources,Children & Education Services,Brake Bros Foodservice Ltd,12/10/2017,,452.19,Catering Provisions,110000 - Catering
Solihull MBC,Resources,Children & Education Services,Brake Bros Foodservice Ltd,12/10/2017,,258.89,Catering Provisions,110000 - Catering
Solihull MBC,Resources,Children & Education Services,Brake Bros Foodservice Ltd,12/10/2017,,426.60,Catering Provisions,110000 - Catering
Solihull MBC,Resources,Children & Education Services,Brake Bros Foodservice Ltd,12/10/2017,,10.36,Catering Provisions,110000 - Catering
Solihull MBC,Resources,Children & Education Services,Brake Bros Foodservice Ltd,12/10/2017,,324.35,Catering Provisions,110000 - Catering
Solihull MBC,Resources,Children & Education Services,Brake Bros Foodservice Ltd,12/10/2017,,213.37,Catering Provisions,110000 - Catering
Solihull MBC,Resources,Children & Education Services,Brake Bros Foodservice Ltd,12/10/2017,,183.56,Catering Provisions,110000 - Catering
Solihull MBC,Resources,Children & Education Services,Brake Bros Foodservice Ltd,12/10/2017,,244.21,Catering Provisions,110000 - Catering
Solihull MBC,Resources,Children & Education Services,Brake Bros Foodservice Ltd,12/10/2017,,313.52,Catering Provisions,110000 - Catering
Solihull MBC,Resources,Children & Education Services,Brake Bros Foodservice Ltd,12/10/2017,,318.21,Catering Provisions,110000 - Catering
Solihull MBC,Resources,Children & Education Services,Brake Bros Foodservice Ltd,12/10/2017,,51.56,Catering Provisions,110000 - Catering
Solihull MBC,Resources,Children & Education Services,Brake Bros Foodservice Ltd,12/10/2017,,148.06,Catering Provisions,110000 - Catering
Solihull MBC,Resources,Children & Education Services,Brake Bros Foodservice Ltd,12/10/2017,,305.34,Catering Provisions,110000 - Catering
Solihull MBC,Resources,Children & Education Services,Brake Bros Foodservice Ltd,12/10/2017,,221.45,Catering Provisions,110000 - Catering
Solihull MBC,Resources,Children & Education Services,Brake Bros Foodservice Ltd,12/10/2017,,245.18,Catering Provisions,110000 - Catering
Solihull MBC,Resources,Children & Education Services,Brake Bros Foodservice Ltd,12/10/2017,,25.07,Catering Provisions,110000 - Catering
Solihull MBC,Resources,Children & Education Services,Brake Bros Foodservice Ltd,12/10/2017,,233.48,Catering Provisions,110000 - Catering
Solihull MBC,Resources,Children & Education Services,Brake Bros Foodservice Ltd,12/10/2017,,122.62,Catering Provisions,110000 - Catering
Solihull MBC,Resources,Children & Education Services,Brake Bros Foodservice Ltd,12/10/2017,,82.09,Catering Provisions,110000 - Catering
Solihull MBC,Resources,Children & Education Services,Brake Bros Foodservice Ltd,12/10/2017,,330.88,Catering Provisions,110000 - Catering
Solihull MBC,Resources,Children & Education Services,Brake Bros Foodservice Ltd,12/10/2017,,171.50,Catering Provisions,110000 - Catering
Solihull MBC,Resources,Children & Education Services,Brake Bros Foodservice Ltd,19/10/2017,,322.58,Catering Provisions,110000 - Catering
Solihull MBC,Resources,Children & Education Services,Brake Bros Foodservice Ltd,19/10/2017,,180.81,Catering Provisions,110000 - Catering
Solihull MBC,Resources,Children & Education Services,Brake Bros Foodservice Ltd,19/10/2017,,46.84,Catering Provisions,110000 - Catering
Solihull MBC,Resources,Children & Education Services,Brake Bros Foodservice Ltd,19/10/2017,,287.59,Catering Provisions,110000 - Catering
Solihull MBC,Resources,Children & Education Services,Brake Bros Foodservice Ltd,19/10/2017,,290.26,Catering Provisions,110000 - Catering
Solihull MBC,Resources,Children & Education Services,Brake Bros Foodservice Ltd,19/10/2017,,28.14,Catering Provisions,110000 - Catering
Solihull MBC,Resources,Children & Education Services,Brake Bros Foodservice Ltd,19/10/2017,,143.09,Catering Provisions,110000 - Catering
Solihull MBC,Resources,Children & Education Services,Brake Bros Foodservice Ltd,19/10/2017,,276.72,Catering Provisions,110000 - Catering
Solihull MBC,Resources,Children & Education Services,Brake Bros Foodservice Ltd,19/10/2017,,226.57,Catering Provisions,110000 - Catering
Solihull MBC,Resources,Children & Education Services,Brake Bros Foodservice Ltd,19/10/2017,,303.60,Catering Provisions,110000 - Catering
Solihull MBC,Resources,Children & Education Services,Brake Bros Foodservice Ltd,19/10/2017,,242.73,Catering Provisions,110000 - Catering
Solihull MBC,Resources,Children & Education Services,Brake Bros Foodservice Ltd,19/10/2017,,22.74,Catering Provisions,110000 - Catering
Solihull MBC,Resources,Children & Education Services,Brake Bros Foodservice Ltd,19/10/2017,,161.24,Catering Provisions,110000 - Catering
Solihull MBC,Resources,Children & Education Services,Brake Bros Foodservice Ltd,19/10/2017,,446.07,Catering Provisions,110000 - Catering
Solihull MBC,Resources,Children & Education Services,Brake Bros Foodservice Ltd,19/10/2017,,149.04,Catering Provisions,110000 - Catering
Solihull MBC,Resources,Children & Education Services,Brake Bros Foodservice Ltd,19/10/2017,,15.24,Catering Provisions,110000 - Catering
Solihull MBC,Resources,Children & Education Services,Brake Bros Foodservice Ltd,19/10/2017,,238.02,Catering Provisions,110000 - Catering
Solihull MBC,Resources,Children & Education Services,Brake Bros Foodservice Ltd,19/10/2017,,154.70,Catering Provisions,110000 - Catering
Solihull MBC,Resources,Children & Education Services,Brake Bros Foodservice Ltd,19/10/2017,,205.65,Catering Provisions,110000 - Catering
Solihull MBC,Resources,Children & Education Services,Brake Bros Foodservice Ltd,19/10/2017,,143.30,Catering Provisions,110000 - Catering
Solihull MBC,Resources,Children & Education Services,Brake Bros Foodservice Ltd,19/10/2017,,142.42,Catering Provisions,110000 - Catering
Solihull MBC,Resources,Children & Education Services,Brake Bros Foodservice Ltd,19/10/2017,,10.36,Catering Provisions,110000 - Catering
Solihull MBC,Resources,Children & Education Services,Brake Bros Foodservice Ltd,19/10/2017,,459.37,Catering Provisions,110000 - Catering
Solihull MBC,Resources,Children & Education Services,Brake Bros Foodservice Ltd,19/10/2017,,360.47,Catering Provisions,110000 - Catering
Solihull MBC,Resources,Children & Education Services,Brake Bros Foodservice Ltd,19/10/2017,,888.81,Catering Provisions,110000 - Catering
Solihull MBC,Resources,Children & Education Services,Brake Bros Foodservice Ltd,19/10/2017,,242.48,Catering Provisions,110000 - Catering
Solihull MBC,Resources,Children & Education Services,Brake Bros Foodservice Ltd,19/10/2017,,213.16,Catering Provisions,110000 - Catering
Solihull MBC,Resources,Children & Education Services,Brake Bros Foodservice Ltd,19/10/2017,,313.15,Catering Provisions,110000 - Catering
Solihull MBC,Resources,Children & Education Services,Brake Bros Foodservice Ltd,19/10/2017,,398.13,Catering Provisions,110000 - Catering
Solihull MBC,Resources,Children & Education Services,Brake Bros Foodservice Ltd,19/10/2017,,330.16,Catering Provisions,110000 - Catering
Solihull MBC,Resources,Children & Education Services,Brake Bros Foodservice Ltd,19/10/2017,,195.67,Catering Provisions,110000 - Catering
Solihull MBC,Resources,Children & Education Services,Brake Bros Foodservice Ltd,19/10/2017,,344.14,Catering Provisions,110000 - Catering
Solihull MBC,Resources,Children & Education Services,Brake Bros Foodservice Ltd,19/10/2017,,322.53,Catering Provisions,110000 - Catering
Solihull MBC,Resources,Children & Education Services,Brake Bros Foodservice Ltd,19/10/2017,,218.20,Catering Provisions,110000 - Catering
Solihull MBC,Resources,Children & Education Services,Brake Bros Foodservice Ltd,19/10/2017,,8.13,Catering Provisions,110000 - Catering
Solihull MBC,Resources,Children & Education Services,Brake Bros Foodservice Ltd,19/10/2017,,93.51,Catering Provisions,110000 - Catering
Solihull MBC,Resources,Children & Education Services,Brake Bros Foodservice Ltd,19/10/2017,,160.37,Catering Provisions,110000 - Catering
Solihull MBC,Resources,Children & Education Services,Brake Bros Foodservice Ltd,19/10/2017,,174.50,Catering Provisions,110000 - Catering
Solihull MBC,Resources,Children & Education Services,Brake Bros Foodservice Ltd,19/10/2017,,87.55,Catering Provisions,110000 - Catering
Solihull MBC,Resources,Children & Education Services,Brake Bros Foodservice Ltd,19/10/2017,,143.99,Catering Provisions,110000 - Catering
Solihull MBC,Resources,Children & Education Services,Brake Bros Foodservice Ltd,19/10/2017,,305.09,Catering Provisions,110000 - Catering
Solihull MBC,Resources,Children & Education Services,Brake Bros Foodservice Ltd,19/10/2017,,271.22,Catering Provisions,110000 - Catering
Solihull MBC,Resources,Children & Education Services,Brake Bros Foodservice Ltd,19/10/2017,,172.53,Catering Provisions,110000 - Catering
Solihull MBC,Resources,Children & Education Services,Brake Bros Foodservice Ltd,19/10/2017,,325.92,Catering Provisions,110000 - Catering
Solihull MBC,Resources,Children & Education Services,Brake Bros Foodservice Ltd,19/10/2017,,229.96,Catering Provisions,110000 - Catering
Solihull MBC,Resources,Children & Education Services,Brake Bros Foodservice Ltd,19/10/2017,,357.10,Catering Provisions,110000 - Catering
Solihull MBC,Resources,Children & Education Services,Brake Bros Foodservice Ltd,19/10/2017,,390.77,Catering Provisions,110000 - Catering
Solihull MBC,Resources,Children & Education Services,Brake Bros Foodservice Ltd,19/10/2017,,196.65,Catering Provisions,110000 - Catering
Solihull MBC,Resources,Children & Education Services,Brake Bros Foodservice Ltd,19/10/2017,,15.06,Catering Provisions,110000 - Catering
Solihull MBC,Resources,Children & Education Services,Brake Bros Foodservice Ltd,19/10/2017,,171.33,Catering Provisions,110000 - Catering
Solihull MBC,Resources,Children & Education Services,Brake Bros Foodservice Ltd,19/10/2017,,173.54,Catering Provisions,110000 - Catering
Solihull MBC,Resources,Children & Education Services,Brake Bros Foodservice Ltd,19/10/2017,,495.41,Catering Provisions,110000 - Catering
Solihull MBC,Resources,Children & Education Services,Brake Bros Foodservice Ltd,19/10/2017,,350.00,Catering Provisions,110000 - Catering
Solihull MBC,Resources,Children & Education Services,Brake Bros Foodservice Ltd,19/10/2017,,359.27,Catering Provisions,110000 - Catering
Solihull MBC,Resources,Children & Education Services,Brake Bros Foodservice Ltd,19/10/2017,,455.61,Catering Provisions,110000 - Catering
Solihull MBC,Resources,Children & Education Services,Brake Bros Foodservice Ltd,19/10/2017,,231.02,Catering Provisions,110000 - Catering
Solihull MBC,Resources,Children & Education Services,Brake Bros Foodservice Ltd,19/10/2017,,133.30,Catering Provisions,110000 - Catering
Solihull MBC,Resources,Children & Education Services,Brake Bros Foodservice Ltd,19/10/2017,,551.56,Catering Provisions,110000 - Catering
Solihull MBC,Resources,Children & Education Services,Brake Bros Foodservice Ltd,19/10/2017,,279.29,Catering Provisions,110000 - Catering
Solihull MBC,Resources,Children & Education Services,Brake Bros Foodservice Ltd,19/10/2017,,315.46,Catering Provisions,110000 - Catering
Solihull MBC,Resources,Children & Education Services,Brake Bros Foodservice Ltd,19/10/2017,,221.93,Catering Provisions,110000 - Catering
Solihull MBC,Resources,Children & Education Services,Brake Bros Foodservice Ltd,19/10/2017,,436.36,Catering Provisions,110000 - Catering
Solihull MBC,Resources,Children & Education Services,Brake Bros Foodservice Ltd,19/10/2017,,260.24,Catering Provisions,110000 - Catering
Solihull MBC,Resources,Children & Education Services,Brake Bros Foodservice Ltd,19/10/2017,,545.17,Catering Provisions,110000 - Catering
Solihull MBC,Resources,Children & Education Services,Brake Bros Foodservice Ltd,19/10/2017,,518.53,Catering Provisions,110000 - Catering
Solihull MBC,Resources,Children & Education Services,Brake Bros Foodservice Ltd,19/10/2017,,319.57,Catering Provisions,110000 - Catering
Solihull MBC,Resources,Children & Education Services,Brake Bros Foodservice Ltd,19/10/2017,,257.16,Catering Provisions,110000 - Catering
Solihull MBC,Resources,Children & Education Services,Brake Bros Foodservice Ltd,19/10/2017,,346.18,Catering Provisions,110000 - Catering
Solihull MBC,Resources,Children & Education Services,Brake Bros Foodservice Ltd,19/10/2017,,261.31,Catering Provisions,110000 - Catering
Solihull MBC,Resources,Children & Education Services,Brake Bros Foodservice Ltd,19/10/2017,,304.91,Catering Provisions,110000 - Catering
Solihull MBC,Resources,Children & Education Services,Brake Bros Foodservice Ltd,19/10/2017,,209.71,Catering Provisions,110000 - Catering
Solihull MBC,Resources,Children & Education Services,Brake Bros Foodservice Ltd,19/10/2017,,250.03,Catering Provisions,110000 - Catering
Solihull MBC,Resources,Cultural & Related Services,Brake Bros Foodservice Ltd,19/10/2017,,137.39,Catering Provisions,110000 - Catering
Solihull MBC,Resources,Children & Education Services,Brake Bros Foodservice Ltd,19/10/2017,,248.02,Catering Provisions,110000 - Catering
Solihull MBC,Resources,Children & Education Services,Brake Bros Foodservice Ltd,19/10/2017,,348.63,Catering Provisions,110000 - Catering
Solihull MBC,Resources,Children & Education Services,Brake Bros Foodservice Ltd,19/10/2017,,250.83,Catering Provisions,110000 - Catering
Solihull MBC,Resources,Children & Education Services,Brake Bros Foodservice Ltd,19/10/2017,,217.48,Catering Provisions,110000 - Catering
Solihull MBC,Resources,Children & Education Services,Brake Bros Foodservice Ltd,19/10/2017,,297.21,Catering Provisions,110000 - Catering
Solihull MBC,Resources,Children & Education Services,Brake Bros Foodservice Ltd,19/10/2017,,16.28,Catering Provisions,110000 - Catering
Solihull MBC,Resources,Children & Education Services,Brake Bros Foodservice Ltd,19/10/2017,,191.36,Catering Provisions,110000 - Catering
Solihull MBC,Resources,Children & Education Services,Brake Bros Foodservice Ltd,19/10/2017,,16.28,Catering Provisions,110000 - Catering
Solihull MBC,Resources,Children & Education Services,Brake Bros Foodservice Ltd,19/10/2017,,429.10,Catering Provisions,110000 - Catering
Solihull MBC,Resources,Children & Education Services,Brake Bros Foodservice Ltd,19/10/2017,,389.52,Catering Provisions,110000 - Catering
Solihull MBC,Resources,Children & Education Services,Brake Bros Foodservice Ltd,19/10/2017,,16.28,Catering Provisions,110000 - Catering
Solihull MBC,Resources,Children & Education Services,Brake Bros Foodservice Ltd,19/10/2017,,426.47,Catering Provisions,110000 - Catering
Solihull MBC,Resources,Children & Education Services,Brake Bros Foodservice Ltd,19/10/2017,,32.56,Catering Provisions,110000 - Catering
Solihull MBC,Resources,Children & Education Services,Brake Bros Foodservice Ltd,19/10/2017,,16.28,Catering Provisions,110000 - Catering
Solihull MBC,Resources,Children & Education Services,Brake Bros Foodservice Ltd,19/10/2017,,690.87,Catering Provisions,110000 - Catering
Solihull MBC,Resources,Children & Education Services,Brake Bros Foodservice Ltd,19/10/2017,,452.29,Catering Provisions,110000 - Catering
Solihull MBC,Resources,Children & Education Services,Brake Bros Foodservice Ltd,19/10/2017,,16.28,Catering Provisions,110000 - Catering
Solihull MBC,Resources,Children & Education Services,Brake Bros Foodservice Ltd,19/10/2017,,32.56,Catering Provisions,110000 - Catering
Solihull MBC,Resources,Children & Education Services,Brake Bros Foodservice Ltd,19/10/2017,,680.28,Catering Provisions,110000 - Catering
Solihull MBC,Resources,Children & Education Services,Brake Bros Foodservice Ltd,19/10/2017,,16.28,Catering Provisions,110000 - Catering
Solihull MBC,Resources,Children & Education Services,Brake Bros Foodservice Ltd,19/10/2017,,276.46,Catering Provisions,110000 - Catering
Solihull MBC,Resources,Children & Education Services,Brake Bros Foodservice Ltd,19/10/2017,,422.35,Catering Provisions,110000 - Catering
Solihull MBC,Resources,Children & Education Services,Brake Bros Foodservice Ltd,19/10/2017,,16.28,Catering Provisions,110000 - Catering
Solihull MBC,Resources,Children & Education Services,Brake Bros Foodservice Ltd,19/10/2017,,223.87,Catering Provisions,110000 - Catering
Solihull MBC,Resources,Children & Education Services,Brake Bros Foodservice Ltd,19/10/2017,,16.28,Catering Provisions,110000 - Catering
Solihull MBC,Resources,Children & Education Services,Brake Bros Foodservice Ltd,19/10/2017,,16.28,Catering Provisions,110000 - Catering
Solihull MBC,Resources,Children & Education Services,Brake Bros Foodservice Ltd,19/10/2017,,576.74,Catering Provisions,110000 - Catering
Solihull MBC,Resources,Children & Education Services,Brake Bros Foodservice Ltd,19/10/2017,,391.64,Catering Provisions,110000 - Catering
Solihull MBC,Resources,Children & Education Services,Brake Bros Foodservice Ltd,19/10/2017,,16.28,Catering Provisions,110000 - Catering
Solihull MBC,Resources,Children & Education Services,Brake Bros Foodservice Ltd,19/10/2017,,16.28,Catering Provisions,110000 - Catering
Solihull MBC,Resources,Children & Education Services,Brake Bros Foodservice Ltd,19/10/2017,,16.28,Catering Provisions,110000 - Catering
Solihull MBC,Resources,Children & Education Services,Brake Bros Foodservice Ltd,19/10/2017,,191.08,Catering Provisions,110000 - Catering
Solihull MBC,Resources,Children & Education Services,Brake Bros Foodservice Ltd,19/10/2017,,16.28,Catering Provisions,110000 - Catering
Solihull MBC,Resources,Children & Education Services,Brake Bros Foodservice Ltd,19/10/2017,,16.28,Catering Provisions,110000 - Catering
Solihull MBC,Resources,Children & Education Services,Brake Bros Foodservice Ltd,19/10/2017,,16.28,Catering Provisions,110000 - Catering
Solihull MBC,Resources,Children & Education Services,Brake Bros Foodservice Ltd,19/10/2017,,431.65,Catering Provisions,110000 - Catering
Solihull MBC,Resources,Children & Education Services,Brake Bros Foodservice Ltd,19/10/2017,,32.56,Catering Provisions,110000 - Catering
Solihull MBC,Resources,Children & Education Services,Brake Bros Foodservice Ltd,19/10/2017,,16.28,Catering Provisions,110000 - Catering
Solihull MBC,Resources,Children & Education Services,Brake Bros Foodservice Ltd,19/10/2017,,147.28,Catering Provisions,110000 - Catering
Solihull MBC,Resources,Children & Education Services,Brake Bros Foodservice Ltd,19/10/2017,,255.26,Catering Provisions,110000 - Catering
Solihull MBC,Resources,Children & Education Services,Brake Bros Foodservice Ltd,19/10/2017,,385.51,Catering Provisions,110000 - Catering
Solihull MBC,Resources,Children & Education Services,Brake Bros Foodservice Ltd,19/10/2017,,16.28,Catering Provisions,110000 - Catering
Solihull MBC,Resources,Children & Education Services,Brake Bros Foodservice Ltd,19/10/2017,,358.36,Catering Provisions,110000 - Catering
Solihull MBC,Resources,Children & Education Services,Brake Bros Foodservice Ltd,19/10/2017,,16.28,Catering Provisions,110000 - Catering
Solihull MBC,Resources,Children & Education Services,Brake Bros Foodservice Ltd,19/10/2017,,32.56,Catering Provisions,110000 - Catering
Solihull MBC,Resources,Children & Education Services,Brake Bros Foodservice Ltd,19/10/2017,,87.76,Catering Provisions,110000 - Catering
Solihull MBC,Resources,Children & Education Services,Brake Bros Foodservice Ltd,19/10/2017,,281.36,Catering Provisions,110000 - Catering
Solihull MBC,Resources,Children & Education Services,Brake Bros Foodservice Ltd,19/10/2017,,16.28,Catering Provisions,110000 - Catering
Solihull MBC,Resources,Children & Education Services,Brake Bros Foodservice Ltd,19/10/2017,,343.44,Catering Provisions,110000 - Catering
Solihull MBC,Resources,Children & Education Services,Brake Bros Foodservice Ltd,19/10/2017,,16.28,Catering Provisions,110000 - Catering
Solihull MBC,Resources,Children & Education Services,Brake Bros Foodservice Ltd,19/10/2017,,229.88,Catering Provisions,110000 - Catering
Solihull MBC,Resources,Children & Education Services,Brake Bros Foodservice Ltd,19/10/2017,,16.28,Catering Provisions,110000 - Catering
Solihull MBC,Resources,Children & Education Services,Brake Bros Foodservice Ltd,19/10/2017,,16.28,Catering Provisions,110000 - Catering
Solihull MBC,Resources,Children & Education Services,Brake Bros Foodservice Ltd,19/10/2017,,202.82,Catering Provisions,110000 - Catering
Solihull MBC,Resources,Children & Education Services,Brake Bros Foodservice Ltd,19/10/2017,,32.56,Catering Provisions,110000 - Catering
Solihull MBC,Resources,Children & Education Services,Brake Bros Foodservice Ltd,19/10/2017,,16.28,Catering Provisions,110000 - Catering
Solihull MBC,Resources,Children & Education Services,Brake Bros Foodservice Ltd,19/10/2017,,389.07,Catering Provisions,110000 - Catering
Solihull MBC,Resources,Children & Education Services,Brake Bros Foodservice Ltd,19/10/2017,,16.28,Catering Provisions,110000 - Catering
Solihull MBC,Resources,Children & Education Services,Brake Bros Foodservice Ltd,19/10/2017,,277.78,Catering Provisions,110000 - Catering
Solihull MBC,Resources,Children & Education Services,Brake Bros Foodservice Ltd,19/10/2017,,305.76,Catering Provisions,110000 - Catering
Solihull MBC,Resources,Children & Education Services,Brake Bros Foodservice Ltd,19/10/2017,,16.28,Catering Provisions,110000 - Catering
Solihull MBC,Resources,Children & Education Services,Brake Bros Foodservice Ltd,19/10/2017,,16.28,Catering Provisions,110000 - Catering
Solihull MBC,Resources,Children & Education Services,Brake Bros Foodservice Ltd,19/10/2017,,466.41,Catering Provisions,110000 - Catering
Solihull MBC,Resources,Children & Education Services,Brake Bros Foodservice Ltd,19/10/2017,,360.33,Catering Provisions,110000 - Catering
Solihull MBC,Resources,Children & Education Services,Brake Bros Foodservice Ltd,19/10/2017,,16.28,Catering Provisions,110000 - Catering
Solihull MBC,Resources,Children & Education Services,Brake Bros Foodservice Ltd,19/10/2017,,102.72,Catering Provisions,110000 - Catering
Solihull MBC,Resources,Children & Education Services,Brake Bros Foodservice Ltd,19/10/2017,,16.28,Catering Provisions,110000 - Catering
Solihull MBC,Resources,Children & Education Services,Brake Bros Foodservice Ltd,19/10/2017,,533.15,Catering Provisions,110000 - Catering
Solihull MBC,Resources,Children & Education Services,Brake Bros Foodservice Ltd,19/10/2017,,16.28,Catering Provisions,110000 - Catering
Solihull MBC,Resources,Children & Education Services,Brake Bros Foodservice Ltd,19/10/2017,,16.28,Catering Provisions,110000 - Catering
Solihull MBC,Resources,Children & Education Services,Brake Bros Foodservice Ltd,19/10/2017,,214.40,Catering Provisions,110000 - Catering
Solihull MBC,Resources,Children & Education Services,Brake Bros Foodservice Ltd,19/10/2017,,16.28,Catering Provisions,110000 - Catering
Solihull MBC,Resources,Children & Education Services,Brake Bros Foodservice Ltd,19/10/2017,,172.84,Catering Provisions,110000 - Catering
Solihull MBC,Resources,Children & Education Services,Brake Bros Foodservice Ltd,19/10/2017,,16.28,Catering Provisions,110000 - Catering
Solihull MBC,Resources,Children & Education Services,Brake Bros Foodservice Ltd,19/10/2017,,439.18,Catering Provisions,110000 - Catering
Solihull MBC,Resources,Children & Education Services,Brake Bros Foodservice Ltd,19/10/2017,,273.75,Catering Provisions,110000 - Catering
Solihull MBC,Resources,Children & Education Services,Brake Bros Foodservice Ltd,19/10/2017,,16.28,Catering Provisions,110000 - Catering
Solihull MBC,Resources,Children & Education Services,Brake Bros Foodservice Ltd,19/10/2017,,169.37,Catering Provisions,110000 - Catering
Solihull MBC,Resources,Children & Education Services,Brake Bros Foodservice Ltd,19/10/2017,,32.56,Catering Provisions,110000 - Catering
Solihull MBC,Resources,Children & Education Services,Brake Bros Foodservice Ltd,19/10/2017,,16.28,Catering Provisions,110000 - Catering
Solihull MBC,Resources,Children & Education Services,Brake Bros Foodservice Ltd,19/10/2017,,371.20,Catering Provisions,110000 - Catering
Solihull MBC,Resources,Children & Education Services,Brake Bros Foodservice Ltd,19/10/2017,,16.28,Catering Provisions,110000 - Catering
Solihull MBC,Resources,Children & Education Services,Brake Bros Foodservice Ltd,19/10/2017,,714.15,Catering Provisions,110000 - Catering
Solihull MBC,Resources,Children & Education Services,Brake Bros Foodservice Ltd,19/10/2017,,108.57,Catering Provisions,110000 - Catering
Solihull MBC,Resources,Children & Education Services,Brake Bros Foodservice Ltd,19/10/2017,,25.20,Catering Provisions,110000 - Catering
Solihull MBC,Resources,Children & Education Services,Brake Bros Foodservice Ltd,19/10/2017,,214.82,Catering Provisions,110000 - Catering
Solihull MBC,Resources,Children & Education Services,Brake Bros Foodservice Ltd,19/10/2017,,284.12,Catering Provisions,110000 - Catering
Solihull MBC,Resources,Adult Social Care,Brake Bros Foodservice Ltd,19/10/2017,,86.24,Catering Provisions,110000 - Catering
Solihull MBC,Resources,Children & Education Services,Brake Bros Foodservice Ltd,19/10/2017,,188.38,Catering Provisions,110000 - Catering
Solihull MBC,Resources,Children & Education Services,Brake Bros Foodservice Ltd,19/10/2017,,16.28,Catering Provisions,110000 - Catering
Solihull MBC,Resources,Children & Education Services,Brake Bros Foodservice Ltd,19/10/2017,,16.28,Catering Provisions,110000 - Catering
Solihull MBC,Resources,Children & Education Services,Brake Bros Foodservice Ltd,19/10/2017,,380.55,Catering Provisions,110000 - Catering
Solihull MBC,Resources,Children & Education Services,Brake Bros Foodservice Ltd,19/10/2017,,16.28,Catering Provisions,110000 - Catering
Solihull MBC,Resources,Children & Education Services,Brake Bros Foodservice Ltd,19/10/2017,,291.62,Catering Provisions,110000 - Catering
Solihull MBC,Resources,Children & Education Services,Brake Bros Foodservice Ltd,19/10/2017,,16.28,Catering Provisions,110000 - Catering
Solihull MBC,Resources,Children & Education Services,Brake Bros Foodservice Ltd,19/10/2017,,250.15,Catering Provisions,110000 - Catering
Solihull MBC,Resources,Children & Education Services,Brake Bros Foodservice Ltd,19/10/2017,,16.28,Catering Provisions,110000 - Catering
Solihull MBC,Resources,Children & Education Services,Brake Bros Foodservice Ltd,19/10/2017,,273.74,Catering Provisions,110000 - Catering
Solihull MBC,Resources,Children & Education Services,Brake Bros Foodservice Ltd,19/10/2017,,16.28,Catering Provisions,110000 - Catering
Solihull MBC,Resources,Children & Education Services,Brake Bros Foodservice Ltd,19/10/2017,,115.17,Catering Provisions,110000 - Catering
Solihull MBC,Resources,Children & Education Services,Brake Bros Foodservice Ltd,19/10/2017,,528.95,Catering Provisions,110000 - Catering
Solihull MBC,Resources,Children & Education Services,Brake Bros Foodservice Ltd,19/10/2017,,16.28,Catering Provisions,110000 - Catering
Solihull MBC,Resources,Children & Education Services,Brake Bros Foodservice Ltd,19/10/2017,,206.87,Catering Provisions,110000 - Catering
Solihull MBC,Resources,Children & Education Services,Brake Bros Foodservice Ltd,25/10/2017,,549.68,Catering Provisions,110000 - Catering
Solihull MBC,Resources,Children & Education Services,Brake Bros Foodservice Ltd,25/10/2017,,16.28,Catering Provisions,110000 - Catering
Solihull MBC,Resources,Children & Education Services,Brake Bros Foodservice Ltd,25/10/2017,,236.50,Catering Provisions,110000 - Catering
Solihull MBC,Resources,Children & Education Services,Brake Bros Foodservice Ltd,25/10/2017,,238.90,Catering Provisions,110000 - Catering
Solihull MBC,Resources,Children & Education Services,Brake Bros Foodservice Ltd,25/10/2017,,184.35,Catering Provisions,110000 - Catering
Solihull MBC,Resources,Children & Education Services,Brake Bros Foodservice Ltd,25/10/2017,,16.28,Catering Provisions,110000 - Catering
Solihull MBC,Resources,Children & Education Services,Brake Bros Foodservice Ltd,25/10/2017,,116.20,Catering Provisions,110000 - Catering
Solihull MBC,Resources,Children & Education Services,Brake Bros Foodservice Ltd,25/10/2017,,194.95,Catering Provisions,110000 - Catering
Solihull MBC,Resources,Children & Education Services,Brake Bros Foodservice Ltd,25/10/2017,,212.35,Catering Provisions,110000 - Catering
Solihull MBC,Resources,Children & Education Services,Brake Bros Foodservice Ltd,25/10/2017,,376.88,Catering Provisions,110000 - Catering
Solihull MBC,Resources,Children & Education Services,Brake Bros Foodservice Ltd,25/10/2017,,16.28,Catering Provisions,110000 - Catering
Solihull MBC,Resources,Children & Education Services,Brake Bros Foodservice Ltd,25/10/2017,,291.87,Catering Provisions,110000 - Catering
Solihull MBC,Resources,Children & Education Services,Brake Bros Foodservice Ltd,25/10/2017,,16.28,Catering Provisions,110000 - Catering
Solihull MBC,Resources,Children & Education Services,Brake Bros Foodservice Ltd,25/10/2017,,80.74,Catering Provisions,110000 - Catering
Solihull MBC,Resources,Children & Education Services,Brake Bros Foodservice Ltd,25/10/2017,,301.03,Catering Provisions,110000 - Catering
Solihull MBC,Resources,Children & Education Services,Brake Bros Foodservice Ltd,25/10/2017,,238.69,Catering Provisions,110000 - Catering
Solihull MBC,Resources,Children & Education Services,Brake Bros Foodservice Ltd,25/10/2017,,328.56,Catering Provisions,110000 - Catering
Solihull MBC,Resources,Children & Education Services,Brake Bros Foodservice Ltd,25/10/2017,,115.13,Catering Provisions,110000 - Catering
Solihull MBC,Resources,Children & Education Services,Brake Bros Foodservice Ltd,25/10/2017,,16.28,Catering Provisions,110000 - Catering
Solihull MBC,Resources,Children & Education Services,Brake Bros Foodservice Ltd,25/10/2017,,162.54,Catering Provisions,110000 - Catering
Solihull MBC,Resources,Children & Education Services,Brake Bros Foodservice Ltd,25/10/2017,,183.98,Catering Provisions,110000 - Catering
Solihull MBC,Resources,Children & Education Services,Brake Bros Foodservice Ltd,25/10/2017,,208.38,Catering Provisions,110000 - Catering
Solihull MBC,Resources,Children & Education Services,Brake Bros Foodservice Ltd,25/10/2017,,333.86,Catering Provisions,110000 - Catering
Solihull MBC,Resources,Children & Education Services,Brake Bros Foodservice Ltd,25/10/2017,,16.28,Catering Provisions,110000 - Catering
Solihull MBC,Resources,Children & Education Services,Brake Bros Foodservice Ltd,25/10/2017,,138.06,Catering Provisions,110000 - Catering
Solihull MBC,Resources,Children & Education Services,Brake Bros Foodservice Ltd,25/10/2017,,21.06,Catering Provisions,110000 - Catering
Solihull MBC,Resources,Children & Education Services,Brake Bros Foodservice Ltd,25/10/2017,,250.61,Catering Provisions,110000 - Catering
